﻿DIRECTORATE,SECTION,DIVISION,VENDOR_NAME,VENDOR_SITE_ID,PAYMENT_DATE,VOUCHER_NO,AMOUNT,IRRECOVERABLE VATE,PURPOSE_OF_SPEND,PROCUREMENT_CLASSIFICATION
Adults Health and Housing,Adults Health and Housing,Adults Health and Housing,A M PROPERTY SERVICES LTD,121,02/08/2022,4009397,"14,844.00",0.00,REFCUS - Disabled Facilities Grant 96 Act,Building and Construction and Maintenanc
Adults Health and Housing,Adults Health and Housing,Adults Health and Housing,A M PROPERTY SERVICES LTD,121,02/08/2022,4009396,"3,598.00",0.00,REFCUS - Disabled Facilities Grant 96 Act,Building and Construction and Maintenanc
Adults Health and Housing,Adults Health and Housing,Adults Health and Housing,A M PROPERTY SERVICES LTD,121,02/08/2022,4008940,"10,000.00",0.00,REFCUS - Disabled Facilities Grant 96 Act,Building and Construction and Maintenanc
Adults Health and Housing,Adults Health and Housing,Adults Health and Housing,A M PROPERTY SERVICES LTD,121,02/08/2022,4009440,708.00,0.00,REFCUS - Healthy Housing Assistance,Building and Construction and Maintenanc
Communities & Place,"Environmental Protection, Housing Standards, Licensing, Emergency Planning",Public Protection and Streetride,A W LYMN,132,02/08/2022,4009371,"1,300.00",0.00,Burial/Crem N.A. Act 1948,Default
Communities & Place,"Environmental Protection, Housing Standards, Licensing, Emergency Planning",Public Protection and Streetride,A W LYMN,132,02/08/2022,4000046,"1,300.00",0.00,Burial/Crem N.A. Act 1948,Default
Communities & Place,"Environmental Protection, Housing Standards, Licensing, Emergency Planning",Public Protection and Streetride,A W LYMN,132,02/08/2022,4008912,"1,300.00",0.00,Burial/Crem N.A. Act 1948,Default
People Services - Children & Young People,Commissioning - Schools Block,Schools Block,ACADEMY21 LTD,1551537,02/08/2022,4012188,900.00,0.00,N/A,N/A
Corporate Resources,Property Design & Maintenance,Property,ADT FIRE AND SECURITY PLC,188268,02/08/2022,4011087,"3,163.00",0.00,N/A,N/A
Communities & Place,"Highways, Gounds Maintenance and Flood Defence",Public Protection and Streetride,AGROVISTA UK LTD,655459,02/08/2022,3999449,750.00,0.00,Grounds Maintenance,Farming Fishing Forestry and Wildlife Co
Corporate Resources,Financial Services,Financial Services,ANTALIS LIMITED,1059478,02/08/2022,4009363,"2,622.00",0.00,DMC - Document Management Centre,Paper Materials and Products
People Services - Children & Young People,Non Delegated Schools Budget,Schools Block,ANTHEM SCHOOLS TRUST,1719489,02/08/2022,4009469,622.00,0.00,N/A,N/A
Corporate Resources,Financial Services,Financial Services,ANTHONY COLLINS SOLICITORS,65,02/08/2022,4009018,"2,389.00",0.00,Council Tax Billing,Management and Business Professionals an
People Services - Children & Young People,Commissioning,Non-Schools,ANTHONY COLLINS SOLICITORS,65,02/08/2022,4008949,"9,821.69",0.00,Home to School Travel Team,Management and Business Professionals an
Communities & Place,Traffic & Transportation,Planning & Transportation,ARCADIS UK LTD,1063470,02/08/2022,4007073,"5,481.33",0.00,N/A,N/A
Communities & Place,"Highways, Gounds Maintenance and Flood Defence",Public Protection and Streetride,ARRIVING LTD,217400,02/08/2022,4009347,"3,590.00",0.00,Highways Maintenance Works,Commercial and Military and Private Vehi
Communities & Place,"Culture, Business Development & Tourism","Leisure, Culture and Tourism",ASKEWS AND HOLTS LIBRARY SERVICES LTD,876447,02/08/2022,4009353,"1,436.00",0.00,City Book Fund,Published Products
Communities & Place,"Culture, Business Development & Tourism","Leisure, Culture and Tourism",ASKEWS AND HOLTS LIBRARY SERVICES LTD,876447,02/08/2022,4009350,"3,270.63",0.00,City Book Fund,Published Products
People Services - Adults and Health,Learning Disability Support,Transitions and Ordinary Lives,AUTONOMY HEALTHCARE LTD,469427,02/08/2022,4009529,944.66,0.00,N/A,N/A
Communities & Place,Regeneration and Major Projects,City Development & Growth,AVISON YOUNG,1357475,02/08/2022,4009381,"3,080.00",0.00,N/A,N/A
Communities & Place,"Culture, Business Development & Tourism","Leisure, Culture and Tourism",BABBLING VAGABONDS LTD,124858,02/08/2022,4008952,"1,500.00",0.00,N/A,N/A
Communities & Place,"Culture, Business Development & Tourism","Leisure, Culture and Tourism",BELLA LEARNING,1798469,02/08/2022,4008995,"1,000.00",0.00,N/A,N/A
People Services - Adults and Health,Mental Health Support,Mental Health,BREAKTHRU CARE LTD,1713489,02/08/2022,4011947,"1,544.29",0.00,N/A,N/A
People Services - Adults and Health,Mental Health Support,Mental Health,BREAKTHRU CARE LTD,1713489,02/08/2022,4011946,"7,518.00",0.00,N/A,N/A
People Services - Adults and Health,Mental Health Support,Mental Health,BREAKTHRU CARE LTD,1713489,02/08/2022,4011945,"4,324.00",0.00,N/A,N/A
People Services - Adults and Health,Mental Health Support,Mental Health,BREAKTHRU CARE LTD,1713489,02/08/2022,4011775,"4,324.00",0.00,N/A,N/A
People Services - Adults and Health,Mental Health Support,Mental Health,BREAKTHRU CARE LTD,1713489,02/08/2022,4011774,"5,101.50",0.00,N/A,N/A
People Services - Adults and Health,Mental Health Support,Mental Health,BREAKTHRU CARE LTD,1713489,02/08/2022,4011773,"2,934.14",0.00,N/A,N/A
People Services - Adults and Health,Mental Health Support,Mental Health,BREAKTHRU CARE LTD,1713489,02/08/2022,4011466,"4,833.00",0.00,N/A,N/A
People Services - Adults and Health,Mental Health Support,Mental Health,BREAKTHRU CARE LTD,1713489,02/08/2022,4011465,"4,322.64",0.00,N/A,N/A
People Services - Adults and Health,Mental Health Support,Mental Health,BREAKTHRU CARE LTD,1713489,02/08/2022,4011464,"2,778.84",0.00,N/A,N/A
People Services - Adults and Health,Mental Health Support,Mental Health,BREAKTHRU CARE LTD,1713489,02/08/2022,4011620,"2,380.00",0.00,N/A,N/A
People Services - Adults and Health,Mental Health Support,Mental Health,BREAKTHRU CARE LTD,1713489,02/08/2022,4012034,"7,518.00",0.00,N/A,N/A
People Services - Adults and Health,Mental Health Support,Mental Health,BREAKTHRU CARE LTD,1713489,02/08/2022,4012033,"2,685.00",0.00,N/A,N/A
People Services - Adults and Health,Mental Health Support,Mental Health,BREAKTHRU CARE LTD,1713489,02/08/2022,4012032,850.00,0.00,N/A,N/A
People Services - Adults and Health,Mental Health Support,Mental Health,BREAKTHRU CARE LTD,1713489,02/08/2022,4012031,"7,518.00",0.00,N/A,N/A
People Services - Adults and Health,Mental Health Support,Mental Health,BREAKTHRU CARE LTD,1713489,02/08/2022,4012029,"1,615.00",0.00,N/A,N/A
People Services - Adults and Health,Mental Health Support,Mental Health,BREAKTHRU CARE LTD,1713489,02/08/2022,4011704,"4,324.00",0.00,N/A,N/A
People Services - Adults and Health,Mental Health Support,Mental Health,BREAKTHRU CARE LTD,1713489,02/08/2022,4011703,"4,324.00",0.00,N/A,N/A
People Services - Adults and Health,Mental Health Support,Mental Health,BREAKTHRU CARE LTD,1713489,02/08/2022,4011702,"2,779.71",0.00,N/A,N/A
People Services - Adults and Health,Mental Health Support,Mental Health,BREAKTHRU CARE LTD,1713489,02/08/2022,4011700,"2,380.00",0.00,N/A,N/A
People Services - Adults and Health,Mental Health Support,Mental Health,BREAKTHRU CARE LTD,1713489,02/08/2022,4011698,"2,380.00",0.00,N/A,N/A
People Services - Adults and Health,Mental Health Support,Mental Health,BREAKTHRU CARE LTD,1713489,02/08/2022,4011539,"4,324.00",0.00,N/A,N/A
People Services - Adults and Health,Mental Health Support,Mental Health,BREAKTHRU CARE LTD,1713489,02/08/2022,4011538,"1,530.00",0.00,N/A,N/A
People Services - Children & Young People,Non Delegated Schools Budget,Schools Block,BROOKE HILL ACADEMY TRUST,1834471,02/08/2022,4009464,517.00,0.00,N/A,N/A
Corporate Resources,Digital Services & Customer Management,Digital Services & Customer Management,BT PLC,1025473,02/08/2022,4008981,"1,374.00",0.00,N/A,N/A
Corporate Resources,Digital Services & Customer Management,Digital Services & Customer Management,BT PLC,1025473,02/08/2022,4008913,"7,375.00",0.00,N/A,N/A
Communities & Place,"Waste, Street Cleansing & Fleet",Public Protection and Streetride,BUNZL CLEANING AND HYGIENE SUPPLIES,961498,02/08/2022,4008938,"6,317.59",0.00,Building Cleaning Derby Homes,Chemicals including Bio Chemicals and Ga
Communities & Place,"Highways, Gounds Maintenance and Flood Defence",Public Protection and Streetride,BUXTONS LTD,916,02/08/2022,4009299,"3,717.13",0.00,Arboricultural Maintenance,Farming Fishing Forestry and Wildlife Co
Corporate Resources,Digital Services & Customer Management,Digital Services & Customer Management,CDW LTD,1377474,02/08/2022,3998655,"2,977.68",0.00,N/A,N/A
Corporate Resources,Digital Services & Customer Management,Digital Services & Customer Management,CDW LTD,1377474,02/08/2022,3998655,"10,834.06",0.00,N/A,N/A
Corporate Resources,Digital Services & Customer Management,Digital Services & Customer Management,CDW LTD,1377474,02/08/2022,3998655,"1,630.89",0.00,N/A,N/A
Corporate Resources,Digital Services & Customer Management,Digital Services & Customer Management,CDW LTD,1377474,02/08/2022,3998655,"2,350.92",0.00,N/A,N/A
Corporate Resources,Digital Services & Customer Management,Digital Services & Customer Management,CDW LTD,1377474,02/08/2022,3998655,"1,077.51",0.00,N/A,N/A
Corporate Resources,Digital Services & Customer Management,Digital Services & Customer Management,CDW LTD,1377474,02/08/2022,3998655,"18,136.60",0.00,N/A,N/A
Corporate Resources,Digital Services & Customer Management,Digital Services & Customer Management,CDW LTD,1377474,02/08/2022,3998655,"1,165.52",0.00,N/A,N/A
Communities & Place,Community Safety,Public Protection and Streetride,CENTRAL EDUCATION AND TRAINING,1382473,02/08/2022,4008983,895.00,0.00,N/A,N/A
Corporate Resources,Communication and Consultation,Coroprate Core,CITY SIGNS PRINT AND DESIGN LTD,1277474,02/08/2022,4009368,720.00,0.00,Corporate Communications,Printing and Photographic and Audio and
Corporate Resources,"Legal, Procurement and Democratic Services","Legal, Procurement and Democratic Services",COMMERCE STREET COMMUNITY CENTRE,1844473,02/08/2022,4008963,700.00,0.00,N/A,N/A
Neighbourhoods,Neighbourhoods,Neighbourhoods,CONNECT ROADS DERBY LTD,604445,02/08/2022,4009003,"160,556.12",0.00,N/A,N/A
Corporate Resources,Digital Services & Customer Management,Digital Services & Customer Management,DEBIT FINANCE COLLECTIONS PLC,1807477,02/08/2022,4000054,"2,027.52",0.00,N/A,N/A
Corporate Resources,"Legal, Procurement and Democratic Services","Legal, Procurement and Democratic Services",DERBY CATHEDRAL CHAPTER,139333,02/08/2022,4009302,588.00,0.00,N/A,N/A
Communities & Place,Parks & Healthy Living,"Leisure, Culture and Tourism",DERBY COUNTY COMMUNITY TRUST,178343,02/08/2022,4009380,"35,000.00",0.00,N/A,N/A
Communities & Place,Strategic Housing,City Development & Growth,DERBY GUESTHOUSE LTD,255426,02/08/2022,4009414,700.00,0.00,Housing Options (Private),Travel and Food and Lodging and Entertai
Communities & Place,Strategic Housing,City Development & Growth,DERBY GUESTHOUSE LTD,255426,02/08/2022,4009335,700.00,0.00,Housing Options (Private),Travel and Food and Lodging and Entertai
Communities & Place,"Environmental Protection, Housing Standards, Licensing, Emergency Planning",Public Protection and Streetride,DERBY MUSEUMS,1158491,02/08/2022,4012192,627.50,0.00,Env Health Mangmnt & Adm,Management and Business Professionals an
Communities & Place,"Culture, Business Development & Tourism","Leisure, Culture and Tourism",DERBY MUSEUMS,127016,02/08/2022,4012139,"630,000.00",0.00,Museums Trust Payments,Organizations and Clubs-Clubs
Communities & Place,"Culture, Business Development & Tourism","Leisure, Culture and Tourism",DERBY MUSEUMS,127016,02/08/2022,4012140,"81,680.00",0.00,Museums Trust Payments,Organizations and Clubs-Clubs
Communities & Place,"Trading Standards, Food and Safety, Bereavement Services and Building Consultanc",Public Protection and Streetride,DERBY TIMBER SUPPLIES,1518482,02/08/2022,4012182,"1,700.00",0.00,N/A,N/A
Corporate Resources,Communication and Consultation,Coroprate Core,DERBYARTS,1649496,02/08/2022,4009013,665.00,0.00,N/A,N/A
People Services - Adults and Health,Physical Support,Community Support,DERBYSHIRE CARE SERVICES,388459,02/08/2022,4011576,839.04,0.00,N/A,N/A
People Services - Adults and Health,Physical Support,Community Support,DERBYSHIRE CARE SERVICES,388459,02/08/2022,4011424,533.44,0.00,N/A,N/A
People Services - Adults and Health,Physical Support,Community Support,DERBYSHIRE CARE SERVICES,388459,02/08/2022,4011423,839.04,0.00,N/A,N/A
People Services - Adults and Health,Physical Support,Community Support,DERBYSHIRE CARE SERVICES,388459,02/08/2022,4011823,870.56,0.00,N/A,N/A
People Services - Adults and Health,Physical Support,Community Support,DERBYSHIRE CARE SERVICES,388459,02/08/2022,4011815,515.36,0.00,N/A,N/A
People Services - Adults and Health,Physical Support,Community Support,DERBYSHIRE CARE SERVICES,388459,02/08/2022,4011667,870.56,0.00,N/A,N/A
People Services - Adults and Health,Physical Support,Community Support,DERBYSHIRE CARE SERVICES,388459,02/08/2022,4011988,839.04,0.00,N/A,N/A
People Services - Adults and Health,Physical Support,Community Support,DERBYSHIRE CARE SERVICES,388459,02/08/2022,4011572,839.04,0.00,N/A,N/A
People Services - Adults and Health,Physical Support,Community Support,DERBYSHIRE CARE SERVICES,388459,02/08/2022,4011569,515.36,0.00,N/A,N/A
People Services - Adults and Health,Physical Support,Community Support,DERBYSHIRE CARE SERVICES,388459,02/08/2022,4011498,533.44,0.00,N/A,N/A
People Services - Adults and Health,Physical Support,Community Support,DERBYSHIRE CARE SERVICES,388459,02/08/2022,4011906,502.25,0.00,N/A,N/A
People Services - Adults and Health,Physical Support,Community Support,DERBYSHIRE CARE SERVICES,388459,02/08/2022,4011426,997.92,0.00,N/A,N/A
People Services - Adults and Health,Physical Support,Community Support,DERBYSHIRE CARE SERVICES,388459,02/08/2022,4011999,681.76,0.00,N/A,N/A
People Services - Adults and Health,Physical Support,Community Support,DERBYSHIRE CARE SERVICES,388459,02/08/2022,4011504,997.92,0.00,N/A,N/A
People Services - Adults and Health,Physical Support,Community Support,DERBYSHIRE CARE SERVICES,388459,02/08/2022,4011749,598.20,0.00,N/A,N/A
People Services - Adults and Health,Physical Support,Community Support,DERBYSHIRE CARE SERVICES,388459,02/08/2022,4011898,942.01,0.00,N/A,N/A
People Services - Adults and Health,Physical Support,Community Support,DERBYSHIRE CARE SERVICES,388459,02/08/2022,4011897,942.01,0.00,N/A,N/A
People Services - Adults and Health,Physical Support,Community Support,DERBYSHIRE CARE SERVICES,388459,02/08/2022,4011744,"1,050.00",0.00,N/A,N/A
People Services - Adults and Health,Physical Support,Community Support,DERBYSHIRE CARE SERVICES,388459,02/08/2022,4011743,"1,050.00",0.00,N/A,N/A
People Services - Adults and Health,Physical Support,Community Support,DERBYSHIRE CARE SERVICES,388459,02/08/2022,4011580,606.24,0.00,N/A,N/A
People Services - Adults and Health,Physical Support,Community Support,DERBYSHIRE CARE SERVICES,388459,02/08/2022,4011817,585.32,0.00,N/A,N/A
People Services - Adults and Health,Physical Support,Community Support,DERBYSHIRE CARE SERVICES,388459,02/08/2022,4011574,901.32,0.00,N/A,N/A
People Services - Adults and Health,Physical Support,Community Support,DERBYSHIRE CARE SERVICES,388459,02/08/2022,4011578,573.20,0.00,N/A,N/A
People Services - Adults and Health,Physical Support,Community Support,DERBYSHIRE CARE SERVICES,388459,02/08/2022,4011577,573.20,0.00,N/A,N/A
People Services - Adults and Health,Physical Support,Community Support,DERBYSHIRE CARE SERVICES,388459,02/08/2022,4011668,594.00,0.00,N/A,N/A
People Services - Adults and Health,Physical Support,Community Support,DERBYSHIRE CARE SERVICES,388459,02/08/2022,4011502,594.00,0.00,N/A,N/A
People Services - Adults and Health,Physical Support,Community Support,DERBYSHIRE CARE SERVICES,388459,02/08/2022,4011987,557.19,0.00,N/A,N/A
People Services - Adults and Health,Learning Disability Support,Community Support,DERBYSHIRE CARE SERVICES,388459,02/08/2022,4011912,507.60,0.00,N/A,N/A
People Services - Adults and Health,Learning Disability Support,Community Support,DERBYSHIRE CARE SERVICES,388459,02/08/2022,4011586,507.60,0.00,N/A,N/A
People Services - Adults and Health,Learning Disability Support,Community Support,DERBYSHIRE CARE SERVICES,388459,02/08/2022,4011584,507.60,0.00,N/A,N/A
People Services - Adults and Health,Learning Disability Support,Community Support,DERBYSHIRE CARE SERVICES,388459,02/08/2022,4011582,507.60,0.00,N/A,N/A
People Services - Adults and Health,Learning Disability Support,Community Support,DERBYSHIRE CARE SERVICES,388459,02/08/2022,4012000,507.60,0.00,N/A,N/A
People Services - Adults and Health,Learning Disability Support,Community Support,DERBYSHIRE CARE SERVICES,388459,02/08/2022,4011671,507.60,0.00,N/A,N/A
People Services - Adults and Health,Mental Health Support,Mental Health,DERBYSHIRE CARE SERVICES,388459,02/08/2022,4011430,837.60,0.00,N/A,N/A
People Services - Adults and Health,Mental Health Support,Mental Health,DERBYSHIRE CARE SERVICES,388459,02/08/2022,4011827,587.74,0.00,N/A,N/A
People Services - Adults and Health,Mental Health Support,Mental Health,DERBYSHIRE CARE SERVICES,388459,02/08/2022,4011672,"2,790.72",0.00,N/A,N/A
People Services - Adults and Health,Sensory Support,Community Support,DERBYSHIRE CARE SERVICES,388459,02/08/2022,4011581,987.82,0.00,N/A,N/A
People Services - Adults and Health,Sensory Support,Community Support,DERBYSHIRE CARE SERVICES,388459,02/08/2022,4011669,987.82,0.00,N/A,N/A
People Services - Adults and Health,Support with Memory and Cognition,Community Support,DERBYSHIRE CARE SERVICES,388459,02/08/2022,4011904,656.35,0.00,N/A,N/A
People Services - Adults and Health,Support with Memory and Cognition,Community Support,DERBYSHIRE CARE SERVICES,388459,02/08/2022,4011894,664.12,0.00,N/A,N/A
People Services - Adults and Health,Support with Memory and Cognition,Community Support,DERBYSHIRE CARE SERVICES,388459,02/08/2022,4011741,639.13,0.00,N/A,N/A
People Services - Adults and Health,Support with Memory and Cognition,Community Support,DERBYSHIRE CARE SERVICES,388459,02/08/2022,4011421,598.12,0.00,N/A,N/A
People Services - Adults and Health,Support with Memory and Cognition,Community Support,DERBYSHIRE CARE SERVICES,388459,02/08/2022,4011990,664.12,0.00,N/A,N/A
People Services - Adults and Health,Support with Memory and Cognition,Community Support,DERBYSHIRE CARE SERVICES,388459,02/08/2022,4011811,658.83,0.00,N/A,N/A
People Services - Adults and Health,Support with Memory and Cognition,Community Support,DERBYSHIRE CARE SERVICES,388459,02/08/2022,4011810,585.32,0.00,N/A,N/A
People Services - Adults and Health,Support with Memory and Cognition,Community Support,DERBYSHIRE CARE SERVICES,388459,02/08/2022,4011807,664.12,0.00,N/A,N/A
People Services - Adults and Health,Support with Memory and Cognition,Community Support,DERBYSHIRE CARE SERVICES,388459,02/08/2022,4011491,664.12,0.00,N/A,N/A
Corporate,Corporate,Corporate,DERBYSHIRE COUNTY COUNCIL,1042479,02/08/2022,4008911,"299,066.18",0.00,N/A,N/A
People Services - Children & Young People,Non Delegated Schools Budget,Schools Block,DERBYSHIRE COUNTY COUNCIL,1463479,02/08/2022,4009479,630.00,0.00,N/A,N/A
People Services - Children & Young People,Non Delegated Schools Budget,Schools Block,DERBYSHIRE COUNTY COUNCIL,1779476,02/08/2022,4009451,955.00,0.00,N/A,N/A
People Services - Adults and Health,Public Health,Public Health,DERBYSHIRE HEALTHCARE NHS FOUNDATION TRUST,107468,02/08/2022,4009402,"62,500.00",0.00,Integrated Substance Misuse Service,Healthcare Services
People Services - Adults and Health,Public Health,Public Health,DERBYSHIRE HEALTHCARE NHS FOUNDATION TRUST,107468,02/08/2022,4009399,"75,000.00",0.00,N/A,N/A
People Services - Children & Young People,Non Delegated Schools Budget,Schools Block,DERRYMOUNT SCHOOL,1244484,02/08/2022,4009487,940.00,0.00,Pupil Premium Grant,Public Utilities and Public Sector Relat
People Services - Children & Young People,Commissioning,Non-Schools,DIAMOND PRINT LTD,84579,02/08/2022,4007166,623.00,0.00,Home To School Transport - SEN,Editorial and Design and Graphic and Fin
People Services - Children & Young People,Non Delegated Schools Budget,Schools Block,EAST MIDLANDS EDUCATION TRUST,1737490,02/08/2022,4009465,"2,500.00",0.00,N/A,N/A
People Services - Children & Young People,Commissioning - Schools Block,Schools Block,EASTWOOD GRANGE PRIORY,194474,02/08/2022,4012186,"2,715.43",0.00,Out of Authority Education Placements,Education and Training Services
Communities & Place,Leisure,"Leisure, Culture and Tourism",EDEN FARM LTD,238423,02/08/2022,4009361,545.41,0.00,Derby Live Catering - Markeaton Park,Food Beverage and Tobacco Products-Beverages
People Services - Children & Young People,Non Delegated Schools Budget,Schools Block,EDUCATION FOR 21ST CENTURY,1462481,02/08/2022,4009471,"1,214.00",0.00,N/A,N/A
People Services - Adults and Health,Physical Support,Community Support,ELLIE SUNRISE HEALTHCARE LTD,1607481,02/08/2022,4011467,769.44,0.00,N/A,N/A
People Services - Adults and Health,Physical Support,Community Support,ELLIE SUNRISE HEALTHCARE LTD,1607481,02/08/2022,4011541,769.44,0.00,N/A,N/A
People Services - Adults and Health,Physical Support,Community Support,ELLIE SUNRISE HEALTHCARE LTD,1607481,02/08/2022,4011771,762.56,0.00,N/A,N/A
People Services - Adults and Health,Physical Support,Community Support,ELLIE SUNRISE HEALTHCARE LTD,1607481,02/08/2022,4012026,768.44,0.00,N/A,N/A
People Services - Adults and Health,Mental Health Support,Mental Health,ELLIE SUNRISE HEALTHCARE LTD,1607481,02/08/2022,4011623,"1,073.28",0.00,N/A,N/A
People Services - Adults and Health,Mental Health Support,Mental Health,ELLIE SUNRISE HEALTHCARE LTD,1607481,02/08/2022,4011696,944.32,0.00,N/A,N/A
People Services - Children & Young People,Commissioning - Schools Block,Schools Block,ESTEEM MULTI ACADEMY TRUST,1058479,02/08/2022,4009290,"34,316.00",0.00,Out of Authority Education Placements,Education and Training Services
People Services - Children & Young People,Commissioning - Schools Block,Schools Block,ESTEEM MULTI ACADEMY TRUST,1058474,02/08/2022,4009505,"17,470.00",0.00,Out of Authority Education Placements,Education and Training Services
People Services - Adults and Health,Physical Support,Community Support,ETIQUETTE RECRUITMENT AND STAFFING LTD,1152476,02/08/2022,4011949,845.76,0.00,N/A,N/A
People Services - Adults and Health,Physical Support,Community Support,ETIQUETTE RECRUITMENT AND STAFFING LTD,1152476,02/08/2022,4011468,"1,107.04",0.00,N/A,N/A
People Services - Adults and Health,Physical Support,Community Support,ETIQUETTE RECRUITMENT AND STAFFING LTD,1152476,02/08/2022,4012035,"1,107.04",0.00,N/A,N/A
People Services - Adults and Health,Physical Support,Community Support,ETIQUETTE RECRUITMENT AND STAFFING LTD,1152476,02/08/2022,4011706,845.76,0.00,N/A,N/A
People Services - Children & Young People,Commissioning,Non-Schools,EVERSHEDS SUTHERLAND INTERNATIONAL LLP,518442,02/08/2022,4009309,"1,060.00",0.00,Grouped Schools PFI Revenue,Management and Business Professionals an
Communities & Place,"Trading Standards, Food and Safety, Bereavement Services and Building Consultanc",Public Protection and Streetride,FACULTATIEVE TECHNOLOGIES,1528,02/08/2022,4009366,634.27,0.00,Crematorium,Politics and Civic Affairs Services
Corporate Resources,Financial Services,Financial Services,FINANCIAL DATA MANAGEMENT LTD,1503503,02/08/2022,4006756,"1,186.38",0.00,N/A,N/A
Communities & Place,Regeneration and Major Projects,City Development & Growth,GELDARDS LLP,1431476,02/08/2022,4008918,"1,557.00",0.00,N/A,N/A
Communities & Place,Traffic & Transportation,Planning & Transportation,GEZE UK LTD,14354,02/08/2022,4009301,530.00,0.00,Central Traffic Management,Electrical systems and Lighting and comp
People Services - Children & Young People,Commissioning - Schools Block,Schools Block,GLOBAL MEDIATION,386438,02/08/2022,4012189,"1,230.00",0.00,Out of Authority Education Placements,Healthcare Services
People Services - Children & Young People,Commissioning - Schools Block,Schools Block,GLOBAL MEDIATION,386438,02/08/2022,4008998,"2,580.00",0.00,Out of Authority Education Placements,Healthcare Services
People Services - Children & Young People,Commissioning - Schools Block,Schools Block,GLOBAL MEDIATION,386438,02/08/2022,3979903,"1,195.00",0.00,Out of Authority Education Placements,Healthcare Services
Neighbourhoods,Neighbourhoods,Neighbourhoods,GREG LONG TREE CARE,1624477,02/08/2022,4009320,"2,100.00",0.00,N/A,N/A
Adults Health and Housing,Adults Health and Housing,Adults Health and Housing,HALSALL LLOYD LLP,1864469,02/08/2022,4012211,"4,320.00",0.00,N/A,N/A
Communities & Place,"Waste, Street Cleansing & Fleet",Public Protection and Streetride,HARTSHORNE MOTOR SERVICES LTD,126441,02/08/2022,4009017,"2,047.65",0.00,Vehicle Maintenance,Commercial and Military and Private Vehi
Corporate Resources,Communication and Consultation,Coroprate Core,HICKLING AND SQUIRES LTD,1103476,02/08/2022,4006805,"3,470.00",0.00,Corporate Communications,Editorial and Design and Graphic and Fin
People Services - Children & Young People,Early Help & Children’s Safeguarding,Non-Schools,HILBROKE HOUSE LTD,1002472,02/08/2022,4008917,980.00,0.00,Unsupported Foreign Nationals,Travel and Food and Lodging and Entertai
People Services - Children & Young People,Early Help & Children’s Safeguarding,Non-Schools,HILBROKE HOUSE LTD,1002472,02/08/2022,4008916,980.00,0.00,Unsupported Foreign Nationals,Travel and Food and Lodging and Entertai
People Services - Adults and Health,Social Care Activities,Home First,HOLDSWORTH FOODS,1111476,02/08/2022,4012205,520.22,0.00,Home First: Perth House,Food Beverage and Tobacco Products
People Services - Adults and Health,Physical Support,Community Support,HOME SUPPORT SERVICES,1120475,02/08/2022,4011644,"1,385.60",0.00,N/A,N/A
People Services - Adults and Health,Physical Support,Community Support,HOME SUPPORT SERVICES,1120475,02/08/2022,4011971,512.96,0.00,N/A,N/A
People Services - Adults and Health,Physical Support,Community Support,HOME SUPPORT SERVICES,1120475,02/08/2022,4011796,"1,417.28",0.00,N/A,N/A
People Services - Adults and Health,Physical Support,Community Support,HOME SUPPORT SERVICES,1120475,02/08/2022,4011482,"1,481.76",0.00,N/A,N/A
People Services - Adults and Health,Mental Health Support,Mental Health,HOME SUPPORT SERVICES,1120475,02/08/2022,4011794,752.18,0.00,N/A,N/A
People Services - Adults and Health,Mental Health Support,Mental Health,HOME SUPPORT SERVICES,1120475,02/08/2022,4011793,543.72,0.00,N/A,N/A
People Services - Adults and Health,Support with Memory and Cognition,Community Support,HOME SUPPORT SERVICES,1120475,02/08/2022,4011969,650.43,0.00,N/A,N/A
People Services - Adults and Health,Physical Support,Community Support,I CARE GB LTD,1666481,02/08/2022,4011889,829.32,0.00,N/A,N/A
People Services - Adults and Health,Physical Support,Community Support,I CARE GB LTD,1666481,02/08/2022,4011739,785.16,0.00,N/A,N/A
People Services - Adults and Health,Physical Support,Community Support,I CARE GB LTD,1666481,02/08/2022,4011656,"1,011.47",0.00,N/A,N/A
People Services - Adults and Health,Learning Disability Support,Community Support,I CARE GB LTD,1666481,02/08/2022,4011418,"1,415.74",0.00,N/A,N/A
People Services - Adults and Health,Learning Disability Support,Community Support,I CARE GB LTD,1666481,02/08/2022,4011417,"1,415.74",0.00,N/A,N/A
People Services - Adults and Health,Learning Disability Support,Community Support,I CARE GB LTD,1666481,02/08/2022,4011655,"1,420.37",0.00,N/A,N/A
People Services - Adults and Health,Learning Disability Support,Community Support,I CARE GB LTD,1666481,02/08/2022,4011489,"1,440.33",0.00,N/A,N/A
Corporate Resources,Property Design & Maintenance,Property,INDUSTRIAL PROCESS PUMPS LTD,188067,02/08/2022,4011188,578.00,0.00,N/A,N/A
Corporate Resources,Property Design & Maintenance,Property,INDUSTRIAL PROCESS PUMPS LTD,188067,02/08/2022,4011119,650.00,0.00,N/A,N/A
Corporate Resources,Property Design & Maintenance,Property,INDUSTRIAL PROCESS PUMPS LTD,188067,02/08/2022,4011167,820.00,0.00,N/A,N/A
Corporate Resources,Property Design & Maintenance,Property,INDUSTRIAL PROCESS PUMPS LTD,188067,02/08/2022,4011147,"1,892.00",0.00,N/A,N/A
Corporate Resources,Property Design & Maintenance,Property,KONE PLC,188097,02/08/2022,4011191,661.54,0.00,N/A,N/A
Corporate Resources,Property Design & Maintenance,Property,KONE PLC,188097,02/08/2022,4011106,998.89,0.00,N/A,N/A
Corporate Resources,Property Design & Maintenance,Property,KONE PLC,188097,02/08/2022,4011181,"4,998.00",0.00,N/A,N/A
Corporate Resources,Property Design & Maintenance,Property,KONE PLC,188097,02/08/2022,4011182,"3,675.82",0.00,N/A,N/A
Neighbourhoods,Neighbourhoods,Neighbourhoods,KORDUS CONSULTING LIMITED,1746495,02/08/2022,4011135,"1,162.82",0.00,N/A,N/A
Corporate Resources,Human Resources and Organisational Development,Human Resources and Organisational Development,L30 RELATIONAL SYSTEMS LTD,1723478,02/08/2022,4012158,"8,272.50",0.00,N/A,N/A
People Services - Children & Young People,Non Delegated Schools Budget,Schools Block,LANDAU FORTE CHARITABLE TRUST,1710471,02/08/2022,4009488,690.00,0.00,N/A,N/A
People Services - Children & Young People,Non Delegated Schools Budget,Schools Block,LEAD ACADEMY TRUST,1758494,02/08/2022,4009452,630.00,0.00,N/A,N/A
People Services - Children & Young People,Non Delegated Schools Budget,Schools Block,LEARNERS TRUST,1123468,02/08/2022,4008968,"10,000.00",0.00,N/A,N/A
Corporate Resources,Communication and Consultation,Coroprate Core,LEICESTERSHIRE COUNTY COUNCIL,2371,02/08/2022,4000081,"1,196.90",0.00,Corporate Communications,Education and Training Services
Corporate Resources,Financial Services,Financial Services,LIBERATA UK LTD,109209,02/08/2022,4008922,"16,684.03",0.00,Housing Benefits & C Tax Support Admin,Management and Business Professionals an
Corporate Resources,Financial Services,Financial Services,LIBERATA UK LTD,109209,02/08/2022,4008921,"16,469.46",0.00,Housing Benefits & C Tax Support Admin,Management and Business Professionals an
People Services - Adults and Health,Finance,Commissioning,LIQUID LOGIC LTD,944482,02/08/2022,3943302,"4,742.68",0.00,Finance,Information Technology Broadcasting and
People Services - Adults and Health,Learning Disability Support,Community Support,MACKWORTH SUPPORTED HOUSING,2553,02/08/2022,4008933,"1,674.40",0.00,Central OP (over 65) LD - DP/Mgd,Healthcare Services
Communities & Place,Strategic Housing,City Development & Growth,MANCHESTER CITY COUNCIL,1565477,02/08/2022,4008914,"1,540.00",0.00,N/A,N/A
Corporate Resources,Property Design & Maintenance,Property,MANOR ELECTRICAL SERVICES,1799473,02/08/2022,4011145,875.43,0.00,N/A,N/A
Corporate Resources,Property Design & Maintenance,Property,MANOR ELECTRICAL SERVICES,1799473,02/08/2022,4011093,717.00,0.00,N/A,N/A
Corporate Resources,Property Design & Maintenance,Property,MANOR ELECTRICAL SERVICES,1799473,02/08/2022,4011199,"2,598.00",0.00,N/A,N/A
Corporate Resources,Property Design & Maintenance,Property,MANOR ELECTRICAL SERVICES,1799473,02/08/2022,4011092,697.00,0.00,N/A,N/A
Corporate,Corporate,Corporate,MATRIX SCM LTD,822477,02/08/2022,4009317,"142,484.73",0.00,Temporary Workers Control A/C,Management and Business Professionals an
People Services - Adults and Health,Mental Health Support,Mental Health,MED CARE HOME SERVICES LIMITED,1582475,02/08/2022,3970840,"4,267.80",0.00,N/A,N/A
People Services - Adults and Health,Mental Health Support,Mental Health,MED CARE HOME SERVICES LIMITED,1582475,02/08/2022,3970834,"4,267.80",0.00,N/A,N/A
People Services - Adults and Health,Mental Health Support,Mental Health,MED CARE HOME SERVICES LIMITED,1582475,02/08/2022,3970466,"4,267.80",0.00,N/A,N/A
People Services - Adults and Health,Mental Health Support,Mental Health,MED CARE HOME SERVICES LIMITED,1582475,02/08/2022,3970465,"4,267.80",0.00,N/A,N/A
Corporate Resources,Property Design & Maintenance,Property,MIDLAND COUNTIES HEATING SERVICES,188123,02/08/2022,4011217,668.64,0.00,N/A,N/A
Corporate Resources,Property Design & Maintenance,Property,MIDLAND COUNTIES HEATING SERVICES,188123,02/08/2022,4011115,728.13,0.00,N/A,N/A
Corporate Resources,Property Design & Maintenance,Property,MIDLAND COUNTIES HEATING SERVICES,188123,02/08/2022,4011213,649.40,0.00,N/A,N/A
Corporate Resources,Property Design & Maintenance,Property,MIDLAND COUNTIES HEATING SERVICES,188123,02/08/2022,4011139,650.42,0.00,N/A,N/A
Corporate Resources,Property Design & Maintenance,Property,MITIE TECHNICAL FACILITIES MANAGEMENT LTD,188130,02/08/2022,4011103,744.00,0.00,N/A,N/A
Corporate Resources,Property Design & Maintenance,Property,MITIE TECHNICAL FACILITIES MANAGEMENT LTD,188130,02/08/2022,4011123,510.13,0.00,N/A,N/A
Corporate Resources,Property Design & Maintenance,Property,MITIE TECHNICAL FACILITIES MANAGEMENT LTD,188130,02/08/2022,4011120,"2,160.40",0.00,N/A,N/A
Corporate Resources,Property Design & Maintenance,Property,MITIE TECHNICAL FACILITIES MANAGEMENT LTD,188130,02/08/2022,4011117,856.99,0.00,N/A,N/A
Corporate Resources,Property Design & Maintenance,Property,MITIE TECHNICAL FACILITIES MANAGEMENT LTD,188130,02/08/2022,4011085,937.09,0.00,N/A,N/A
Communities & Place,Traffic & Transportation,Planning & Transportation,MPD FM LTD,1395472,02/08/2022,4012649,"26,452.00",0.00,N/A,N/A
Communities & Place,Traffic & Transportation,Planning & Transportation,MPD FM LTD,1395472,02/08/2022,4012648,"27,265.96",0.00,N/A,N/A
Communities & Place,Traffic & Transportation,Planning & Transportation,MPD FM LTD,1395472,02/08/2022,4012647,"26,622.98",0.00,N/A,N/A
People Services - Adults and Health,Learning Disability Support,Transitions and Ordinary Lives,NASSH HEALTHCARE LTD,1568481,02/08/2022,4011462,"1,980.00",0.00,N/A,N/A
Communities & Place,Traffic & Transportation,Planning & Transportation,NATIONAL EXPRESS LTD,3493,02/08/2022,4008953,"4,706.98",0.00,N/A,N/A
People Services - Children & Young People,Non Delegated Schools Budget,Schools Block,NCC RE NORTH CLIFTON PRIMARY SCHOOL,696447,02/08/2022,4009462,540.00,0.00,N/A,N/A
People Services - Children & Young People,Non Delegated Schools Budget,Schools Block,NCC RE NORTH CLIFTON PRIMARY SCHOOL,696447,02/08/2022,4009460,540.00,0.00,N/A,N/A
Communities & Place,Traffic & Transportation,Planning & Transportation,NOTTINGHAM CITY COUNCIL,3638,02/08/2022,4008910,"12,150.00",0.00,Concess Fares - DCC Scheme,Organizations and Clubs-Clubs
People Services - Children & Young People,Commissioning - Schools Block,Schools Block,NOTTINGHAMSHIRE COUNTY COUNCIL,34269,02/08/2022,3987463,"4,648.00",0.00,Out of Authority Education Placements,Education and Training Services
People Services - Children & Young People,Integrated Services,Non-Schools,NOTTINGHAMSHIRE COUNTY COUNCIL,34269,02/08/2022,3987463,"4,648.00",0.00,Fieldwork Teams,Education and Training Services
Communities & Place,"Culture, Business Development & Tourism","Leisure, Culture and Tourism",ODDSOCKS COMMUNICATIONS LTD,111956,02/08/2022,4008887,"5,317.04",0.00,N/A,N/A
People Services - Children & Young People,Non Delegated Schools Budget,Schools Block,ODYSSEY COLLABORATIVE TRUST,1082477,02/08/2022,4009466,"4,200.00",0.00,N/A,N/A
People Services - Children & Young People,Non Delegated Schools Budget,Schools Block,ODYSSEY COLLABORATIVE TRUST,1028477,02/08/2022,4009463,804.00,0.00,Pupil Premium Grant,Public Utilities and Public Sector Relat
Communities & Place,"Environmental Protection, Housing Standards, Licensing, Emergency Planning",Public Protection and Streetride,OLA UK PRIVATE LIMITED,1880478,02/08/2022,4000148,"1,740.00",0.00,N/A,N/A
People Services - Children & Young People,Non Delegated Schools Budget,Schools Block,OLD BASFORD SCHOOL,1493483,02/08/2022,4009486,"1,151.00",0.00,N/A,N/A
Communities & Place,"Waste, Street Cleansing & Fleet",Public Protection and Streetride,PARTSPLUS,1368477,02/08/2022,4012179,812.04,0.00,N/A,N/A
Communities & Place,"Waste, Street Cleansing & Fleet",Public Protection and Streetride,PARTSPLUS,1368477,02/08/2022,4012173,840.10,0.00,N/A,N/A
Communities & Place,"Waste, Street Cleansing & Fleet",Public Protection and Streetride,PARTSPLUS,1368477,02/08/2022,4012165,767.10,0.00,N/A,N/A
Communities & Place,Traffic & Transportation,Planning & Transportation,PATROL,1630491,02/08/2022,4009364,"5,626.80",0.00,N/A,N/A
Communities & Place,Traffic & Transportation,Planning & Transportation,PATROL,1630490,02/08/2022,4012193,"3,463.20",0.00,N/A,N/A
Corporate Resources,Digital Services & Customer Management,Digital Services & Customer Management,PAYPOINT PAYMENT SERVICES LTD,1128473,02/08/2022,4012615,"6,454.62",0.00,N/A,N/A
People Services - Adults and Health,Mental Health Support,Mental Health,PEOPLE POTENTIAL POSSIBILITIES,125409,02/08/2022,4008926,595.84,0.00,N/A,N/A
Corporate Resources,Financial Services,Financial Services,PIXEL FINANCIAL MANAGEMENT LIMITED,1292468,02/08/2022,4009016,"1,391.00",0.00,Finance Department - Accountancy,Education and Training Services
People Services - Adults and Health,Social Care Activities,Mental Health,PROCTOR CONSULTANCY LTD,1245484,02/08/2022,4012222,"1,500.00",0.00,Safeguarding Board,Management and Business Professionals an
People Services - Adults and Health,Physical Support,Community Support,PROFAD CARE AGENCY LIMITED,1323505,02/08/2022,4012046,751.12,0.00,N/A,N/A
People Services - Adults and Health,Physical Support,Community Support,PROFAD CARE AGENCY LIMITED,1323505,02/08/2022,4011878,984.72,0.00,N/A,N/A
People Services - Adults and Health,Physical Support,Community Support,PROFAD CARE AGENCY LIMITED,1323505,02/08/2022,4011877,626.24,0.00,N/A,N/A
People Services - Adults and Health,Physical Support,Community Support,PROFAD CARE AGENCY LIMITED,1323505,02/08/2022,4011722,984.72,0.00,N/A,N/A
People Services - Adults and Health,Physical Support,Community Support,PROFAD CARE AGENCY LIMITED,1323505,02/08/2022,4011787,629.00,0.00,N/A,N/A
People Services - Adults and Health,Physical Support,Community Support,PROFAD CARE AGENCY LIMITED,1323505,02/08/2022,4011881,"1,083.32",0.00,N/A,N/A
People Services - Adults and Health,Physical Support,Community Support,PROFAD CARE AGENCY LIMITED,1323505,02/08/2022,4011961,512.96,0.00,N/A,N/A
People Services - Adults and Health,Physical Support,Community Support,PROFAD CARE AGENCY LIMITED,1323505,02/08/2022,4012048,995.36,0.00,N/A,N/A
People Services - Adults and Health,Physical Support,Community Support,PROFAD CARE AGENCY LIMITED,1323505,02/08/2022,4011880,856.64,0.00,N/A,N/A
People Services - Adults and Health,Physical Support,Community Support,PROFAD CARE AGENCY LIMITED,1323505,02/08/2022,4012047,856.64,0.00,N/A,N/A
People Services - Adults and Health,Physical Support,Community Support,PROFAD CARE AGENCY LIMITED,1323505,02/08/2022,4011879,635.36,0.00,N/A,N/A
People Services - Adults and Health,Physical Support,Community Support,PROFAD CARE AGENCY LIMITED,1323505,02/08/2022,4011551,995.36,0.00,N/A,N/A
People Services - Adults and Health,Mental Health Support,Mental Health,PROFAD CARE AGENCY LIMITED,1323505,02/08/2022,4011552,907.60,0.00,N/A,N/A
Adults Health and Housing,Adults Health and Housing,Adults Health and Housing,RAWSONS (DERBY),4417,02/08/2022,4008939,"1,075.00",0.00,REFCUS - Disabled Facilities Grant 96 Act,Furniture and Furnishings
People Services - Adults and Health,Shared Lives,Community Support,REDACTED - PERSONAL DATA,1115469,02/08/2022,4011365,834.40,0.00,N/A,N/A
People Services - Children & Young People,Commissioning,Non-Schools,REDACTED - PERSONAL DATA,1033481,02/08/2022,4009503,"1,120.00",0.00,N/A,N/A
People Services - Adults and Health,Social Care Activities,Community Support,REDACTED - PERSONAL DATA,1888469,02/08/2022,4012227,"2,500.67",0.00,N/A,N/A
People Services - Adults and Health,Shared Lives,Community Support,REDACTED - PERSONAL DATA,496461,02/08/2022,4011246,"2,444.92",0.00,N/A,N/A
People Services - Children & Young People,Integrated Services,Non-Schools,REDACTED - PERSONAL DATA,1884473,02/08/2022,4011023,"1,575.03",0.00,N/A,N/A
People Services - Children & Young People,Commissioning,Non-Schools,REDACTED - PERSONAL DATA,388443,02/08/2022,4009502,560.00,0.00,N/A,N/A
People Services - Children & Young People,Early Help & Children’s Safeguarding,Non-Schools,REDACTED - PERSONAL DATA,1782480,02/08/2022,4009744,545.54,0.00,N/A,N/A
People Services - Children & Young People,Commissioning,Non-Schools,REDACTED - PERSONAL DATA,1877468,02/08/2022,4009497,560.00,0.00,N/A,N/A
People Services - Adults and Health,Physical Support,Community Support,REDACTED - PERSONAL DATA,1883470,02/08/2022,4009395,"1,229.35",0.00,N/A,N/A
People Services - Adults and Health,Physical Support,Community Support,REDACTED - PERSONAL DATA,1883470,02/08/2022,4009430,554.90,0.00,N/A,N/A
Communities & Place,Community Safety,Public Protection and Streetride,REDACTED - PERSONAL DATA,1885477,02/08/2022,4009300,"4,640.00",0.00,N/A,N/A
People Services - Children & Young People,Integrated Services,Non-Schools,REDACTED - PERSONAL DATA,1279470,02/08/2022,4010415,836.54,0.00,N/A,N/A
People Services - Children & Young People,Early Help & Children’s Safeguarding,Non-Schools,REDACTED - PERSONAL DATA,1632496,02/08/2022,4010899,639.00,0.00,N/A,N/A
People Services - Adults and Health,Shared Lives,Community Support,REDACTED - PERSONAL DATA,1586475,02/08/2022,4011268,625.76,0.00,N/A,N/A
People Services - Adults and Health,Shared Lives,Community Support,REDACTED - PERSONAL DATA,1586475,02/08/2022,4011228,"1,742.60",0.00,N/A,N/A
People Services - Adults and Health,Shared Lives,Community Support,REDACTED - PERSONAL DATA,1254475,02/08/2022,4011274,625.76,0.00,N/A,N/A
People Services - Adults and Health,Shared Lives,Community Support,REDACTED - PERSONAL DATA,1254475,02/08/2022,4011251,763.76,0.00,N/A,N/A
People Services - Adults and Health,Mental Health Support,Mental Health,REDACTED - PERSONAL DATA,1254475,02/08/2022,4011346,"2,692.52",0.00,N/A,N/A
People Services - Adults and Health,Mental Health Support,Mental Health,REDACTED - PERSONAL DATA,496477,02/08/2022,4011311,625.80,0.00,N/A,N/A
People Services - Children & Young People,Commissioning,Non-Schools,REDACTED - PERSONAL DATA,1588475,02/08/2022,4009504,560.00,0.00,N/A,N/A
People Services - Children & Young People,Early Help & Children’s Safeguarding,Non-Schools,REDACTED - PERSONAL DATA,1637494,02/08/2022,4009355,950.00,0.00,N/A,N/A
People Services - Children & Young People,Integrated Services,Non-Schools,REDACTED - PERSONAL DATA,1323512,02/08/2022,4011011,"1,000.00",0.00,N/A,N/A
People Services - Children & Young People,Integrated Services,Non-Schools,REDACTED - PERSONAL DATA,1323512,02/08/2022,4010973,"1,000.00",0.00,N/A,N/A
People Services - Adults and Health,Learning Disability Support,Transitions and Ordinary Lives,REDACTED - PERSONAL DATA,1178477,02/08/2022,4011392,625.76,0.00,N/A,N/A
People Services - Children & Young People,Integrated Services,Non-Schools,REDACTED - PERSONAL DATA,929469,02/08/2022,4010862,866.27,0.00,N/A,N/A
People Services - Adults and Health,Shared Lives,Community Support,REDACTED - PERSONAL DATA,929470,02/08/2022,4011399,"2,121.72",0.00,N/A,N/A
People Services - Adults and Health,Learning Disability Support,Transitions and Ordinary Lives,REDACTED - PERSONAL DATA,496484,02/08/2022,4011283,"1,162.92",0.00,N/A,N/A
People Services - Adults and Health,Shared Lives,Community Support,REDACTED - PERSONAL DATA,496484,02/08/2022,4011356,512.88,0.00,N/A,N/A
People Services - Children & Young People,Commissioning,Non-Schools,REDACTED - PERSONAL DATA,822442,02/08/2022,4009498,560.00,0.00,N/A,N/A
People Services - Children & Young People,Non Delegated Schools Budget,Schools Block,REDACTED - PERSONAL DATA,1537484,02/08/2022,4009484,"1,325.00",0.00,N/A,N/A
People Services - Adults and Health,Learning Disability Support,Transitions and Ordinary Lives,REDACTED - PERSONAL DATA,1213480,02/08/2022,4011224,625.76,0.00,N/A,N/A
People Services - Adults and Health,Shared Lives,Community Support,REDACTED - PERSONAL DATA,1213480,02/08/2022,4011341,"1,514.48",0.00,N/A,N/A
People Services - Children & Young People,Early Help & Children’s Safeguarding,Non-Schools,REDACTED - PERSONAL DATA,1884471,02/08/2022,4009874,"1,422.72",0.00,N/A,N/A
People Services - Adults and Health,Shared Lives,Community Support,REDACTED - PERSONAL DATA,496475,02/08/2022,4011315,"1,514.48",0.00,N/A,N/A
People Services - Adults and Health,Learning Disability Support,Transitions and Ordinary Lives,REDACTED - PERSONAL DATA,1049470,02/08/2022,4011337,"1,514.48",0.00,N/A,N/A
People Services - Adults and Health,Shared Lives,Community Support,REDACTED - PERSONAL DATA,1022474,02/08/2022,4011254,"1,514.48",0.00,N/A,N/A
People Services - Adults and Health,Shared Lives,Community Support,REDACTED - PERSONAL DATA,1022474,02/08/2022,4011235,"1,514.48",0.00,N/A,N/A
People Services - Adults and Health,Shared Lives,Community Support,REDACTED - PERSONAL DATA,1022474,02/08/2022,4011253,"1,514.48",0.00,N/A,N/A
People Services - Adults and Health,Shared Lives,Community Support,REDACTED - PERSONAL DATA,1389474,02/08/2022,4011279,625.76,0.00,N/A,N/A
People Services - Adults and Health,Shared Lives,Community Support,REDACTED - PERSONAL DATA,1499500,02/08/2022,4011329,625.80,0.00,N/A,N/A
People Services - Children & Young People,Integrated Services,Non-Schools,REDACTED - PERSONAL DATA,1577476,02/08/2022,4011046,705.00,0.00,N/A,N/A
People Services - Adults and Health,Learning Disability Support,Transitions and Ordinary Lives,REDACTED - PERSONAL DATA,1123472,02/08/2022,4011325,"1,514.48",0.00,N/A,N/A
People Services - Children & Young People,Integrated Services,Non-Schools,REDACTED - PERSONAL DATA,249459,02/08/2022,4010455,700.00,0.00,N/A,N/A
People Services - Adults and Health,Shared Lives,Community Support,REDACTED - PERSONAL DATA,496457,02/08/2022,4011289,834.40,0.00,N/A,N/A
People Services - Children & Young People,Commissioning,Non-Schools,REDACTED - PERSONAL DATA,1869469,02/08/2022,4009494,560.00,0.00,N/A,N/A
People Services - Children & Young People,Commissioning,Non-Schools,REDACTED - PERSONAL DATA,1886469,02/08/2022,4009499,560.00,0.00,N/A,N/A
People Services - Children & Young People,Early Help & Children’s Safeguarding,Non-Schools,REDACTED - PERSONAL DATA,1882469,02/08/2022,4012184,"5,503.85",0.00,N/A,N/A
People Services - Adults and Health,Shared Lives,Community Support,REDACTED - PERSONAL DATA,927477,02/08/2022,4011297,"1,043.00",0.00,N/A,N/A
People Services - Adults and Health,Shared Lives,Community Support,REDACTED - PERSONAL DATA,927477,02/08/2022,4011234,625.80,0.00,N/A,N/A
People Services - Adults and Health,Learning Disability Support,Transitions and Ordinary Lives,REDACTED - PERSONAL DATA,496445,02/08/2022,4011345,"1,377.60",0.00,N/A,N/A
People Services - Adults and Health,Shared Lives,Community Support,REDACTED - PERSONAL DATA,496445,02/08/2022,4011317,834.40,0.00,N/A,N/A
People Services - Adults and Health,Shared Lives,Community Support,REDACTED - PERSONAL DATA,883472,02/08/2022,4011267,625.80,0.00,N/A,N/A
People Services - Adults and Health,Shared Lives,Community Support,REDACTED - PERSONAL DATA,496494,02/08/2022,4011339,625.80,0.00,N/A,N/A
People Services - Adults and Health,Shared Lives,Community Support,REDACTED - PERSONAL DATA,1389472,02/08/2022,4011355,"1,795.08",0.00,N/A,N/A
People Services - Children & Young People,Early Help & Children’s Safeguarding,Non-Schools,REDACTED - PERSONAL DATA,1654484,02/08/2022,4008993,850.00,0.00,N/A,N/A
People Services - Children & Young People,Early Help & Children’s Safeguarding,Non-Schools,REDACTED - PERSONAL DATA,1006470,02/08/2022,4008996,550.00,0.00,N/A,N/A
People Services - Children & Young People,Early Help & Children’s Safeguarding,Non-Schools,REDACTED - PERSONAL DATA,1604476,02/08/2022,3998709,850.00,0.00,N/A,N/A
People Services - Children & Young People,Early Help & Children’s Safeguarding,Non-Schools,REDACTED - PERSONAL DATA,273400,02/08/2022,3992750,740.00,0.00,N/A,N/A
People Services - Adults and Health,Shared Lives,Community Support,REDACTED - PERSONAL DATA,1414493,02/08/2022,4011272,512.88,0.00,N/A,N/A
People Services - Adults and Health,Shared Lives,Community Support,REDACTED - PERSONAL DATA,1414493,02/08/2022,4011230,625.80,0.00,N/A,N/A
People Services - Adults and Health,Learning Disability Support,Transitions and Ordinary Lives,REDACTED - PERSONAL DATA,715474,02/08/2022,4011319,"1,514.48",0.00,N/A,N/A
People Services - Adults and Health,Learning Disability Support,Transitions and Ordinary Lives,REDACTED - PERSONAL DATA,715474,02/08/2022,4011232,"1,514.48",0.00,N/A,N/A
People Services - Adults and Health,Mental Health Support,Mental Health,REDACTED - PERSONAL DATA,1069478,02/08/2022,4011323,938.64,0.00,N/A,N/A
People Services - Children & Young People,Integrated Services,Non-Schools,REDACTED - PERSONAL DATA,1359507,02/08/2022,4011045,646.85,0.00,N/A,N/A
People Services - Children & Young People,Commissioning,Non-Schools,REDACTED - PERSONAL DATA,861449,02/08/2022,4009500,560.00,0.00,N/A,N/A
People Services - Children & Young People,Integrated Services,Non-Schools,REDACTED - PERSONAL DATA,1382477,02/08/2022,4011019,"1,000.00",0.00,N/A,N/A
People Services - Children & Young People,Integrated Services,Non-Schools,REDACTED - PERSONAL DATA,1382477,02/08/2022,4010986,"1,000.00",0.00,N/A,N/A
People Services - Adults and Health,Learning Disability Support,Transitions and Ordinary Lives,REDACTED - PERSONAL DATA,971481,02/08/2022,4011351,"1,162.92",0.00,N/A,N/A
People Services - Adults and Health,Shared Lives,Community Support,REDACTED - PERSONAL DATA,502439,02/08/2022,4011401,625.80,0.00,N/A,N/A
People Services - Children & Young People,Commissioning,Non-Schools,REDACTED - PERSONAL DATA,1791479,02/08/2022,4009496,560.00,0.00,N/A,N/A
People Services - Adults and Health,Mental Health Support,Mental Health,REDACTED - PERSONAL DATA,1694482,02/08/2022,4011258,625.76,0.00,N/A,N/A
People Services - Children & Young People,Early Help & Children’s Safeguarding,Non-Schools,REDACTED - PERSONAL DATA,1714482,02/08/2022,4009944,634.48,0.00,N/A,N/A
People Services - Children & Young People,Commissioning,Non-Schools,REDACTED - PERSONAL DATA,1886470,02/08/2022,4009501,560.00,0.00,N/A,N/A
People Services - Children & Young People,Non Delegated Schools Budget,Schools Block,REDHILL ACADEMY TRUST,1443485,02/08/2022,4009473,"1,042.00",0.00,N/A,N/A
Neighbourhoods,Neighbourhoods,Neighbourhoods,RENEWI UK SERVICES LIMITED,1150478,02/08/2022,4006745,"111,593.62",0.00,Waste Disposal - New Treatment Plant,Environmental Services
Corporate Resources,Facilities Management,Property,RESTORE HARROW GREEN,1636491,02/08/2022,4012137,"5,859.40",0.00,N/A,N/A
Corporate Resources,Facilities Management,Property,RESTORE HARROW GREEN,1636491,02/08/2022,4012137,585.94,0.00,N/A,N/A
People Services - Adults and Health,Learning Disability Support,Community Support,ROYAL MENCAP SOCIETY,1325480,02/08/2022,4011939,880.24,0.00,N/A,N/A
People Services - Adults and Health,Learning Disability Support,Community Support,ROYAL MENCAP SOCIETY,1325480,02/08/2022,4011938,880.24,0.00,N/A,N/A
People Services - Adults and Health,Learning Disability Support,Community Support,ROYAL MENCAP SOCIETY,1325480,02/08/2022,4011764,"1,341.31",0.00,N/A,N/A
People Services - Adults and Health,Learning Disability Support,Community Support,ROYAL MENCAP SOCIETY,1325480,02/08/2022,4011607,"1,319.22",0.00,N/A,N/A
People Services - Adults and Health,Learning Disability Support,Community Support,ROYAL MENCAP SOCIETY,1325480,02/08/2022,4011688,"1,341.32",0.00,N/A,N/A
People Services - Adults and Health,Learning Disability Support,Community Support,ROYAL MENCAP SOCIETY,1325480,02/08/2022,4011523,"3,143.70",0.00,N/A,N/A
People Services - Adults and Health,Learning Disability Support,Community Support,ROYAL MENCAP SOCIETY,1325480,02/08/2022,4011933,"3,143.70",0.00,N/A,N/A
People Services - Adults and Health,Learning Disability Support,Community Support,ROYAL MENCAP SOCIETY,1325480,02/08/2022,4011932,"1,319.22",0.00,N/A,N/A
People Services - Adults and Health,Learning Disability Support,Community Support,ROYAL MENCAP SOCIETY,1325480,02/08/2022,4011605,"1,319.22",0.00,N/A,N/A
People Services - Adults and Health,Learning Disability Support,Community Support,ROYAL MENCAP SOCIETY,1325480,02/08/2022,4012014,898.20,0.00,N/A,N/A
People Services - Adults and Health,Learning Disability Support,Community Support,ROYAL MENCAP SOCIETY,1325480,02/08/2022,4011522,"3,143.70",0.00,N/A,N/A
People Services - Adults and Health,Learning Disability Support,Community Support,ROYAL MENCAP SOCIETY,1325480,02/08/2022,4011519,898.20,0.00,N/A,N/A
People Services - Adults and Health,Learning Disability Support,Transitions and Ordinary Lives,ROYAL MENCAP SOCIETY,1325480,02/08/2022,4011940,739.24,0.00,N/A,N/A
People Services - Adults and Health,Learning Disability Support,Transitions and Ordinary Lives,ROYAL MENCAP SOCIETY,1325480,02/08/2022,4011934,739.24,0.00,N/A,N/A
People Services - Adults and Health,Learning Disability Support,Transitions and Ordinary Lives,ROYAL MENCAP SOCIETY,1325480,02/08/2022,4011917,554.43,0.00,N/A,N/A
People Services - Adults and Health,Learning Disability Support,Transitions and Ordinary Lives,ROYAL MENCAP SOCIETY,1325480,02/08/2022,4011597,739.24,0.00,N/A,N/A
People Services - Adults and Health,Learning Disability Support,Transitions and Ordinary Lives,ROYAL MENCAP SOCIETY,1325480,02/08/2022,4011441,739.24,0.00,N/A,N/A
People Services - Adults and Health,Learning Disability Support,Transitions and Ordinary Lives,ROYAL MENCAP SOCIETY,1325480,02/08/2022,4011439,739.24,0.00,N/A,N/A
People Services - Adults and Health,Learning Disability Support,Transitions and Ordinary Lives,ROYAL MENCAP SOCIETY,1325480,02/08/2022,4011435,739.24,0.00,N/A,N/A
People Services - Adults and Health,Learning Disability Support,Transitions and Ordinary Lives,ROYAL MENCAP SOCIETY,1325480,02/08/2022,4011432,739.24,0.00,N/A,N/A
People Services - Adults and Health,Learning Disability Support,Transitions and Ordinary Lives,ROYAL MENCAP SOCIETY,1325480,02/08/2022,4012020,739.24,0.00,N/A,N/A
People Services - Adults and Health,Learning Disability Support,Transitions and Ordinary Lives,ROYAL MENCAP SOCIETY,1325480,02/08/2022,4012017,739.24,0.00,N/A,N/A
People Services - Adults and Health,Learning Disability Support,Transitions and Ordinary Lives,ROYAL MENCAP SOCIETY,1325480,02/08/2022,4011554,739.24,0.00,N/A,N/A
People Services - Adults and Health,Learning Disability Support,Transitions and Ordinary Lives,ROYAL MENCAP SOCIETY,1325480,02/08/2022,4011834,633.64,0.00,N/A,N/A
People Services - Adults and Health,Learning Disability Support,Transitions and Ordinary Lives,ROYAL MENCAP SOCIETY,1325480,02/08/2022,4011529,739.24,0.00,N/A,N/A
People Services - Adults and Health,Learning Disability Support,Transitions and Ordinary Lives,ROYAL MENCAP SOCIETY,1325480,02/08/2022,4011641,739.24,0.00,N/A,N/A
People Services - Adults and Health,Learning Disability Support,Transitions and Ordinary Lives,ROYAL MENCAP SOCIETY,1325480,02/08/2022,4011943,739.24,0.00,N/A,N/A
People Services - Adults and Health,Learning Disability Support,Transitions and Ordinary Lives,ROYAL MENCAP SOCIETY,1325480,02/08/2022,4011942,"1,459.12",0.00,N/A,N/A
People Services - Adults and Health,Learning Disability Support,Transitions and Ordinary Lives,ROYAL MENCAP SOCIETY,1325480,02/08/2022,4011941,739.24,0.00,N/A,N/A
People Services - Adults and Health,Learning Disability Support,Transitions and Ordinary Lives,ROYAL MENCAP SOCIETY,1325480,02/08/2022,4011935,"2,219.00",0.00,N/A,N/A
People Services - Adults and Health,Learning Disability Support,Transitions and Ordinary Lives,ROYAL MENCAP SOCIETY,1325480,02/08/2022,4011767,"2,219.00",0.00,N/A,N/A
People Services - Adults and Health,Learning Disability Support,Transitions and Ordinary Lives,ROYAL MENCAP SOCIETY,1325480,02/08/2022,4011457,"2,181.20",0.00,N/A,N/A
People Services - Adults and Health,Learning Disability Support,Transitions and Ordinary Lives,ROYAL MENCAP SOCIETY,1325480,02/08/2022,4011455,"2,181.20",0.00,N/A,N/A
People Services - Adults and Health,Learning Disability Support,Transitions and Ordinary Lives,ROYAL MENCAP SOCIETY,1325480,02/08/2022,4011931,"2,220.40",0.00,N/A,N/A
People Services - Adults and Health,Learning Disability Support,Transitions and Ordinary Lives,ROYAL MENCAP SOCIETY,1325480,02/08/2022,4011930,633.64,0.00,N/A,N/A
People Services - Adults and Health,Learning Disability Support,Transitions and Ordinary Lives,ROYAL MENCAP SOCIETY,1325480,02/08/2022,4011927,"2,219.00",0.00,N/A,N/A
People Services - Adults and Health,Learning Disability Support,Transitions and Ordinary Lives,ROYAL MENCAP SOCIETY,1325480,02/08/2022,4011926,634.00,0.00,N/A,N/A
People Services - Adults and Health,Learning Disability Support,Transitions and Ordinary Lives,ROYAL MENCAP SOCIETY,1325480,02/08/2022,4011925,"1,268.00",0.00,N/A,N/A
People Services - Adults and Health,Learning Disability Support,Transitions and Ordinary Lives,ROYAL MENCAP SOCIETY,1325480,02/08/2022,4011924,739.24,0.00,N/A,N/A
People Services - Adults and Health,Learning Disability Support,Transitions and Ordinary Lives,ROYAL MENCAP SOCIETY,1325480,02/08/2022,4011923,739.24,0.00,N/A,N/A
People Services - Adults and Health,Learning Disability Support,Transitions and Ordinary Lives,ROYAL MENCAP SOCIETY,1325480,02/08/2022,4011922,"1,665.30",0.00,N/A,N/A
People Services - Adults and Health,Learning Disability Support,Transitions and Ordinary Lives,ROYAL MENCAP SOCIETY,1325480,02/08/2022,4011766,739.71,0.00,N/A,N/A
People Services - Adults and Health,Learning Disability Support,Transitions and Ordinary Lives,ROYAL MENCAP SOCIETY,1325480,02/08/2022,4011765,618.66,0.00,N/A,N/A
People Services - Adults and Health,Learning Disability Support,Transitions and Ordinary Lives,ROYAL MENCAP SOCIETY,1325480,02/08/2022,4011763,"2,219.00",0.00,N/A,N/A
People Services - Adults and Health,Learning Disability Support,Transitions and Ordinary Lives,ROYAL MENCAP SOCIETY,1325480,02/08/2022,4011762,"2,219.00",0.00,N/A,N/A
People Services - Adults and Health,Learning Disability Support,Transitions and Ordinary Lives,ROYAL MENCAP SOCIETY,1325480,02/08/2022,4011761,"1,598.10",0.00,N/A,N/A
People Services - Adults and Health,Learning Disability Support,Transitions and Ordinary Lives,ROYAL MENCAP SOCIETY,1325480,02/08/2022,4011760,"2,219.00",0.00,N/A,N/A
People Services - Adults and Health,Learning Disability Support,Transitions and Ordinary Lives,ROYAL MENCAP SOCIETY,1325480,02/08/2022,4011759,739.71,0.00,N/A,N/A
People Services - Adults and Health,Learning Disability Support,Transitions and Ordinary Lives,ROYAL MENCAP SOCIETY,1325480,02/08/2022,4011758,634.00,0.00,N/A,N/A
People Services - Adults and Health,Learning Disability Support,Transitions and Ordinary Lives,ROYAL MENCAP SOCIETY,1325480,02/08/2022,4011756,"2,220.40",0.00,N/A,N/A
People Services - Adults and Health,Learning Disability Support,Transitions and Ordinary Lives,ROYAL MENCAP SOCIETY,1325480,02/08/2022,4011755,"2,219.00",0.00,N/A,N/A
People Services - Adults and Health,Learning Disability Support,Transitions and Ordinary Lives,ROYAL MENCAP SOCIETY,1325480,02/08/2022,4011614,"2,219.00",0.00,N/A,N/A
People Services - Adults and Health,Learning Disability Support,Transitions and Ordinary Lives,ROYAL MENCAP SOCIETY,1325480,02/08/2022,4011612,634.00,0.00,N/A,N/A
People Services - Adults and Health,Learning Disability Support,Transitions and Ordinary Lives,ROYAL MENCAP SOCIETY,1325480,02/08/2022,4011454,"1,459.12",0.00,N/A,N/A
People Services - Adults and Health,Learning Disability Support,Transitions and Ordinary Lives,ROYAL MENCAP SOCIETY,1325480,02/08/2022,4011921,"1,664.25",0.00,N/A,N/A
People Services - Adults and Health,Learning Disability Support,Transitions and Ordinary Lives,ROYAL MENCAP SOCIETY,1325480,02/08/2022,4011920,951.00,0.00,N/A,N/A
People Services - Adults and Health,Learning Disability Support,Transitions and Ordinary Lives,ROYAL MENCAP SOCIETY,1325480,02/08/2022,4011919,554.78,0.00,N/A,N/A
People Services - Adults and Health,Learning Disability Support,Transitions and Ordinary Lives,ROYAL MENCAP SOCIETY,1325480,02/08/2022,4011610,"2,220.40",0.00,N/A,N/A
People Services - Adults and Health,Learning Disability Support,Transitions and Ordinary Lives,ROYAL MENCAP SOCIETY,1325480,02/08/2022,4011609,"1,459.12",0.00,N/A,N/A
People Services - Adults and Health,Learning Disability Support,Transitions and Ordinary Lives,ROYAL MENCAP SOCIETY,1325480,02/08/2022,4011754,"2,219.00",0.00,N/A,N/A
People Services - Adults and Health,Learning Disability Support,Transitions and Ordinary Lives,ROYAL MENCAP SOCIETY,1325480,02/08/2022,4011753,"2,219.00",0.00,N/A,N/A
People Services - Adults and Health,Learning Disability Support,Transitions and Ordinary Lives,ROYAL MENCAP SOCIETY,1325480,02/08/2022,4011752,"2,219.00",0.00,N/A,N/A
People Services - Adults and Health,Learning Disability Support,Transitions and Ordinary Lives,ROYAL MENCAP SOCIETY,1325480,02/08/2022,4011751,"1,459.12",0.00,N/A,N/A
People Services - Adults and Health,Learning Disability Support,Transitions and Ordinary Lives,ROYAL MENCAP SOCIETY,1325480,02/08/2022,4011750,"1,664.25",0.00,N/A,N/A
People Services - Adults and Health,Learning Disability Support,Transitions and Ordinary Lives,ROYAL MENCAP SOCIETY,1325480,02/08/2022,4011604,"1,459.12",0.00,N/A,N/A
People Services - Adults and Health,Learning Disability Support,Transitions and Ordinary Lives,ROYAL MENCAP SOCIETY,1325480,02/08/2022,4011603,"1,268.00",0.00,N/A,N/A
People Services - Adults and Health,Learning Disability Support,Transitions and Ordinary Lives,ROYAL MENCAP SOCIETY,1325480,02/08/2022,4011602,620.55,0.00,N/A,N/A
People Services - Adults and Health,Learning Disability Support,Transitions and Ordinary Lives,ROYAL MENCAP SOCIETY,1325480,02/08/2022,4011600,"2,219.00",0.00,N/A,N/A
People Services - Adults and Health,Learning Disability Support,Transitions and Ordinary Lives,ROYAL MENCAP SOCIETY,1325480,02/08/2022,4011599,"1,459.12",0.00,N/A,N/A
People Services - Adults and Health,Learning Disability Support,Transitions and Ordinary Lives,ROYAL MENCAP SOCIETY,1325480,02/08/2022,4011453,"1,268.00",0.00,N/A,N/A
People Services - Adults and Health,Learning Disability Support,Transitions and Ordinary Lives,ROYAL MENCAP SOCIETY,1325480,02/08/2022,4011452,739.24,0.00,N/A,N/A
People Services - Adults and Health,Learning Disability Support,Transitions and Ordinary Lives,ROYAL MENCAP SOCIETY,1325480,02/08/2022,4011451,"2,219.00",0.00,N/A,N/A
People Services - Adults and Health,Learning Disability Support,Transitions and Ordinary Lives,ROYAL MENCAP SOCIETY,1325480,02/08/2022,4011450,"2,219.00",0.00,N/A,N/A
People Services - Adults and Health,Learning Disability Support,Transitions and Ordinary Lives,ROYAL MENCAP SOCIETY,1325480,02/08/2022,4011598,"1,268.00",0.00,N/A,N/A
People Services - Adults and Health,Learning Disability Support,Transitions and Ordinary Lives,ROYAL MENCAP SOCIETY,1325480,02/08/2022,4011596,"2,219.00",0.00,N/A,N/A
People Services - Adults and Health,Learning Disability Support,Transitions and Ordinary Lives,ROYAL MENCAP SOCIETY,1325480,02/08/2022,4011594,"2,181.20",0.00,N/A,N/A
People Services - Adults and Health,Learning Disability Support,Transitions and Ordinary Lives,ROYAL MENCAP SOCIETY,1325480,02/08/2022,4011593,"1,459.12",0.00,N/A,N/A
People Services - Adults and Health,Learning Disability Support,Transitions and Ordinary Lives,ROYAL MENCAP SOCIETY,1325480,02/08/2022,4011592,739.71,0.00,N/A,N/A
People Services - Adults and Health,Learning Disability Support,Transitions and Ordinary Lives,ROYAL MENCAP SOCIETY,1325480,02/08/2022,4011591,634.00,0.00,N/A,N/A
People Services - Adults and Health,Learning Disability Support,Transitions and Ordinary Lives,ROYAL MENCAP SOCIETY,1325480,02/08/2022,4011449,"2,219.00",0.00,N/A,N/A
People Services - Adults and Health,Learning Disability Support,Transitions and Ordinary Lives,ROYAL MENCAP SOCIETY,1325480,02/08/2022,4011448,618.66,0.00,N/A,N/A
People Services - Adults and Health,Learning Disability Support,Transitions and Ordinary Lives,ROYAL MENCAP SOCIETY,1325480,02/08/2022,4011446,618.66,0.00,N/A,N/A
People Services - Adults and Health,Learning Disability Support,Transitions and Ordinary Lives,ROYAL MENCAP SOCIETY,1325480,02/08/2022,4011884,"2,220.40",0.00,N/A,N/A
People Services - Adults and Health,Learning Disability Support,Transitions and Ordinary Lives,ROYAL MENCAP SOCIETY,1325480,02/08/2022,4011883,634.00,0.00,N/A,N/A
People Services - Adults and Health,Learning Disability Support,Transitions and Ordinary Lives,ROYAL MENCAP SOCIETY,1325480,02/08/2022,4011729,"2,219.00",0.00,N/A,N/A
People Services - Adults and Health,Learning Disability Support,Transitions and Ordinary Lives,ROYAL MENCAP SOCIETY,1325480,02/08/2022,4011727,"2,219.00",0.00,N/A,N/A
People Services - Adults and Health,Learning Disability Support,Transitions and Ordinary Lives,ROYAL MENCAP SOCIETY,1325480,02/08/2022,4011726,"1,459.12",0.00,N/A,N/A
People Services - Adults and Health,Learning Disability Support,Transitions and Ordinary Lives,ROYAL MENCAP SOCIETY,1325480,02/08/2022,4011589,"2,219.00",0.00,N/A,N/A
People Services - Adults and Health,Learning Disability Support,Transitions and Ordinary Lives,ROYAL MENCAP SOCIETY,1325480,02/08/2022,4011588,739.71,0.00,N/A,N/A
People Services - Adults and Health,Learning Disability Support,Transitions and Ordinary Lives,ROYAL MENCAP SOCIETY,1325480,02/08/2022,4011587,"1,664.25",0.00,N/A,N/A
People Services - Adults and Health,Learning Disability Support,Transitions and Ordinary Lives,ROYAL MENCAP SOCIETY,1325480,02/08/2022,4011442,"1,268.00",0.00,N/A,N/A
People Services - Adults and Health,Learning Disability Support,Transitions and Ordinary Lives,ROYAL MENCAP SOCIETY,1325480,02/08/2022,4011440,"2,219.00",0.00,N/A,N/A
People Services - Adults and Health,Learning Disability Support,Transitions and Ordinary Lives,ROYAL MENCAP SOCIETY,1325480,02/08/2022,4011438,"2,220.40",0.00,N/A,N/A
People Services - Adults and Health,Learning Disability Support,Transitions and Ordinary Lives,ROYAL MENCAP SOCIETY,1325480,02/08/2022,4011437,"2,219.00",0.00,N/A,N/A
People Services - Adults and Health,Learning Disability Support,Transitions and Ordinary Lives,ROYAL MENCAP SOCIETY,1325480,02/08/2022,4011436,739.24,0.00,N/A,N/A
People Services - Adults and Health,Learning Disability Support,Transitions and Ordinary Lives,ROYAL MENCAP SOCIETY,1325480,02/08/2022,4011434,"2,219.00",0.00,N/A,N/A
People Services - Adults and Health,Learning Disability Support,Transitions and Ordinary Lives,ROYAL MENCAP SOCIETY,1325480,02/08/2022,4011433,634.00,0.00,N/A,N/A
People Services - Adults and Health,Learning Disability Support,Transitions and Ordinary Lives,ROYAL MENCAP SOCIETY,1325480,02/08/2022,4011725,"2,219.00",0.00,N/A,N/A
People Services - Adults and Health,Learning Disability Support,Transitions and Ordinary Lives,ROYAL MENCAP SOCIETY,1325480,02/08/2022,4011724,"2,219.00",0.00,N/A,N/A
People Services - Adults and Health,Learning Disability Support,Transitions and Ordinary Lives,ROYAL MENCAP SOCIETY,1325480,02/08/2022,4012023,739.71,0.00,N/A,N/A
People Services - Adults and Health,Learning Disability Support,Transitions and Ordinary Lives,ROYAL MENCAP SOCIETY,1325480,02/08/2022,4012022,"2,220.40",0.00,N/A,N/A
People Services - Adults and Health,Learning Disability Support,Transitions and Ordinary Lives,ROYAL MENCAP SOCIETY,1325480,02/08/2022,4012021,739.71,0.00,N/A,N/A
People Services - Adults and Health,Learning Disability Support,Transitions and Ordinary Lives,ROYAL MENCAP SOCIETY,1325480,02/08/2022,4011857,739.24,0.00,N/A,N/A
People Services - Adults and Health,Learning Disability Support,Transitions and Ordinary Lives,ROYAL MENCAP SOCIETY,1325480,02/08/2022,4011856,"2,219.00",0.00,N/A,N/A
People Services - Adults and Health,Learning Disability Support,Transitions and Ordinary Lives,ROYAL MENCAP SOCIETY,1325480,02/08/2022,4011855,"2,219.00",0.00,N/A,N/A
People Services - Adults and Health,Learning Disability Support,Transitions and Ordinary Lives,ROYAL MENCAP SOCIETY,1325480,02/08/2022,4011854,739.24,0.00,N/A,N/A
People Services - Adults and Health,Learning Disability Support,Transitions and Ordinary Lives,ROYAL MENCAP SOCIETY,1325480,02/08/2022,4011853,634.00,0.00,N/A,N/A
People Services - Adults and Health,Learning Disability Support,Transitions and Ordinary Lives,ROYAL MENCAP SOCIETY,1325480,02/08/2022,4011408,"2,220.40",0.00,N/A,N/A
People Services - Adults and Health,Learning Disability Support,Transitions and Ordinary Lives,ROYAL MENCAP SOCIETY,1325480,02/08/2022,4011407,"1,268.00",0.00,N/A,N/A
People Services - Adults and Health,Learning Disability Support,Transitions and Ordinary Lives,ROYAL MENCAP SOCIETY,1325480,02/08/2022,4011403,"1,459.12",0.00,N/A,N/A
People Services - Adults and Health,Learning Disability Support,Transitions and Ordinary Lives,ROYAL MENCAP SOCIETY,1325480,02/08/2022,4011402,634.00,0.00,N/A,N/A
People Services - Adults and Health,Learning Disability Support,Transitions and Ordinary Lives,ROYAL MENCAP SOCIETY,1325480,02/08/2022,4012019,"2,219.00",0.00,N/A,N/A
People Services - Adults and Health,Learning Disability Support,Transitions and Ordinary Lives,ROYAL MENCAP SOCIETY,1325480,02/08/2022,4012018,"2,219.00",0.00,N/A,N/A
People Services - Adults and Health,Learning Disability Support,Transitions and Ordinary Lives,ROYAL MENCAP SOCIETY,1325480,02/08/2022,4012016,"2,181.20",0.00,N/A,N/A
People Services - Adults and Health,Learning Disability Support,Transitions and Ordinary Lives,ROYAL MENCAP SOCIETY,1325480,02/08/2022,4012015,620.55,0.00,N/A,N/A
People Services - Adults and Health,Learning Disability Support,Transitions and Ordinary Lives,ROYAL MENCAP SOCIETY,1325480,02/08/2022,4012012,"2,219.00",0.00,N/A,N/A
People Services - Adults and Health,Learning Disability Support,Transitions and Ordinary Lives,ROYAL MENCAP SOCIETY,1325480,02/08/2022,4012011,739.71,0.00,N/A,N/A
People Services - Adults and Health,Learning Disability Support,Transitions and Ordinary Lives,ROYAL MENCAP SOCIETY,1325480,02/08/2022,4012010,739.24,0.00,N/A,N/A
People Services - Adults and Health,Learning Disability Support,Transitions and Ordinary Lives,ROYAL MENCAP SOCIETY,1325480,02/08/2022,4012009,633.64,0.00,N/A,N/A
People Services - Adults and Health,Learning Disability Support,Transitions and Ordinary Lives,ROYAL MENCAP SOCIETY,1325480,02/08/2022,4012008,"2,220.40",0.00,N/A,N/A
People Services - Adults and Health,Learning Disability Support,Transitions and Ordinary Lives,ROYAL MENCAP SOCIETY,1325480,02/08/2022,4011851,"2,181.20",0.00,N/A,N/A
People Services - Adults and Health,Learning Disability Support,Transitions and Ordinary Lives,ROYAL MENCAP SOCIETY,1325480,02/08/2022,4011850,"1,268.00",0.00,N/A,N/A
People Services - Adults and Health,Learning Disability Support,Transitions and Ordinary Lives,ROYAL MENCAP SOCIETY,1325480,02/08/2022,4011849,739.24,0.00,N/A,N/A
People Services - Adults and Health,Learning Disability Support,Transitions and Ordinary Lives,ROYAL MENCAP SOCIETY,1325480,02/08/2022,4011847,"1,268.00",0.00,N/A,N/A
People Services - Adults and Health,Learning Disability Support,Transitions and Ordinary Lives,ROYAL MENCAP SOCIETY,1325480,02/08/2022,4011846,880.24,0.00,N/A,N/A
People Services - Adults and Health,Learning Disability Support,Transitions and Ordinary Lives,ROYAL MENCAP SOCIETY,1325480,02/08/2022,4011844,739.24,0.00,N/A,N/A
People Services - Adults and Health,Learning Disability Support,Transitions and Ordinary Lives,ROYAL MENCAP SOCIETY,1325480,02/08/2022,4011843,608.80,0.00,N/A,N/A
People Services - Adults and Health,Learning Disability Support,Transitions and Ordinary Lives,ROYAL MENCAP SOCIETY,1325480,02/08/2022,4011841,634.00,0.00,N/A,N/A
People Services - Adults and Health,Learning Disability Support,Transitions and Ordinary Lives,ROYAL MENCAP SOCIETY,1325480,02/08/2022,4011840,608.80,0.00,N/A,N/A
People Services - Adults and Health,Learning Disability Support,Transitions and Ordinary Lives,ROYAL MENCAP SOCIETY,1325480,02/08/2022,4011839,"2,219.00",0.00,N/A,N/A
People Services - Adults and Health,Learning Disability Support,Transitions and Ordinary Lives,ROYAL MENCAP SOCIETY,1325480,02/08/2022,4011838,739.24,0.00,N/A,N/A
People Services - Adults and Health,Learning Disability Support,Transitions and Ordinary Lives,ROYAL MENCAP SOCIETY,1325480,02/08/2022,4011693,"1,268.00",0.00,N/A,N/A
People Services - Adults and Health,Learning Disability Support,Transitions and Ordinary Lives,ROYAL MENCAP SOCIETY,1325480,02/08/2022,4011692,739.24,0.00,N/A,N/A
People Services - Adults and Health,Learning Disability Support,Transitions and Ordinary Lives,ROYAL MENCAP SOCIETY,1325480,02/08/2022,4011691,"2,219.00",0.00,N/A,N/A
People Services - Adults and Health,Learning Disability Support,Transitions and Ordinary Lives,ROYAL MENCAP SOCIETY,1325480,02/08/2022,4011690,739.24,0.00,N/A,N/A
People Services - Adults and Health,Learning Disability Support,Transitions and Ordinary Lives,ROYAL MENCAP SOCIETY,1325480,02/08/2022,4011689,739.71,0.00,N/A,N/A
People Services - Adults and Health,Learning Disability Support,Transitions and Ordinary Lives,ROYAL MENCAP SOCIETY,1325480,02/08/2022,4011687,"2,220.40",0.00,N/A,N/A
People Services - Adults and Health,Learning Disability Support,Transitions and Ordinary Lives,ROYAL MENCAP SOCIETY,1325480,02/08/2022,4011686,739.24,0.00,N/A,N/A
People Services - Adults and Health,Learning Disability Support,Transitions and Ordinary Lives,ROYAL MENCAP SOCIETY,1325480,02/08/2022,4011685,739.24,0.00,N/A,N/A
People Services - Adults and Health,Learning Disability Support,Transitions and Ordinary Lives,ROYAL MENCAP SOCIETY,1325480,02/08/2022,4011684,"1,902.00",0.00,N/A,N/A
People Services - Adults and Health,Learning Disability Support,Transitions and Ordinary Lives,ROYAL MENCAP SOCIETY,1325480,02/08/2022,4011558,"1,598.10",0.00,N/A,N/A
People Services - Adults and Health,Learning Disability Support,Transitions and Ordinary Lives,ROYAL MENCAP SOCIETY,1325480,02/08/2022,4011557,"1,400.24",0.00,N/A,N/A
People Services - Adults and Health,Learning Disability Support,Transitions and Ordinary Lives,ROYAL MENCAP SOCIETY,1325480,02/08/2022,4011553,"2,219.00",0.00,N/A,N/A
People Services - Adults and Health,Learning Disability Support,Transitions and Ordinary Lives,ROYAL MENCAP SOCIETY,1325480,02/08/2022,4012007,739.24,0.00,N/A,N/A
People Services - Adults and Health,Learning Disability Support,Transitions and Ordinary Lives,ROYAL MENCAP SOCIETY,1325480,02/08/2022,4012006,"2,219.00",0.00,N/A,N/A
People Services - Adults and Health,Learning Disability Support,Transitions and Ordinary Lives,ROYAL MENCAP SOCIETY,1325480,02/08/2022,4012005,"2,220.40",0.00,N/A,N/A
People Services - Adults and Health,Learning Disability Support,Transitions and Ordinary Lives,ROYAL MENCAP SOCIETY,1325480,02/08/2022,4012004,"2,181.20",0.00,N/A,N/A
People Services - Adults and Health,Learning Disability Support,Transitions and Ordinary Lives,ROYAL MENCAP SOCIETY,1325480,02/08/2022,4012003,"1,268.00",0.00,N/A,N/A
People Services - Adults and Health,Learning Disability Support,Transitions and Ordinary Lives,ROYAL MENCAP SOCIETY,1325480,02/08/2022,4012002,554.43,0.00,N/A,N/A
People Services - Adults and Health,Learning Disability Support,Transitions and Ordinary Lives,ROYAL MENCAP SOCIETY,1325480,02/08/2022,4011833,"2,219.00",0.00,N/A,N/A
People Services - Adults and Health,Learning Disability Support,Transitions and Ordinary Lives,ROYAL MENCAP SOCIETY,1325480,02/08/2022,4011832,739.24,0.00,N/A,N/A
People Services - Adults and Health,Learning Disability Support,Transitions and Ordinary Lives,ROYAL MENCAP SOCIETY,1325480,02/08/2022,4011837,"1,086.86",0.00,N/A,N/A
People Services - Adults and Health,Learning Disability Support,Transitions and Ordinary Lives,ROYAL MENCAP SOCIETY,1325480,02/08/2022,4011836,543.43,0.00,N/A,N/A
People Services - Adults and Health,Learning Disability Support,Transitions and Ordinary Lives,ROYAL MENCAP SOCIETY,1325480,02/08/2022,4011831,634.00,0.00,N/A,N/A
People Services - Adults and Health,Learning Disability Support,Transitions and Ordinary Lives,ROYAL MENCAP SOCIETY,1325480,02/08/2022,4011681,"2,219.00",0.00,N/A,N/A
People Services - Adults and Health,Learning Disability Support,Transitions and Ordinary Lives,ROYAL MENCAP SOCIETY,1325480,02/08/2022,4011678,"2,219.00",0.00,N/A,N/A
People Services - Adults and Health,Learning Disability Support,Transitions and Ordinary Lives,ROYAL MENCAP SOCIETY,1325480,02/08/2022,4011677,"2,219.00",0.00,N/A,N/A
People Services - Adults and Health,Learning Disability Support,Transitions and Ordinary Lives,ROYAL MENCAP SOCIETY,1325480,02/08/2022,4011676,739.24,0.00,N/A,N/A
People Services - Adults and Health,Learning Disability Support,Transitions and Ordinary Lives,ROYAL MENCAP SOCIETY,1325480,02/08/2022,4011532,"2,219.00",0.00,N/A,N/A
People Services - Adults and Health,Learning Disability Support,Transitions and Ordinary Lives,ROYAL MENCAP SOCIETY,1325480,02/08/2022,4011531,"1,459.12",0.00,N/A,N/A
People Services - Adults and Health,Learning Disability Support,Transitions and Ordinary Lives,ROYAL MENCAP SOCIETY,1325480,02/08/2022,4011530,634.00,0.00,N/A,N/A
People Services - Adults and Health,Learning Disability Support,Transitions and Ordinary Lives,ROYAL MENCAP SOCIETY,1325480,02/08/2022,4011528,"2,220.40",0.00,N/A,N/A
People Services - Adults and Health,Learning Disability Support,Transitions and Ordinary Lives,ROYAL MENCAP SOCIETY,1325480,02/08/2022,4011527,"2,219.00",0.00,N/A,N/A
People Services - Adults and Health,Learning Disability Support,Transitions and Ordinary Lives,ROYAL MENCAP SOCIETY,1325480,02/08/2022,4011526,739.71,0.00,N/A,N/A
People Services - Adults and Health,Learning Disability Support,Transitions and Ordinary Lives,ROYAL MENCAP SOCIETY,1325480,02/08/2022,4011525,"2,219.00",0.00,N/A,N/A
People Services - Adults and Health,Learning Disability Support,Transitions and Ordinary Lives,ROYAL MENCAP SOCIETY,1325480,02/08/2022,4011524,538.92,0.00,N/A,N/A
People Services - Adults and Health,Learning Disability Support,Transitions and Ordinary Lives,ROYAL MENCAP SOCIETY,1325480,02/08/2022,4011520,"2,919.64",0.00,N/A,N/A
People Services - Adults and Health,Learning Disability Support,Transitions and Ordinary Lives,ROYAL MENCAP SOCIETY,1325480,02/08/2022,4011507,"1,094.34",0.00,N/A,N/A
People Services - Adults and Health,Learning Disability Support,Transitions and Ordinary Lives,ROYAL MENCAP SOCIETY,1325480,02/08/2022,4011518,"2,219.00",0.00,N/A,N/A
People Services - Adults and Health,Learning Disability Support,Transitions and Ordinary Lives,ROYAL MENCAP SOCIETY,1325480,02/08/2022,4011517,"1,902.00",0.00,N/A,N/A
People Services - Adults and Health,Learning Disability Support,Transitions and Ordinary Lives,ROYAL MENCAP SOCIETY,1325480,02/08/2022,4011516,"1,902.00",0.00,N/A,N/A
People Services - Adults and Health,Learning Disability Support,Transitions and Ordinary Lives,ROYAL MENCAP SOCIETY,1325480,02/08/2022,4011515,"1,902.00",0.00,N/A,N/A
People Services - Adults and Health,Learning Disability Support,Transitions and Ordinary Lives,ROYAL MENCAP SOCIETY,1325480,02/08/2022,4011506,554.43,0.00,N/A,N/A
People Services - Adults and Health,Learning Disability Support,Transitions and Ordinary Lives,ROYAL MENCAP SOCIETY,1325480,02/08/2022,4011974,"2,919.64",0.00,N/A,N/A
People Services - Adults and Health,Learning Disability Support,Transitions and Ordinary Lives,ROYAL MENCAP SOCIETY,1325480,02/08/2022,4011973,"2,219.00",0.00,N/A,N/A
People Services - Adults and Health,Learning Disability Support,Transitions and Ordinary Lives,ROYAL MENCAP SOCIETY,1325480,02/08/2022,4011649,"2,219.00",0.00,N/A,N/A
People Services - Adults and Health,Learning Disability Support,Transitions and Ordinary Lives,ROYAL MENCAP SOCIETY,1325480,02/08/2022,4011648,"1,598.10",0.00,N/A,N/A
People Services - Adults and Health,Learning Disability Support,Transitions and Ordinary Lives,ROYAL MENCAP SOCIETY,1325480,02/08/2022,4011647,"1,459.12",0.00,N/A,N/A
People Services - Adults and Health,Learning Disability Support,Transitions and Ordinary Lives,ROYAL MENCAP SOCIETY,1325480,02/08/2022,4011646,"1,341.31",0.00,N/A,N/A
People Services - Adults and Health,Learning Disability Support,Transitions and Ordinary Lives,ROYAL MENCAP SOCIETY,1325480,02/08/2022,4011512,"1,459.12",0.00,N/A,N/A
People Services - Adults and Health,Learning Disability Support,Transitions and Ordinary Lives,ROYAL MENCAP SOCIETY,1325480,02/08/2022,4011511,739.71,0.00,N/A,N/A
People Services - Adults and Health,Learning Disability Support,Transitions and Ordinary Lives,ROYAL MENCAP SOCIETY,1325480,02/08/2022,4011509,"1,664.25",0.00,N/A,N/A
People Services - Adults and Health,Learning Disability Support,Transitions and Ordinary Lives,ROYAL MENCAP SOCIETY,1325480,02/08/2022,4011508,"1,635.90",0.00,N/A,N/A
People Services - Adults and Health,Learning Disability Support,Transitions and Ordinary Lives,ROYAL MENCAP SOCIETY,1325480,02/08/2022,4011965,"1,268.00",0.00,N/A,N/A
People Services - Adults and Health,Learning Disability Support,Transitions and Ordinary Lives,ROYAL MENCAP SOCIETY,1325480,02/08/2022,4011964,739.24,0.00,N/A,N/A
People Services - Adults and Health,Learning Disability Support,Transitions and Ordinary Lives,ROYAL MENCAP SOCIETY,1325480,02/08/2022,4011963,"2,219.00",0.00,N/A,N/A
People Services - Adults and Health,Learning Disability Support,Transitions and Ordinary Lives,ROYAL MENCAP SOCIETY,1325480,02/08/2022,4011962,"2,219.00",0.00,N/A,N/A
People Services - Adults and Health,Learning Disability Support,Transitions and Ordinary Lives,ROYAL MENCAP SOCIETY,1325480,02/08/2022,4011797,"2,219.00",0.00,N/A,N/A
People Services - Adults and Health,Learning Disability Support,Transitions and Ordinary Lives,ROYAL MENCAP SOCIETY,1325480,02/08/2022,4011791,"1,268.00",0.00,N/A,N/A
People Services - Adults and Health,Learning Disability Support,Transitions and Ordinary Lives,ROYAL MENCAP SOCIETY,1325480,02/08/2022,4011790,739.24,0.00,N/A,N/A
People Services - Adults and Health,Learning Disability Support,Transitions and Ordinary Lives,ROYAL MENCAP SOCIETY,1325480,02/08/2022,4011640,739.71,0.00,N/A,N/A
People Services - Adults and Health,Learning Disability Support,Transitions and Ordinary Lives,ROYAL MENCAP SOCIETY,1325480,02/08/2022,4011480,739.71,0.00,N/A,N/A
People Services - Adults and Health,Learning Disability Support,Transitions and Ordinary Lives,ROYAL MENCAP SOCIETY,1325480,02/08/2022,4011479,739.24,0.00,N/A,N/A
People Services - Adults and Health,Learning Disability Support,Transitions and Ordinary Lives,ROYAL MENCAP SOCIETY,1325480,02/08/2022,4011478,"2,219.00",0.00,N/A,N/A
People Services - Adults and Health,Learning Disability Support,Transitions and Ordinary Lives,ROYAL MENCAP SOCIETY,1325480,02/08/2022,4011477,739.24,0.00,N/A,N/A
People Services - Adults and Health,Learning Disability Support,Transitions and Ordinary Lives,ROYAL MENCAP SOCIETY,1325480,02/08/2022,4011476,"2,220.40",0.00,N/A,N/A
People Services - Adults and Health,Learning Disability Support,Transitions and Ordinary Lives,ROYAL MENCAP SOCIETY,1325480,02/08/2022,4011447,"1,341.32",0.00,N/A,N/A
People Services - Adults and Health,Learning Disability Support,Transitions and Ordinary Lives,ROYAL MENCAP SOCIETY,1325480,02/08/2022,4011409,"1,598.10",0.00,N/A,N/A
People Services - Adults and Health,Learning Disability Support,Transitions and Ordinary Lives,ROYAL MENCAP SOCIETY,1325480,02/08/2022,4011845,880.24,0.00,N/A,N/A
People Services - Adults and Health,Learning Disability Support,Transitions and Ordinary Lives,ROYAL MENCAP SOCIETY,1325480,02/08/2022,4011559,880.24,0.00,N/A,N/A
People Services - Adults and Health,Learning Disability Support,Transitions and Ordinary Lives,ROYAL MENCAP SOCIETY,1325480,02/08/2022,4011799,624.96,0.00,N/A,N/A
People Services - Adults and Health,Learning Disability Support,Transitions and Ordinary Lives,ROYAL MENCAP SOCIETY,1325480,02/08/2022,4011483,"1,341.32",0.00,N/A,N/A
People Services - Children & Young People,Commissioning - Schools Block,Schools Block,ROYAL SCHOOL FOR THE DEAF DERBY,1731480,02/08/2022,4008957,"8,210.27",0.00,N/A,N/A
People Services - Children & Young People,Non Delegated Schools Budget,Schools Block,ROYAL SCHOOL FOR THE DEAF DERBY,1731480,02/08/2022,4009480,730.00,0.00,N/A,N/A
People Services - Children & Young People,Commissioning - Schools Block,Schools Block,RUSHCLIFFE SPECIALIST SCHOOLS MICKLEOVER LTD,1625482,02/08/2022,4008960,"16,980.87",0.00,N/A,N/A
People Services - Children & Young People,Commissioning - Schools Block,Schools Block,RUSHCLIFFE SPECIALIST SCHOOLS MICKLEOVER LTD,1625482,02/08/2022,4008959,"16,980.87",0.00,N/A,N/A
People Services - Children & Young People,Commissioning - Schools Block,Schools Block,RUSHCLIFFE SPECIALIST SCHOOLS MICKLEOVER LTD,1625482,02/08/2022,4008958,"16,980.87",0.00,N/A,N/A
Corporate Resources,Property Design & Maintenance,Property,S S SYSTEMS LTD,188339,02/08/2022,4011146,687.50,0.00,N/A,N/A
Communities & Place,Strategic Housing,City Development & Growth,SAFELINCS,1016498,02/08/2022,4009009,551.50,0.00,Healthy Housing Hub,Defense and Law Enforcement and Security
People Services - Children & Young People,Non Delegated Schools Budget,Schools Block,SAINT PIUS X CATHOLIC HIGH SCHOOL,1200469,02/08/2022,4009458,541.00,0.00,N/A,N/A
Communities & Place,Parks & Healthy Living,"Leisure, Culture and Tourism",SALLY PARKES YOGA LTD,1883468,02/08/2022,4007914,647.00,0.00,N/A,N/A
Communities & Place,Parks & Healthy Living,"Leisure, Culture and Tourism",SALLY PARKES YOGA LTD,1883468,02/08/2022,4007914,647.00,0.00,N/A,N/A
Communities & Place,Parks & Healthy Living,"Leisure, Culture and Tourism",SALLY PARKES YOGA LTD,1883468,02/08/2022,4007914,647.00,0.00,N/A,N/A
People Services - Children & Young People,Non Delegated Schools Budget,Schools Block,SCC MOAT HALL PRIMARY SCHOOL,520449,02/08/2022,4009450,620.00,0.00,N/A,N/A
People Services - Adults and Health,Physical Support,Community Support,SENAD COMMUNITY LTD,246412,02/08/2022,4008934,"4,951.92",0.00,Central OP (over 65) Physical - DP/Mgd,Healthcare Services
People Services - Children & Young People,Integrated Services,Non-Schools,SHARED SERVICES CONNECTED LTD,769444,02/08/2022,4012218,"9,210.00",0.00,Police Escorts,Healthcare Services
People Services - Children & Young People,Integrated Services,Non-Schools,SHARED SERVICES CONNECTED LTD,769444,02/08/2022,4012214,"9,517.00",0.00,Police Escorts,Healthcare Services
People Services - Children & Young People,Integrated Services,Non-Schools,SHARED SERVICES CONNECTED LTD,769444,02/08/2022,4012210,"9,210.00",0.00,Police Escorts,Healthcare Services
People Services - Children & Young People,Integrated Services,Non-Schools,SHARED SERVICES CONNECTED LTD,769444,02/08/2022,4012209,"9,210.00",0.00,Police Escorts,Healthcare Services
People Services - Children & Young People,Integrated Services,Non-Schools,SHARED SERVICES CONNECTED LTD,769444,02/08/2022,4012206,"4,912.00",0.00,Police Escorts,Healthcare Services
People Services - Children & Young People,Integrated Services,Non-Schools,SHARED SERVICES CONNECTED LTD,769444,02/08/2022,4012219,"9,210.00",0.00,Police Escorts,Healthcare Services
People Services - Children & Young People,Commissioning,Non-Schools,SHARPE PRITCHARD LLP,1584476,02/08/2022,4012050,558.00,0.00,N/A,N/A
People Services - Children & Young People,Commissioning,Non-Schools,SHARPE PRITCHARD LLP,1584476,02/08/2022,4008962,"2,124.00",0.00,N/A,N/A
Communities & Place,"Waste, Street Cleansing & Fleet",Public Protection and Streetride,SHERWOOD TRUCK AND VAN LTD,872460,02/08/2022,4012160,674.82,0.00,N/A,N/A
Corporate Resources,Digital Services & Customer Management,Digital Services & Customer Management,SIGNIFICANT UK LTD,124151,02/08/2022,4009042,695.00,0.00,Derby Direct,Printing and Photographic and Audio and
Communities & Place,"Waste, Street Cleansing & Fleet",Public Protection and Streetride,SIMPLY TRAK UK LTD,4797,02/08/2022,4008984,"2,640.00",0.00,Fleet Hire,Commercial and Military and Private Vehi
Neighbourhoods,Neighbourhoods,Neighbourhoods,SJS 4 LIMITED,1818483,02/08/2022,4012207,"111,582.68",0.00,N/A,N/A
People Services - Adults and Health,Learning Disability Support,Community Support,SJT PROPERTY SERVICES,1860469,02/08/2022,4012142,640.00,0.00,N/A,N/A
Communities & Place,Traffic & Transportation,Planning & Transportation,SPACEMASTER LTD,1242470,02/08/2022,4008948,846.00,0.00,Central Traffic Management,Structures and Building and Construction
People Services - Children & Young People,Integrated Services,Non-Schools,ST JOHN AMBULANCE SUPPLIES,1101469,02/08/2022,3994026,"1,050.00",0.00,The Light House Residential,Healthcare Services
Communities & Place,Parks & Healthy Living,"Leisure, Culture and Tourism",ST MARTINS METHODIST CHURCH,4559,02/08/2022,4009382,570.00,0.00,NHS Pilot,Education and Training Services
People Services - Children & Young People,Non Delegated Schools Budget,Schools Block,ST MARYS ANGLICAN ACADEMY,1708473,02/08/2022,4009456,600.00,0.00,N/A,N/A
Communities & Place,Leisure,"Leisure, Culture and Tourism",STADIUM,1127470,02/08/2022,4008945,"1,755.60",0.00,N/A,N/A
Communities & Place,Leisure,"Leisure, Culture and Tourism",STADIUM,1127470,02/08/2022,4008945,"1,755.60",0.00,N/A,N/A
People Services - Children & Young People,Non Delegated Schools Budget,Schools Block,STEEL CITY SCHOOLS PARTNERSHIP,1457506,02/08/2022,4009491,"3,392.00",0.00,N/A,N/A
People Services - Children & Young People,Non Delegated Schools Budget,Schools Block,STOKE ON TRENT CITY COUNCIL,1569501,02/08/2022,4009472,600.00,0.00,N/A,N/A
Communities & Place,"Waste, Street Cleansing & Fleet",Public Protection and Streetride,STORM ENVIRONMENTAL LTD,94280,02/08/2022,4008931,872.04,0.00,Street Cleaning,Environmental Services
Communities & Place,"Waste, Street Cleansing & Fleet",Public Protection and Streetride,STRAIGHT MANUFACTURING LIMITED,1784475,02/08/2022,4007172,"3,020.00",0.00,N/A,N/A
People Services - Children & Young People,Early Help & Children’s Safeguarding,Non-Schools,STRAW AND PEARCE,1010477,02/08/2022,4007097,956.30,0.00,Legal Fees,Management and Business Professionals an
Communities & Place,"Highways, Gounds Maintenance and Flood Defence",Public Protection and Streetride,TARBY CONSTRUCTION LTD,194477,02/08/2022,4009359,"13,864.60",0.00,Highways Maintenance Works,Structures and Building and Construction
Communities & Place,"Highways, Gounds Maintenance and Flood Defence",Public Protection and Streetride,TARBY CONSTRUCTION LTD,194477,02/08/2022,4008974,"12,746.50",0.00,Highways Maintenance Works,Structures and Building and Construction
Communities & Place,"Highways, Gounds Maintenance and Flood Defence",Public Protection and Streetride,TARBY CONSTRUCTION LTD,194477,02/08/2022,4009358,"1,372.00",0.00,Highways Maintenance Reactionary Works,Structures and Building and Construction
Communities & Place,"Highways, Gounds Maintenance and Flood Defence",Public Protection and Streetride,TARBY CONSTRUCTION LTD,194477,02/08/2022,4009356,"1,813.00",0.00,Highways Maintenance Reactionary Works,Structures and Building and Construction
Communities & Place,Leisure,"Leisure, Culture and Tourism",TECHNICAL SURFACES LTD,5070,02/08/2022,4000017,"1,211.25",0.00,N/A,N/A
Communities & Place,Leisure,"Leisure, Culture and Tourism",TECHNICAL SURFACES LTD,5070,02/08/2022,4000017,"1,705.25",0.00,N/A,N/A
Communities & Place,Leisure,"Leisure, Culture and Tourism",TECHNICAL SURFACES LTD,5070,02/08/2022,4000018,"2,788.25",0.00,N/A,N/A
Corporate Resources,Facilities Management,Property,TERMINIX UK LTD,1715476,02/08/2022,4003794,"1,000.00",0.00,N/A,N/A
Neighbourhoods,Neighbourhoods,Neighbourhoods,TETRA TECH LIMITED,1497496,02/08/2022,3994071,"73,404.78",0.00,N/A,N/A
Neighbourhoods,Neighbourhoods,Neighbourhoods,TETRA TECH LIMITED,1497496,02/08/2022,3994071,"73,404.78",0.00,N/A,N/A
People Services - Children & Young People,Learning & Inclusion - Schools Block,Schools Block,THE GUIDE DOGS FOR THE BLIND ASSN,144337,02/08/2022,4007171,"3,977.30",0.00,Specialist Support Teaching Services (SSTS),Education and Training Services
Communities & Place,Strategic Housing,City Development & Growth,THE RIVERSIDE GROUP LTD,90997,02/08/2022,4007109,"106,019.34",0.00,Derby Housing PFI Project,Healthcare Services
People Services - Children & Young People,Non Delegated Schools Budget,Schools Block,THE SAMWORTH CHURCH,242432,02/08/2022,4009485,950.00,0.00,N/A,N/A
People Services - Children & Young People,Non Delegated Schools Budget,Schools Block,THE SPENCER ACADEMIES TRUST,1787508,02/08/2022,4009482,535.00,0.00,N/A,N/A
People Services - Children & Young People,Non Delegated Schools Budget,Schools Block,THE SPENCER ACADEMIES TRUST,1202480,02/08/2022,4009474,766.00,0.00,Pupil Premium Grant,Education and Training Services
People Services - Adults and Health,Learning Disability Support,Transitions and Ordinary Lives,THERA EAST MIDLANDS,388484,02/08/2022,4011675,"9,574.40",0.00,N/A,N/A
People Services - Adults and Health,Learning Disability Support,Transitions and Ordinary Lives,UNITED RESPONSE,1469479,02/08/2022,4011416,"1,914.00",0.00,N/A,N/A
People Services - Adults and Health,Learning Disability Support,Transitions and Ordinary Lives,UNITED RESPONSE,1469479,02/08/2022,4011415,522.00,0.00,N/A,N/A
People Services - Adults and Health,Learning Disability Support,Transitions and Ordinary Lives,UNITED RESPONSE,1469479,02/08/2022,4011654,"2,436.00",0.00,N/A,N/A
People Services - Adults and Health,Learning Disability Support,Transitions and Ordinary Lives,UNITED RESPONSE,1469479,02/08/2022,4011565,696.00,0.00,N/A,N/A
People Services - Adults and Health,Learning Disability Support,Transitions and Ordinary Lives,UNITED RESPONSE,1469479,02/08/2022,4011564,"1,653.00",0.00,N/A,N/A
Communities & Place,Parks & Healthy Living,"Leisure, Culture and Tourism",UNIVAR SOLUTIONS BV,1885480,02/08/2022,4006746,848.80,0.00,N/A,N/A
People Services - Children & Young People,Integrated Services,Non-Schools,UNIVERSITY HOSPITALS OF DERBY AND BURTON NHS FOUNDATION TRUST,907472,02/08/2022,3984454,"4,410.00",0.00,The Light House Residential,Healthcare Services
People Services - Children & Young People,Integrated Services,Non-Schools,UNIVERSITY HOSPITALS OF DERBY AND BURTON NHS FOUNDATION TRUST,907472,02/08/2022,3984453,"1,644.00",0.00,D Paymnt Dis.Child Parent,Healthcare Services
People Services - Adults and Health,Physical Support,Community Support,UP24 SEVEN SERVICES LTD,1166483,02/08/2022,4011785,"1,104.32",0.00,N/A,N/A
People Services - Adults and Health,Physical Support,Community Support,UP24 SEVEN SERVICES LTD,1166483,02/08/2022,4011472,"1,041.04",0.00,N/A,N/A
People Services - Adults and Health,Physical Support,Community Support,UP24 SEVEN SERVICES LTD,1166483,02/08/2022,4011471,568.16,0.00,N/A,N/A
People Services - Adults and Health,Physical Support,Community Support,UP24 SEVEN SERVICES LTD,1166483,02/08/2022,4011782,"1,104.32",0.00,N/A,N/A
People Services - Adults and Health,Physical Support,Community Support,UP24 SEVEN SERVICES LTD,1166483,02/08/2022,4012039,995.80,0.00,N/A,N/A
People Services - Adults and Health,Physical Support,Community Support,UP24 SEVEN SERVICES LTD,1166483,02/08/2022,4012038,944.32,0.00,N/A,N/A
People Services - Adults and Health,Physical Support,Community Support,UP24 SEVEN SERVICES LTD,1166483,02/08/2022,4011872,"1,104.32",0.00,N/A,N/A
People Services - Adults and Health,Physical Support,Community Support,UP24 SEVEN SERVICES LTD,1166483,02/08/2022,4011717,995.80,0.00,N/A,N/A
People Services - Adults and Health,Physical Support,Community Support,UP24 SEVEN SERVICES LTD,1166483,02/08/2022,4011716,944.32,0.00,N/A,N/A
People Services - Adults and Health,Physical Support,Community Support,UP24 SEVEN SERVICES LTD,1166483,02/08/2022,4011710,"1,104.32",0.00,N/A,N/A
People Services - Adults and Health,Physical Support,Community Support,UP24 SEVEN SERVICES LTD,1166483,02/08/2022,4011709,995.80,0.00,N/A,N/A
People Services - Adults and Health,Physical Support,Community Support,UP24 SEVEN SERVICES LTD,1166483,02/08/2022,4011545,"1,041.04",0.00,N/A,N/A
People Services - Adults and Health,Physical Support,Community Support,UP24 SEVEN SERVICES LTD,1166483,02/08/2022,4011636,995.80,0.00,N/A,N/A
People Services - Adults and Health,Physical Support,Community Support,UP24 SEVEN SERVICES LTD,1166483,02/08/2022,4011635,568.16,0.00,N/A,N/A
People Services - Adults and Health,Physical Support,Community Support,UP24 SEVEN SERVICES LTD,1166483,02/08/2022,4011627,"1,130.24",0.00,N/A,N/A
People Services - Adults and Health,Physical Support,Community Support,UP24 SEVEN SERVICES LTD,1166483,02/08/2022,4011544,"1,130.24",0.00,N/A,N/A
People Services - Adults and Health,Physical Support,Community Support,UP24 SEVEN SERVICES LTD,1166483,02/08/2022,4011953,944.32,0.00,N/A,N/A
People Services - Adults and Health,Physical Support,Community Support,UP24 SEVEN SERVICES LTD,1166483,02/08/2022,4011470,944.32,0.00,N/A,N/A
People Services - Adults and Health,Physical Support,Community Support,UP24 SEVEN SERVICES LTD,1166483,02/08/2022,4011781,855.52,0.00,N/A,N/A
People Services - Adults and Health,Physical Support,Community Support,UP24 SEVEN SERVICES LTD,1166483,02/08/2022,4012042,944.32,0.00,N/A,N/A
People Services - Adults and Health,Physical Support,Community Support,UP24 SEVEN SERVICES LTD,1166483,02/08/2022,4011875,944.32,0.00,N/A,N/A
People Services - Adults and Health,Physical Support,Community Support,UP24 SEVEN SERVICES LTD,1166483,02/08/2022,4011707,855.52,0.00,N/A,N/A
People Services - Adults and Health,Physical Support,Community Support,UP24 SEVEN SERVICES LTD,1166483,02/08/2022,4011469,997.92,0.00,N/A,N/A
People Services - Adults and Health,Physical Support,Community Support,UP24 SEVEN SERVICES LTD,1166483,02/08/2022,4011630,"1,208.64",0.00,N/A,N/A
People Services - Adults and Health,Physical Support,Community Support,UP24 SEVEN SERVICES LTD,1166483,02/08/2022,4011629,"1,208.64",0.00,N/A,N/A
People Services - Adults and Health,Physical Support,Community Support,UP24 SEVEN SERVICES LTD,1166483,02/08/2022,4011628,997.92,0.00,N/A,N/A
People Services - Adults and Health,Physical Support,Community Support,UP24 SEVEN SERVICES LTD,1166483,02/08/2022,4011550,997.92,0.00,N/A,N/A
People Services - Adults and Health,Physical Support,Community Support,UP24 SEVEN SERVICES LTD,1166483,02/08/2022,4011959,997.92,0.00,N/A,N/A
People Services - Adults and Health,Physical Support,Community Support,UP24 SEVEN SERVICES LTD,1166483,02/08/2022,4011638,"1,208.64",0.00,N/A,N/A
People Services - Adults and Health,Physical Support,Community Support,UP24 SEVEN SERVICES LTD,1166483,02/08/2022,4011637,"1,208.64",0.00,N/A,N/A
People Services - Adults and Health,Physical Support,Community Support,UP24 SEVEN SERVICES LTD,1166483,02/08/2022,4012043,"1,208.64",0.00,N/A,N/A
People Services - Adults and Health,Physical Support,Community Support,UP24 SEVEN SERVICES LTD,1166483,02/08/2022,4011876,"1,208.64",0.00,N/A,N/A
People Services - Adults and Health,Physical Support,Community Support,UP24 SEVEN SERVICES LTD,1166483,02/08/2022,4011712,"1,208.64",0.00,N/A,N/A
People Services - Adults and Health,Physical Support,Community Support,UP24 SEVEN SERVICES LTD,1166483,02/08/2022,4011632,"1,208.64",0.00,N/A,N/A
People Services - Adults and Health,Physical Support,Community Support,UP24 SEVEN SERVICES LTD,1166483,02/08/2022,4011958,"1,312.96",0.00,N/A,N/A
People Services - Adults and Health,Physical Support,Community Support,UP24 SEVEN SERVICES LTD,1166483,02/08/2022,4011786,"1,104.32",0.00,N/A,N/A
People Services - Adults and Health,Physical Support,Community Support,UP24 SEVEN SERVICES LTD,1166483,02/08/2022,4011783,"1,104.32",0.00,N/A,N/A
People Services - Adults and Health,Physical Support,Community Support,UP24 SEVEN SERVICES LTD,1166483,02/08/2022,4011869,"1,104.32",0.00,N/A,N/A
People Services - Adults and Health,Physical Support,Community Support,UP24 SEVEN SERVICES LTD,1166483,02/08/2022,4011868,763.52,0.00,N/A,N/A
People Services - Adults and Health,Physical Support,Community Support,UP24 SEVEN SERVICES LTD,1166483,02/08/2022,4011718,"1,104.32",0.00,N/A,N/A
People Services - Adults and Health,Physical Support,Community Support,UP24 SEVEN SERVICES LTD,1166483,02/08/2022,4011548,"1,312.96",0.00,N/A,N/A
People Services - Adults and Health,Physical Support,Community Support,UP24 SEVEN SERVICES LTD,1166483,02/08/2022,4011546,763.52,0.00,N/A,N/A
People Services - Adults and Health,Physical Support,Community Support,UP24 SEVEN SERVICES LTD,1166483,02/08/2022,4012037,691.32,0.00,N/A,N/A
People Services - Adults and Health,Physical Support,Community Support,UP24 SEVEN SERVICES LTD,1166483,02/08/2022,4011708,691.32,0.00,N/A,N/A
People Services - Adults and Health,Physical Support,Community Support,UP24 SEVEN SERVICES LTD,1166483,02/08/2022,4011957,"1,208.64",0.00,N/A,N/A
People Services - Adults and Health,Physical Support,Community Support,UP24 SEVEN SERVICES LTD,1166483,02/08/2022,4011951,"1,208.64",0.00,N/A,N/A
People Services - Adults and Health,Physical Support,Community Support,UP24 SEVEN SERVICES LTD,1166483,02/08/2022,4011950,"1,208.64",0.00,N/A,N/A
People Services - Adults and Health,Physical Support,Community Support,UP24 SEVEN SERVICES LTD,1166483,02/08/2022,4011873,"1,208.64",0.00,N/A,N/A
People Services - Adults and Health,Learning Disability Support,Transitions and Ordinary Lives,UP24 SEVEN SERVICES LTD,1166483,02/08/2022,4011473,"1,433.76",0.00,N/A,N/A
People Services - Adults and Health,Learning Disability Support,Transitions and Ordinary Lives,UP24 SEVEN SERVICES LTD,1166483,02/08/2022,4012040,"1,433.76",0.00,N/A,N/A
People Services - Adults and Health,Learning Disability Support,Transitions and Ordinary Lives,UP24 SEVEN SERVICES LTD,1166483,02/08/2022,4011720,"1,562.72",0.00,N/A,N/A
People Services - Adults and Health,Learning Disability Support,Transitions and Ordinary Lives,UP24 SEVEN SERVICES LTD,1166483,02/08/2022,4011713,"1,562.72",0.00,N/A,N/A
People Services - Adults and Health,Support with Memory and Cognition,Community Support,UP24 SEVEN SERVICES LTD,1166483,02/08/2022,4012044,"1,208.64",0.00,N/A,N/A
People Services - Adults and Health,Support with Memory and Cognition,Community Support,UP24 SEVEN SERVICES LTD,1166483,02/08/2022,4011547,"1,208.64",0.00,N/A,N/A
People Services - Adults and Health,Support with Memory and Cognition,Community Support,UP24 SEVEN SERVICES LTD,1166483,02/08/2022,4011960,"1,208.64",0.00,N/A,N/A
People Services - Adults and Health,Support with Memory and Cognition,Community Support,UP24 SEVEN SERVICES LTD,1166483,02/08/2022,4011633,"1,208.64",0.00,N/A,N/A
People Services - Adults and Health,Mental Health Support,Mental Health,UP24 SEVEN SERVICES LTD,1166483,02/08/2022,4011474,693.24,0.00,N/A,N/A
People Services - Adults and Health,Mental Health Support,Mental Health,UP24 SEVEN SERVICES LTD,1166483,02/08/2022,4011639,693.24,0.00,N/A,N/A
People Services - Children & Young People,Non Delegated Schools Budget,Schools Block,WALES HIGH SCHOOL,1065479,02/08/2022,4009468,556.00,0.00,N/A,N/A
Communities & Place,Leisure,"Leisure, Culture and Tourism",WATER PLUS LIMITED,1034471,02/08/2022,4006807,"2,361.02",0.00,N/A,N/A
People Services - Children & Young People,Early Help & Children’s Safeguarding,Non-Schools,WESTERN CARS CO,5202,02/08/2022,4012217,705.00,0.00,Chellaston Team,Commercial and Military and Private Vehi
People Services - Children & Young People,Early Help & Children’s Safeguarding,Non-Schools,WESTERN CARS CO,5202,02/08/2022,4008943,"1,000.00",0.00,Sinfin Team,Commercial and Military and Private Vehi
People Services - Children & Young People,Early Help & Children’s Safeguarding,Non-Schools,WESTERN CARS CO,5202,02/08/2022,4008942,750.00,0.00,Sinfin Team,Commercial and Military and Private Vehi
Communities & Place,"Highways, Gounds Maintenance and Flood Defence",Public Protection and Streetride,WOLSELEY UK LTD,5259,02/08/2022,4008973,"1,412.88",0.00,Highways Maintenance Reactionary Works,Structures and Building and Construction
Communities & Place,"Highways, Gounds Maintenance and Flood Defence",Public Protection and Streetride,WOLSELEY UK LTD,5259,02/08/2022,4008894,938.85,0.00,Highways Maintenance Reactionary Works,Structures and Building and Construction
Communities & Place,"Highways, Gounds Maintenance and Flood Defence",Public Protection and Streetride,WOLSELEY UK LTD,5259,02/08/2022,4009041,"1,029.99",0.00,Highways Maintenance Reactionary Works,Structures and Building and Construction
Communities & Place,"Highways, Gounds Maintenance and Flood Defence",Public Protection and Streetride,WOLSELEY UK LTD,5259,02/08/2022,4009041,710.61,0.00,Highways Maintenance Reactionary Works,Structures and Building and Construction
Neighbourhoods,Neighbourhoods,Neighbourhoods,XAIS ASSET MANAGEMENT LTD,1123480,02/08/2022,4009011,"20,000.00",0.00,UPRN 10110 - Asset Management - Highways Maintenance,Information Technology Broadcasting and
People Services - Children & Young People,Non Delegated Schools Budget,Schools Block,YOUR CHAPTER LTD,1832479,02/08/2022,4009445,649.00,0.00,N/A,N/A
Communities & Place,Economic Development,City Development & Growth,1981D,1882482,04/08/2022,4012775,757.84,0.00,N/A,N/A
People Services - Children & Young People,Integrated Services,Non-Schools,ACCORA LTD,530442,04/08/2022,3998671,"1,275.00",0.00,The Light House Residential,Medical Equipment and Accessories and Su
Communities & Place,Strategic Housing,City Development & Growth,ADFAN LIMITED,470777,04/08/2022,4013233,510.00,0.00,Housing Options (Private),Travel and Food and Lodging and Entertai
Communities & Place,Strategic Housing,City Development & Growth,ADFAN LIMITED,470777,04/08/2022,4013232,"1,487.50",0.00,Housing Options (Private),Travel and Food and Lodging and Entertai
Communities & Place,Strategic Housing,City Development & Growth,ADFAN LIMITED,470777,04/08/2022,4013231,"1,530.00",0.00,Housing Options (Private),Travel and Food and Lodging and Entertai
Communities & Place,Strategic Housing,City Development & Growth,ADFAN LIMITED,470777,04/08/2022,4013230,910.00,0.00,Housing Options (Private),Travel and Food and Lodging and Entertai
People Services - Children & Young People,Early Help & Children’s Safeguarding,Non-Schools,ALDI STORES LIMITED,1029494,04/08/2022,4012726,"1,500.00",0.00,Food Vouchers,Food Beverage and Tobacco Products
People Services - Adults and Health,Social Care Activities,Home First,APS GROUP,1006473,04/08/2022,4012776,988.03,0.00,Blue Badge and Appointeeship,Management and Business Professionals an
Communities & Place,"Highways, Gounds Maintenance and Flood Defence",Public Protection and Streetride,AQUAM WATER SERVICES,1609484,04/08/2022,4012734,"2,460.00",0.00,N/A,N/A
Communities & Place,Community Safety,Public Protection and Streetride,ASSOCIATION OF UKRAINIANS IN GREAT BRITAIN DERBY BRANCH,1840476,04/08/2022,4009492,"20,346.50",0.00,N/A,N/A
Communities & Place,Parks & Healthy Living,"Leisure, Culture and Tourism",ATLOW CONTRACTING LTD,423402,04/08/2022,4012723,"1,950.00",0.00,Parks - Commuted Sums,Environmental Services
Communities & Place,Strategic Housing,City Development & Growth,BALFOUR BEATTY LIVING PLACES LTD,1524482,04/08/2022,4000120,539.41,0.00,N/A,N/A
People Services - Children & Young People,Integrated Services,Non-Schools,BUNZL CLEANING AND HYGIENE SUPPLIES,961498,04/08/2022,4007184,803.18,0.00,Limestone House,Chemicals including Bio Chemicals and Ga
People Services - Children & Young People,Early Help & Children’s Safeguarding,Non-Schools,CDW LTD,1377474,04/08/2022,3970087,805.61,0.00,N/A,N/A
Communities & Place,"Waste, Street Cleansing & Fleet",Public Protection and Streetride,CERTAS ENERGY UK LIMITED,1725490,04/08/2022,4013243,"50,646.82",0.00,N/A,N/A
Corporate Resources,Property Design & Maintenance,Property,CONCEPT ELEVATORS UK LIMITED,1116493,04/08/2022,4013386,975.00,0.00,N/A,N/A
Corporate Resources,Digital Services & Customer Management,Digital Services & Customer Management,CROWN HOSTING DATA CENTRES LTD,470548,04/08/2022,4012221,"1,865.76",0.00,IT Infrastructure,Information Technology Broadcasting and
People Services - Children & Young People,Learning & Inclusion,Non-Schools,D2N2 LOCAL ENTERPRISE PARTNERSHIP,1722491,04/08/2022,4007224,"63,000.00",0.00,N/A,N/A
People Services - Children & Young People,Commissioning,Non-Schools,DERBY CITY BSF LIMITED,127009,04/08/2022,4013200,"6,868.24",0.00,N/A,N/A
People Services - Children & Young People,Commissioning,Non-Schools,DERBY CITY BSF LIMITED,127009,04/08/2022,4013200,"5,447.47",0.00,N/A,N/A
People Services - Children & Young People,Commissioning,Non-Schools,DERBY CITY BSF LIMITED,127009,04/08/2022,4013200,"3,048.16",0.00,N/A,N/A
People Services - Children & Young People,Commissioning,Non-Schools,DERBY CITY BSF LIMITED,127009,04/08/2022,4013200,"6,677.17",0.00,N/A,N/A
People Services - Children & Young People,Commissioning,Non-Schools,DERBY CITY BSF LIMITED,127009,04/08/2022,4013200,"3,408.32",0.00,N/A,N/A
People Services - Children & Young People,Commissioning,Non-Schools,DERBY CITY BSF LIMITED,127009,04/08/2022,4013200,"470,188.77",0.00,N/A,N/A
People Services - Children & Young People,Commissioning,Non-Schools,DERBY CITY BSF LIMITED,127009,04/08/2022,4013200,"1,996.83",0.00,N/A,N/A
People Services - Children & Young People,Commissioning,Non-Schools,DERBY CITY BSF LIMITED,127009,04/08/2022,4013200,"11,422.50",0.00,N/A,N/A
People Services - Children & Young People,Commissioning,Non-Schools,DERBY CITY BSF LIMITED,127009,04/08/2022,4013200,620.17,0.00,N/A,N/A
People Services - Children & Young People,Commissioning,Non-Schools,DERBY CITY BSF LIMITED,127009,04/08/2022,4013200,"3,340.16",0.00,N/A,N/A
People Services - Children & Young People,Early Help & Children’s Safeguarding,Non-Schools,DERBY GUESTHOUSE LTD,255426,04/08/2022,4012744,"1,650.00",0.00,Intentionally Homeless People,Travel and Food and Lodging and Entertai
Communities & Place,Leisure,"Leisure, Culture and Tourism",DERBY SHAKESPEARE THEATRE COMPANY,1688491,04/08/2022,4008925,"4,068.00",0.00,N/A,N/A
Corporate Resources,Communication and Consultation,Coroprate Core,DERBYARTS,1649496,04/08/2022,4008976,655.00,0.00,N/A,N/A
People Services - Adults and Health,Public Health,Public Health,DERBYSHIRE HEALTHCARE NHS FOUNDATION TRUST,107468,04/08/2022,4009401,"36,347.00",0.00,Integrated Substance Misuse Service,Healthcare Services
People Services - Adults and Health,Public Health,Public Health,DERBYSHIRE HEALTHCARE NHS FOUNDATION TRUST,107468,04/08/2022,4009400,"10,000.00",0.00,Integrated Substance Misuse Service,Healthcare Services
People Services - Adults and Health,Public Health,Public Health,DERBYSHIRE HEALTHCARE NHS FOUNDATION TRUST,107468,04/08/2022,4009403,"6,668.00",0.00,Controlled Drugs Costs,Healthcare Services
Corporate Resources,Facilities Management,Property,DIGITAL ID LTD,1717474,04/08/2022,4007901,"1,347.50",0.00,N/A,N/A
People Services - Children & Young People,Early Help & Children’s Safeguarding,Non-Schools,DR DORMAN PSYCHOLOGY SERVICES,1883469,04/08/2022,4013181,"2,620.80",0.00,N/A,N/A
Corporate Resources,Corporate Health and Safety,Property,EDUFOCUS LTD,82971,04/08/2022,4013135,"4,999.00",0.00,Health and Safety Team,Information Technology Broadcasting and
Communities & Place,Regeneration and Major Projects,City Development & Growth,EKOSGEN,170405,04/08/2022,4012729,"7,266.00",0.00,N/A,N/A
People Services - Children & Young People,Learning & Inclusion,Non-Schools,ENHANCE EHC LIMITED,473655,04/08/2022,4013234,640.00,0.00,Special Education Needs Support,Education and Training Services
Corporate Resources,Financial Services,Financial Services,EREWASH BOROUGH COUNCIL,912478,04/08/2022,4008893,"1,500.00",0.00,Council Tax Billing,Management and Business Professionals an
Corporate Resources,Property Design & Maintenance,Property,FAITHFUL AND GOULD LIMITED,945490,04/08/2022,4013425,"1,877.14",0.00,N/A,N/A
Corporate Resources,Property Design & Maintenance,Property,FAITHFUL AND GOULD LIMITED,945490,04/08/2022,4013397,"1,116.19",0.00,N/A,N/A
Corporate Resources,Property Design & Maintenance,Property,FAITHFUL AND GOULD LIMITED,945490,04/08/2022,4013390,"1,116.19",0.00,N/A,N/A
Corporate Resources,Property Design & Maintenance,Property,FAITHFUL AND GOULD LIMITED,945490,04/08/2022,4013389,"1,525.57",0.00,N/A,N/A
Corporate Resources,Property Design & Maintenance,Property,FAITHFUL AND GOULD LIMITED,945490,04/08/2022,4013385,"7,384.44",0.00,N/A,N/A
Corporate Resources,Property Design & Maintenance,Property,FAITHFUL AND GOULD LIMITED,945490,04/08/2022,4013383,860.84,0.00,N/A,N/A
Children and Young People,Children and Young People,Children and Young People,G2V RECRUITMENT GROUP LIMITED,1617488,04/08/2022,4000923,648.69,0.00,N/A,N/A
Children and Young People,Children and Young People,Children and Young People,G2V RECRUITMENT GROUP LIMITED,886471,04/08/2022,4009024,648.69,0.00,TCF Tranche 2 - Bus & Rapid Transit Links,Management and Business Professionals an
Children and Young People,Children and Young People,Children and Young People,G2V RECRUITMENT GROUP LIMITED,1617488,04/08/2022,3978291,583.87,0.00,N/A,N/A
Communities & Place,Traffic & Transportation,Planning & Transportation,G2V RECRUITMENT GROUP LIMITED,1617488,04/08/2022,3978290,"3,100.00",0.00,N/A,N/A
Corporate Resources,Property Design & Maintenance,Property,G2V RECRUITMENT GROUP LTD G2 RECRUITMENT (INTERFACE),1664490,04/08/2022,4013422,"3,750.00",0.00,N/A,N/A
Corporate Resources,Property Design & Maintenance,Property,G2V RECRUITMENT GROUP LTD G2 RECRUITMENT (INTERFACE),1664490,04/08/2022,4013395,"1,850.00",0.00,N/A,N/A
People Services - Adults and Health,Learning Disability Support,Community Support,GELDARD AND SON LIMITED,1144470,04/08/2022,4013185,"2,446.72",0.00,South Adults (under 65) LD - DP/Mgd,Healthcare Services
People Services - Adults and Health,Learning Disability Support,Community Support,GELDARD AND SON LIMITED,1144470,04/08/2022,4013163,"2,446.72",0.00,South Adults (under 65) LD - DP/Mgd,Healthcare Services
People Services - Adults and Health,Mental Health Support,Mental Health,GELDARD AND SON LIMITED,1144470,04/08/2022,4013182,"1,218.00",0.00,West/South MH Support Adults (under 65) - DP/Mgd,Healthcare Services
People Services - Adults and Health,Mental Health Support,Mental Health,GELDARD AND SON LIMITED,1144470,04/08/2022,4013178,"1,218.00",0.00,West/South MH Support Adults (under 65) - DP/Mgd,Healthcare Services
People Services - Adults and Health,Mental Health Support,Mental Health,GELDARD AND SON LIMITED,1144470,04/08/2022,4013154,812.00,0.00,West/South MH Support Adults (under 65) - R/N,Healthcare Services
People Services - Adults and Health,Mental Health Support,Mental Health,GELDARD AND SON LIMITED,1144470,04/08/2022,4013149,840.00,0.00,West/South MH Support OP (over 65) - R/N,Healthcare Services
Neighbourhoods,Neighbourhoods,Neighbourhoods,GELDER LIMITED,1519479,04/08/2022,4013382,"6,361.31",0.00,N/A,N/A
Communities & Place,"Highways, Gounds Maintenance and Flood Defence",Public Protection and Streetride,GTM GO TRAFFIC MANAGEMENT,1683518,04/08/2022,4009437,600.00,0.00,N/A,N/A
Resources,Resources,Resources,HORIZON SPECIALIST CONTRACTING LIMITED,1731469,04/08/2022,4013413,"21,767.82",0.00,N/A,N/A
People Services - Children & Young People,Learning & Inclusion,Non-Schools,INSPIRE,1085472,04/08/2022,4000942,"19,815.00",0.00,N/A,N/A
Communities & Place,"Highways, Gounds Maintenance and Flood Defence",Public Protection and Streetride,JC BALLS AND SONS,164349,04/08/2022,4012742,570.00,0.00,Highways Maintenance Reactionary Works,Building and Construction Machinery and
Communities & Place,Traffic & Transportation,Planning & Transportation,JCT CONSULTANCY LTD,2155,04/08/2022,4012771,"1,180.80",0.00,Network Management,Management and Business Professionals an
Corporate Resources,Communication and Consultation,Coroprate Core,JOHN E WRIGHT & CO LTD,2190,04/08/2022,4012719,"1,626.00",0.00,Corporate Communications,Printing and Photographic and Audio and
Corporate Resources,Communication and Consultation,Coroprate Core,JOHN E WRIGHT & CO LTD,2190,04/08/2022,4012719,926.50,0.00,Corporate Communications,Printing and Photographic and Audio and
Communities & Place,Parks & Healthy Living,"Leisure, Culture and Tourism",KINGS ARMOURED SECURITY SERVICES LIMITED,2618,04/08/2022,4013214,703.60,0.00,Markeaton Park & Mundy Play Centre,National Defense and Public Order and Se
Communities & Place,Leisure,"Leisure, Culture and Tourism",KIRK CONTRACTS LTD,2621,04/08/2022,4009315,628.00,0.00,N/A,N/A
Corporate Resources,Property Design & Maintenance,Property,KIWA CMT,153381,04/08/2022,4008955,"2,046.00",0.00,Repair & Maintenance Works,Building and Construction and Maintenanc
Corporate Resources,Property Design & Maintenance,Property,KORDUS CONSULTING LIMITED,1746495,04/08/2022,4013408,749.40,0.00,N/A,N/A
Adults Health and Housing,Adults Health and Housing,Adults Health and Housing,KORDUS CONSULTING LIMITED,1746495,04/08/2022,4013416,"1,200.00",0.00,N/A,N/A
Children and Young People,Children and Young People,Children and Young People,KORDUS CONSULTING LIMITED,1746495,04/08/2022,4013409,"1,504.00",0.00,N/A,N/A
Corporate Resources,Financial Services,Financial Services,LIBERATA UK LTD,109209,04/08/2022,4007933,"8,222.87",0.00,Council Tax Billing,Management and Business Professionals an
Corporate Resources,Financial Services,Financial Services,LIBERATA UK LTD,109209,04/08/2022,4007932,"12,055.34",0.00,Council Tax Billing,Management and Business Professionals an
Corporate Resources,Financial Services,Financial Services,LIBERATA UK LTD,109209,04/08/2022,4008950,"6,743.38",0.00,Council Tax Billing,Management and Business Professionals an
Communities & Place,"Culture, Business Development & Tourism","Leisure, Culture and Tourism",LIMELIGHT ENTERTAINMENT LIMITED,1687481,04/08/2022,4013261,"6,579.00",0.00,N/A,N/A
Communities & Place,"Highways, Gounds Maintenance and Flood Defence",Public Protection and Streetride,LODGE TYRES CO LTD,186856,04/08/2022,4013132,976.70,0.00,Grounds Maintenance,Commercial and Military and Private Vehi
Communities & Place,"Waste, Street Cleansing & Fleet",Public Protection and Streetride,LODGE TYRES CO LTD,186856,04/08/2022,4013204,"5,902.50",0.00,Vehicle Maintenance,Commercial and Military and Private Vehi
Communities & Place,Strategic Housing,City Development & Growth,LOWER GROVE GUEST HOUSE,433406,04/08/2022,4013228,714.00,0.00,N/A,N/A
People Services - Adults and Health,Learning Disability Support,Community Support,MACKWORTH SUPPORTED HOUSING,2553,04/08/2022,4013150,"1,674.40",0.00,Central OP (over 65) LD - DP/Mgd,Healthcare Services
Corporate Resources,Property Design & Maintenance,Property,MANOR ELECTRICAL SERVICES,1799473,04/08/2022,4013411,824.00,0.00,N/A,N/A
Corporate Resources,Property Design & Maintenance,Property,MITIE TECHNICAL FACILITIES MANAGEMENT LTD,188130,04/08/2022,4013398,"26,597.56",0.00,N/A,N/A
People Services - Children & Young People,Commissioning,Non-Schools,NOEL BAKER ACADEMY,595442,04/08/2022,4013292,"3,748.88",0.00,N/A,N/A
People Services - Adults and Health,Learning Disability Support,Transitions and Ordinary Lives,PHOENIX LEARNING AND CARE LIMITED,653451,04/08/2022,4013198,"5,307.68",0.00,Preparing for adulthood 18-24 LD – DP/Mgd,Education and Training Services
People Services - Adults and Health,Learning Disability Support,Transitions and Ordinary Lives,PHOENIX LEARNING AND CARE LIMITED,653451,04/08/2022,4013174,"5,307.68",0.00,Preparing for adulthood 18-24 LD – DP/Mgd,Education and Training Services
Corporate Resources,Digital Services & Customer Management,Digital Services & Customer Management,PRO DBA LTD,889471,04/08/2022,4012733,"3,827.00",0.00,IT Infrastructure,Information Technology Broadcasting and
Corporate Resources,Digital Services & Customer Management,Digital Services & Customer Management,PRO DBA LTD,889471,04/08/2022,4012733,876.00,0.00,IT Infrastructure,Information Technology Broadcasting and
People Services - Children & Young People,Commissioning,Non-Schools,REDACTED - PERSONAL DATA,1555477,04/08/2022,4012791,684.00,0.00,N/A,N/A
People Services - Children & Young People,Commissioning,Non-Schools,REDACTED - PERSONAL DATA,1550498,04/08/2022,4013274,504.90,0.00,N/A,N/A
People Services - Adults and Health,Physical Support,Community Support,REDACTED - PERSONAL DATA,1750487,04/08/2022,4013339,"2,114.44",0.00,N/A,N/A
People Services - Adults and Health,Physical Support,Community Support,REDACTED - PERSONAL DATA,1750487,04/08/2022,4013335,"2,114.44",0.00,N/A,N/A
People Services - Adults and Health,Physical Support,Community Support,REDACTED - PERSONAL DATA,1750487,04/08/2022,4013372,"2,114.44",0.00,N/A,N/A
People Services - Adults and Health,Physical Support,Community Support,REDACTED - PERSONAL DATA,1750487,04/08/2022,4013362,"2,114.44",0.00,N/A,N/A
People Services - Adults and Health,Physical Support,Community Support,REDACTED - PERSONAL DATA,1750487,04/08/2022,4013343,"1,260.96",0.00,N/A,N/A
People Services - Adults and Health,Physical Support,Community Support,REDACTED - PERSONAL DATA,1750487,04/08/2022,4013334,"1,260.96",0.00,N/A,N/A
People Services - Adults and Health,Physical Support,Community Support,REDACTED - PERSONAL DATA,1750487,04/08/2022,4013371,"1,212.66",0.00,N/A,N/A
People Services - Adults and Health,Physical Support,Community Support,REDACTED - PERSONAL DATA,1750487,04/08/2022,4013369,"1,260.96",0.00,N/A,N/A
People Services - Adults and Health,Physical Support,Community Support,REDACTED - PERSONAL DATA,1750487,04/08/2022,4013365,"1,490.92",0.00,N/A,N/A
People Services - Adults and Health,Physical Support,Community Support,REDACTED - PERSONAL DATA,1750487,04/08/2022,4013357,"1,490.92",0.00,N/A,N/A
People Services - Adults and Health,Physical Support,Community Support,REDACTED - PERSONAL DATA,1750487,04/08/2022,4013355,"1,260.96",0.00,N/A,N/A
People Services - Adults and Health,Physical Support,Community Support,REDACTED - PERSONAL DATA,1750487,04/08/2022,4013354,843.72,0.00,N/A,N/A
People Services - Adults and Health,Physical Support,Community Support,REDACTED - PERSONAL DATA,1750487,04/08/2022,4013353,"1,490.92",0.00,N/A,N/A
People Services - Adults and Health,Physical Support,Community Support,REDACTED - PERSONAL DATA,1750487,04/08/2022,4013351,"1,490.92",0.00,N/A,N/A
People Services - Adults and Health,Physical Support,Community Support,REDACTED - PERSONAL DATA,1750487,04/08/2022,4013350,"1,216.96",0.00,N/A,N/A
People Services - Children & Young People,Commissioning,Non-Schools,REDACTED - PERSONAL DATA,1403473,04/08/2022,4013308,516.06,0.00,N/A,N/A
People Services - Children & Young People,Commissioning,Non-Schools,REDACTED - PERSONAL DATA,1800490,04/08/2022,4012809,936.00,0.00,N/A,N/A
People Services - Children & Young People,Commissioning,Non-Schools,REDACTED - PERSONAL DATA,1551482,04/08/2022,4012839,675.00,0.00,N/A,N/A
People Services - Children & Young People,Commissioning,Non-Schools,REDACTED - PERSONAL DATA,1034481,04/08/2022,4013320,634.50,0.00,N/A,N/A
People Services - Children & Young People,Commissioning,Non-Schools,REDACTED - PERSONAL DATA,768453,04/08/2022,4012779,637.20,0.00,N/A,N/A
People Services - Adults and Health,Shared Lives,Community Support,REDACTED - PERSONAL DATA,1123477,04/08/2022,4013429,"1,514.48",0.00,N/A,N/A
People Services - Adults and Health,Shared Lives,Community Support,REDACTED - PERSONAL DATA,1123477,04/08/2022,4013426,"2,121.72",0.00,N/A,N/A
People Services - Adults and Health,Shared Lives,Community Support,REDACTED - PERSONAL DATA,1123477,04/08/2022,4013430,769.32,0.00,N/A,N/A
People Services - Adults and Health,Learning Disability Support,Transitions and Ordinary Lives,REDACTED - PERSONAL DATA,1001491,04/08/2022,4013348,"1,308.04",0.00,N/A,N/A
People Services - Adults and Health,Learning Disability Support,Transitions and Ordinary Lives,REDACTED - PERSONAL DATA,1001491,04/08/2022,4013332,"1,308.04",0.00,N/A,N/A
People Services - Children & Young People,Commissioning,Non-Schools,REDACTED - PERSONAL DATA,1550510,04/08/2022,4013277,723.24,0.00,N/A,N/A
People Services - Children & Young People,Commissioning,Non-Schools,REDACTED - PERSONAL DATA,1637482,04/08/2022,4013331,"1,276.80",0.00,N/A,N/A
People Services - Children & Young People,Commissioning,Non-Schools,REDACTED - PERSONAL DATA,1570483,04/08/2022,4012830,930.60,0.00,N/A,N/A
People Services - Children & Young People,Commissioning,Non-Schools,REDACTED - PERSONAL DATA,1550504,04/08/2022,4012801,835.92,0.00,N/A,N/A
People Services - Children & Young People,Commissioning,Non-Schools,REDACTED - PERSONAL DATA,1550517,04/08/2022,4013318,541.44,0.00,N/A,N/A
People Services - Children & Young People,Commissioning,Non-Schools,REDACTED - PERSONAL DATA,1551497,04/08/2022,4012787,687.96,0.00,N/A,N/A
People Services - Children & Young People,Commissioning,Non-Schools,REDACTED - PERSONAL DATA,1180471,04/08/2022,4012790,"1,125.00",0.00,N/A,N/A
People Services - Children & Young People,Non Delegated Schools Budget,Schools Block,REDACTED - PERSONAL DATA,1637485,04/08/2022,4013283,"2,978.00",0.00,N/A,N/A
People Services - Children & Young People,Commissioning,Non-Schools,REDACTED - PERSONAL DATA,1890468,04/08/2022,4013272,"1,148.40",0.00,N/A,N/A
People Services - Children & Young People,Commissioning,Non-Schools,REDACTED - PERSONAL DATA,1551495,04/08/2022,4013305,543.78,0.00,N/A,N/A
People Services - Children & Young People,Commissioning,Non-Schools,REDACTED - PERSONAL DATA,1551474,04/08/2022,4013303,602.64,0.00,N/A,N/A
People Services - Children & Young People,Commissioning,Non-Schools,REDACTED - PERSONAL DATA,1104474,04/08/2022,4012229,"1,080.00",0.00,N/A,N/A
People Services - Children & Young People,Commissioning,Non-Schools,REDACTED - PERSONAL DATA,1038476,04/08/2022,4012829,"2,358.72",0.00,N/A,N/A
People Services - Children & Young People,Commissioning,Non-Schools,REDACTED - PERSONAL DATA,1551506,04/08/2022,4012833,531.00,0.00,N/A,N/A
People Services - Children & Young People,Commissioning,Non-Schools,REDACTED - PERSONAL DATA,1550495,04/08/2022,4012825,511.20,0.00,N/A,N/A
People Services - Children & Young People,Commissioning,Non-Schools,REDACTED - PERSONAL DATA,634443,04/08/2022,4013316,630.00,0.00,N/A,N/A
People Services - Children & Young People,Commissioning,Non-Schools,REDACTED - PERSONAL DATA,1551513,04/08/2022,4013325,610.56,0.00,N/A,N/A
People Services - Children & Young People,Commissioning,Non-Schools,REDACTED - PERSONAL DATA,1551489,04/08/2022,4013319,531.00,0.00,N/A,N/A
People Services - Children & Young People,Commissioning,Non-Schools,REDACTED - PERSONAL DATA,1551473,04/08/2022,4012798,"1,807.20",0.00,N/A,N/A
People Services - Children & Young People,Commissioning,Non-Schools,REDACTED - PERSONAL DATA,1790485,04/08/2022,4013304,653.40,0.00,N/A,N/A
People Services - Children & Young People,Commissioning,Non-Schools,REDACTED - PERSONAL DATA,1569468,04/08/2022,4012788,752.94,0.00,N/A,N/A
People Services - Children & Young People,Commissioning,Non-Schools,REDACTED - PERSONAL DATA,1889473,04/08/2022,4013328,"1,370.52",0.00,N/A,N/A
People Services - Children & Young People,Commissioning,Non-Schools,REDACTED - PERSONAL DATA,1551492,04/08/2022,4012785,794.88,0.00,N/A,N/A
People Services - Children & Young People,Commissioning,Non-Schools,REDACTED - PERSONAL DATA,1754479,04/08/2022,4013327,"1,574.10",0.00,N/A,N/A
People Services - Children & Young People,Commissioning,Non-Schools,REDACTED - PERSONAL DATA,1550520,04/08/2022,4012821,553.32,0.00,N/A,N/A
People Services - Children & Young People,Commissioning,Non-Schools,REDACTED - PERSONAL DATA,1100475,04/08/2022,4012786,858.60,0.00,N/A,N/A
People Services - Children & Young People,Commissioning,Non-Schools,REDACTED - PERSONAL DATA,1753477,04/08/2022,4012789,"1,067.04",0.00,N/A,N/A
People Services - Children & Young People,Commissioning,Non-Schools,REDACTED - PERSONAL DATA,1818472,04/08/2022,4012802,736.02,0.00,N/A,N/A
People Services - Children & Young People,Commissioning,Non-Schools,REDACTED - PERSONAL DATA,617458,04/08/2022,4013313,562.32,0.00,N/A,N/A
People Services - Children & Young People,Commissioning,Non-Schools,REDACTED - PERSONAL DATA,713465,04/08/2022,4013278,558.00,0.00,N/A,N/A
People Services - Children & Young People,Commissioning,Non-Schools,REDACTED - PERSONAL DATA,113081,04/08/2022,4012822,699.84,0.00,N/A,N/A
People Services - Children & Young People,Commissioning,Non-Schools,REDACTED - PERSONAL DATA,1552475,04/08/2022,4012817,702.90,0.00,N/A,N/A
People Services - Children & Young People,Commissioning,Non-Schools,REDACTED - PERSONAL DATA,113167,04/08/2022,4012813,896.76,0.00,N/A,N/A
People Services - Children & Young People,Early Help & Children’s Safeguarding,Non-Schools,REDACTED - PERSONAL DATA,1189471,04/08/2022,4009354,"1,200.00",0.00,N/A,N/A
People Services - Children & Young People,Early Help & Children’s Safeguarding,Non-Schools,REDACTED - PERSONAL DATA,1604476,04/08/2022,3989141,"1,880.00",0.00,N/A,N/A
People Services - Children & Young People,Early Help & Children’s Safeguarding,Non-Schools,REDACTED - PERSONAL DATA,470964,04/08/2022,4007070,625.00,0.00,N/A,N/A
People Services - Children & Young People,Commissioning,Non-Schools,REDACTED - PERSONAL DATA,715462,04/08/2022,4012812,711.00,0.00,N/A,N/A
People Services - Adults and Health,Physical Support,Community Support,REDACTED - PERSONAL DATA,1886477,04/08/2022,4013347,756.16,0.00,N/A,N/A
People Services - Adults and Health,Physical Support,Community Support,REDACTED - PERSONAL DATA,1886477,04/08/2022,4013346,756.16,0.00,N/A,N/A
People Services - Adults and Health,Physical Support,Community Support,REDACTED - PERSONAL DATA,1886477,04/08/2022,4013344,756.16,0.00,N/A,N/A
People Services - Children & Young People,Commissioning,Non-Schools,REDACTED - PERSONAL DATA,1551496,04/08/2022,4012808,706.86,0.00,N/A,N/A
People Services - Children & Young People,Commissioning,Non-Schools,REDACTED - PERSONAL DATA,1551479,04/08/2022,4012800,"1,098.36",0.00,N/A,N/A
People Services - Children & Young People,Commissioning,Non-Schools,REDACTED - PERSONAL DATA,1555476,04/08/2022,4012783,958.32,0.00,N/A,N/A
People Services - Adults and Health,Physical Support,Community Support,REDACTED - PERSONAL DATA,1789473,04/08/2022,4013336,"1,537.00",0.00,N/A,N/A
People Services - Children & Young People,Commissioning,Non-Schools,REDACTED - PERSONAL DATA,1569539,04/08/2022,4013307,"1,050.00",0.00,N/A,N/A
People Services - Children & Young People,Commissioning,Non-Schools,REDACTED - PERSONAL DATA,1551493,04/08/2022,4012806,"1,019.52",0.00,N/A,N/A
People Services - Children & Young People,Commissioning,Non-Schools,REDACTED - PERSONAL DATA,446399,04/08/2022,4012810,571.32,0.00,N/A,N/A
People Services - Children & Young People,Commissioning,Non-Schools,REDACTED - PERSONAL DATA,1750484,04/08/2022,4012804,521.64,0.00,N/A,N/A
Communities & Place,"Waste, Street Cleansing & Fleet",Public Protection and Streetride,S G TRANSMISSIONS,1846488,04/08/2022,4012143,750.00,0.00,N/A,N/A
Corporate Resources,Communication and Consultation,Coroprate Core,SCHOOLS PUBLISHING LTD,1652481,04/08/2022,4009004,"1,143.75",0.00,N/A,N/A
Neighbourhoods,Neighbourhoods,Neighbourhoods,SEDDON CONSTRUCTION LTD,1354530,04/08/2022,4013418,"119,822.90",0.00,N/A,N/A
People Services - Children & Young People,Non Delegated Schools Budget,Schools Block,SHAW EDUCATION TRUST,1232471,04/08/2022,4013287,"55,416.00",0.00,N/A,N/A
Communities & Place,"Culture, Business Development & Tourism","Leisure, Culture and Tourism",SHOWSEC INTERNATIONAL LTD,4772,04/08/2022,4013197,"2,026.62",0.00,Derby Live - Outdoor Events,Defense and Law Enforcement and Security
Corporate Resources,Digital Services & Customer Management,Digital Services & Customer Management,SIGMA X,1620491,04/08/2022,3998721,"1,120.00",0.00,N/A,N/A
Communities & Place,"Culture, Business Development & Tourism","Leisure, Culture and Tourism",SOMMER EVENT FLOORING LTD,1673483,04/08/2022,4009392,"2,634.00",0.00,N/A,N/A
People Services - Children & Young People,Integrated Services,Non-Schools,SOUTH WEST INTERVENTION SERVICES,1877471,04/08/2022,4009407,945.00,0.00,N/A,N/A
Communities & Place,"Waste, Street Cleansing & Fleet",Public Protection and Streetride,STORM ENVIRONMENTAL LTD,94280,04/08/2022,4008930,"4,484.85",0.00,Refuse Collection,Environmental Services
Communities & Place,"Waste, Street Cleansing & Fleet",Public Protection and Streetride,STORM ENVIRONMENTAL LTD,94280,04/08/2022,4008930,"5,130.15",0.00,Refuse Collection,Environmental Services
People Services - Children & Young People,Early Help & Children’s Safeguarding,Non-Schools,STRAW AND PEARCE,1010477,04/08/2022,4013203,520.80,0.00,Legal Fees,Management and Business Professionals an
People Services - Children & Young People,Early Help & Children’s Safeguarding,Non-Schools,STRAW AND PEARCE,1010477,04/08/2022,4013202,913.20,0.00,Legal Fees,Management and Business Professionals an
Resources,Resources,Resources,TECHNOLOGY ONE UK LTD,1790480,04/08/2022,4013216,"1,537.50",0.00,N/A,N/A
Corporate Resources,Facilities Management,Property,WORM PURPLE LTD,155352,04/08/2022,4013431,"1,900.00",0.00,Innovation Centre,Public Utilities and Public Sector Relat
Communities & Place,Traffic & Transportation,Planning & Transportation,YUNEX LIMITED,1743504,04/08/2022,4012738,"3,097.88",0.00,N/A,N/A
Communities & Place,Traffic & Transportation,Planning & Transportation,YUNEX LIMITED,1743504,04/08/2022,4012737,"3,380.73",0.00,N/A,N/A
Communities & Place,Traffic & Transportation,Planning & Transportation,YUNEX LIMITED,1743504,04/08/2022,4012740,"1,526.16",0.00,N/A,N/A
Communities & Place,Traffic & Transportation,Planning & Transportation,YUNEX LIMITED,1743504,04/08/2022,4012739,"22,026.77",0.00,N/A,N/A
Communities & Place,Strategic Housing,City Development & Growth,ZAYAN PROPERTIES LIMITED,1135471,04/08/2022,4013229,560.00,0.00,Housing Options (Private),Travel and Food and Lodging and Entertai
Communities & Place,Strategic Housing,City Development & Growth,ZAYAN PROPERTIES LIMITED,1135471,04/08/2022,4013223,560.00,0.00,Housing Options (Private),Travel and Food and Lodging and Entertai
Communities & Place,Strategic Housing,City Development & Growth,ZAYAN PROPERTIES LIMITED,1135471,04/08/2022,4013222,560.00,0.00,Housing Options (Private),Travel and Food and Lodging and Entertai
Communities & Place,Strategic Housing,City Development & Growth,ZAYAN PROPERTIES LIMITED,1135471,04/08/2022,4013221,560.00,0.00,Housing Options (Private),Travel and Food and Lodging and Entertai
Adults Health and Housing,Adults Health and Housing,Adults Health and Housing,AARON SERVICES LTD,1644484,09/08/2022,4013614,"2,076.90",0.00,N/A,N/A
People Services - Children & Young People,Non Delegated Schools Budget,Schools Block,ACE NURSERY,553444,09/08/2022,4013815,"27,171.90",0.00,N/A,N/A
People Services - Children & Young People,Non Delegated Schools Budget,Schools Block,ACE NURSERY,553444,09/08/2022,4013757,"6,140.93",0.00,N/A,N/A
People Services - Children & Young People,Non Delegated Schools Budget,Schools Block,ACTION FOR CHILDREN,932535,09/08/2022,4013894,"12,023.56",0.00,N/A,N/A
People Services - Children & Young People,Non Delegated Schools Budget,Schools Block,ACTION FOR CHILDREN,932535,09/08/2022,4013745,"3,533.15",0.00,N/A,N/A
Communities & Place,Strategic Housing,City Development & Growth,ADFAN LIMITED,470777,09/08/2022,4013536,910.00,0.00,Housing Options (Private),Travel and Food and Lodging and Entertai
People Services - Adults and Health,Learning Disability Support,Transitions and Ordinary Lives,AFFINITY SUPPORTING PEOPLE,1455510,09/08/2022,4012200,"2,971.48",0.00,N/A,N/A
Communities & Place,"Highways, Gounds Maintenance and Flood Defence",Public Protection and Streetride,AGGREGATE INDUSTRIES UK LTD,117850,09/08/2022,4013586,"1,317.75",0.00,Highways Maintenance Works,Building and Construction Machinery and
Communities & Place,"Highways, Gounds Maintenance and Flood Defence",Public Protection and Streetride,AGGREGATE INDUSTRIES UK LTD,117850,09/08/2022,4016016,544.67,0.00,Highways Maintenance Works,Building and Construction Machinery and
Communities & Place,"Highways, Gounds Maintenance and Flood Defence",Public Protection and Streetride,AGGREGATE INDUSTRIES UK LTD,117850,09/08/2022,4016106,603.78,0.00,Highways Maintenance Works,Building and Construction Machinery and
Communities & Place,"Highways, Gounds Maintenance and Flood Defence",Public Protection and Streetride,AGGREGATE INDUSTRIES UK LTD,117850,09/08/2022,4016103,643.92,0.00,Highways Maintenance Works,Building and Construction Machinery and
Communities & Place,"Highways, Gounds Maintenance and Flood Defence",Public Protection and Streetride,AGGREGATE INDUSTRIES UK LTD,117850,09/08/2022,4013611,"2,109.77",0.00,Highways Maintenance Reactionary Works,Building and Construction Machinery and
People Services - Children & Young People,Commissioning,Non-Schools,AHS CARS LTD,1550523,09/08/2022,4016256,"1,516.80",0.00,N/A,N/A
People Services - Children & Young People,Commissioning,Non-Schools,AHS CARS LTD,1550523,09/08/2022,4013682,"1,155.00",0.00,N/A,N/A
People Services - Children & Young People,Commissioning,Non-Schools,AHS CARS LTD,1550523,09/08/2022,4013681,"1,198.50",0.00,N/A,N/A
People Services - Children & Young People,Commissioning,Non-Schools,AHS CARS LTD,1550523,09/08/2022,4013679,958.40,0.00,N/A,N/A
People Services - Children & Young People,Commissioning,Non-Schools,AHS CARS LTD,1550523,09/08/2022,4013679,958.40,0.00,N/A,N/A
People Services - Children & Young People,Commissioning,Non-Schools,AHS CARS LTD,1550523,09/08/2022,4013678,"1,193.60",0.00,N/A,N/A
People Services - Children & Young People,Commissioning,Non-Schools,AHS CARS LTD,1550523,09/08/2022,4013677,"1,438.40",0.00,N/A,N/A
People Services - Children & Young People,Commissioning,Non-Schools,AHS CARS LTD,1550523,09/08/2022,4013675,"1,000.00",0.00,N/A,N/A
People Services - Children & Young People,Commissioning,Non-Schools,ALBATROSS CARS DERBY LTD,878452,09/08/2022,4017795,"1,900.00",0.00,Home To School Transport - SEN,Transportation and Storage and Mail Serv
People Services - Children & Young People,Commissioning,Non-Schools,ALBATROSS CARS DERBY LTD,878452,09/08/2022,4017794,550.00,0.00,Home To School Transport - SEN,Transportation and Storage and Mail Serv
People Services - Children & Young People,Commissioning,Non-Schools,ALBATROSS CARS DERBY LTD,878452,09/08/2022,4017793,"1,110.00",0.00,Home To School Transport - SEN,Transportation and Storage and Mail Serv
People Services - Children & Young People,Commissioning,Non-Schools,ALBATROSS CARS DERBY LTD,878452,09/08/2022,4013652,"1,144.00",0.00,Home To School Transport - SEN,Transportation and Storage and Mail Serv
People Services - Children & Young People,Commissioning,Non-Schools,ALBATROSS CARS DERBY LTD,878452,09/08/2022,4013638,"1,280.00",0.00,Home To School Transport - SEN,Transportation and Storage and Mail Serv
People Services - Children & Young People,Commissioning,Non-Schools,ALBATROSS CARS DERBY LTD,878452,09/08/2022,4013644,756.00,0.00,Home To School Transport - SEN,Transportation and Storage and Mail Serv
People Services - Children & Young People,Commissioning,Non-Schools,ALBATROSS CARS DERBY LTD,878452,09/08/2022,4013641,"1,320.00",0.00,Home To School Transport - SEN,Transportation and Storage and Mail Serv
People Services - Children & Young People,Commissioning,Non-Schools,ALBATROSS CARS DERBY LTD,878452,09/08/2022,4013637,"1,140.00",0.00,Home To School Transport - SEN,Transportation and Storage and Mail Serv
People Services - Children & Young People,Commissioning,Non-Schools,ALBATROSS CARS DERBY LTD,878452,09/08/2022,4013637,950.00,0.00,Home To School Transport - SEN,Transportation and Storage and Mail Serv
People Services - Children & Young People,Commissioning,Non-Schools,ALBATROSS CARS DERBY LTD,878452,09/08/2022,4013636,540.00,0.00,Home To School Transport - SEN,Transportation and Storage and Mail Serv
People Services - Children & Young People,Commissioning,Non-Schools,ALBATROSS CARS DERBY LTD,878452,09/08/2022,4013634,525.00,0.00,Home To School Transport - SEN,Transportation and Storage and Mail Serv
People Services - Children & Young People,Commissioning,Non-Schools,ALBATROSS CARS DERBY LTD,878452,09/08/2022,4013617,"22,166.67",0.00,Home To School Transport - SEN,Transportation and Storage and Mail Serv
People Services - Children & Young People,Commissioning,Non-Schools,ALBATROSS CARS DERBY LTD,878452,09/08/2022,4013669,"1,120.00",0.00,Home To School Transport - SEN,Transportation and Storage and Mail Serv
People Services - Children & Young People,Commissioning,Non-Schools,ALBATROSS CARS DERBY LTD,878452,09/08/2022,4013667,"1,360.00",0.00,Home To School Transport - SEN,Transportation and Storage and Mail Serv
People Services - Children & Young People,Commissioning,Non-Schools,ALBATROSS CARS DERBY LTD,878452,09/08/2022,4013659,640.00,0.00,Home To School Transport - SEN,Transportation and Storage and Mail Serv
People Services - Children & Young People,Commissioning,Non-Schools,ALBATROSS CARS DERBY LTD,878452,09/08/2022,4013658,720.00,0.00,Home To School Transport - SEN,Transportation and Storage and Mail Serv
People Services - Children & Young People,Commissioning,Non-Schools,ALBATROSS CARS DERBY LTD,878452,09/08/2022,4013654,720.00,0.00,Home To School Transport - SEN,Transportation and Storage and Mail Serv
People Services - Children & Young People,Commissioning,Non-Schools,ALBATROSS CARS DERBY LTD,878452,09/08/2022,4013651,600.00,0.00,Home To School Transport - SEN,Transportation and Storage and Mail Serv
People Services - Children & Young People,Commissioning,Non-Schools,ALBATROSS CARS DERBY LTD,878452,09/08/2022,4013650,"1,260.00",0.00,Home To School Transport - SEN,Transportation and Storage and Mail Serv
People Services - Children & Young People,Commissioning,Non-Schools,ALBATROSS CARS DERBY LTD,878452,09/08/2022,4013649,600.00,0.00,Home To School Transport - SEN,Transportation and Storage and Mail Serv
People Services - Children & Young People,Commissioning,Non-Schools,ALBATROSS CARS DERBY LTD,878452,09/08/2022,4013647,896.00,0.00,Home To School Transport - SEN,Transportation and Storage and Mail Serv
People Services - Children & Young People,Commissioning,Non-Schools,ALBATROSS CARS DERBY LTD,878452,09/08/2022,4013646,512.00,0.00,Home To School Transport - SEN,Transportation and Storage and Mail Serv
People Services - Children & Young People,Commissioning,Non-Schools,ALBATROSS CARS DERBY LTD,878452,09/08/2022,4013645,"1,008.00",0.00,Home To School Transport - SEN,Transportation and Storage and Mail Serv
People Services - Children & Young People,Non Delegated Schools Budget,Schools Block,ALLESTREE WOODLANDS SCHOOL,1683483,09/08/2022,4014553,708.48,0.00,N/A,N/A
People Services - Children & Young People,Non Delegated Schools Budget,Schools Block,ALLESTREE WOODLANDS SCHOOL,1683483,09/08/2022,4014135,899.08,0.00,N/A,N/A
People Services - Children & Young People,Non Delegated Schools Budget,Schools Block,ALLESTREE WOODLANDS SCHOOL,1683483,09/08/2022,4013952,819.00,0.00,N/A,N/A
People Services - Children & Young People,Non Delegated Schools Budget,Schools Block,ALLESTREE WOODLANDS SCHOOL,1683483,09/08/2022,4013951,702.00,0.00,N/A,N/A
Communities & Place,"Waste, Street Cleansing & Fleet",Public Protection and Streetride,ALLSTAR BUSINESS SOLUTIONS LTD,135370,09/08/2022,4013561,"16,722.06",0.00,Fleet Hire,Fuels and Fuel Additives and Lubricants
People Services - Children & Young People,Non Delegated Schools Budget,Schools Block,ALVASTON ACHIEVERS DAY NURSERY LIMITED,937504,09/08/2022,4013813,"27,886.95",0.00,N/A,N/A
People Services - Children & Young People,Non Delegated Schools Budget,Schools Block,ALVASTON ACHIEVERS DAY NURSERY LIMITED,937504,09/08/2022,4013699,"17,545.50",0.00,N/A,N/A
People Services - Children & Young People,Non Delegated Schools Budget,Schools Block,ANTHEM SCHOOLS TRUST,1719491,09/08/2022,4013855,"15,731.10",0.00,N/A,N/A
People Services - Children & Young People,Non Delegated Schools Budget,Schools Block,ANTHEM SCHOOLS TRUST,1719490,09/08/2022,4014176,"1,020.48",0.00,N/A,N/A
People Services - Children & Young People,Non Delegated Schools Budget,Schools Block,ANTHEM SCHOOLS TRUST,1719490,09/08/2022,4014175,766.76,0.00,N/A,N/A
People Services - Children & Young People,Non Delegated Schools Budget,Schools Block,ANTHEM SCHOOLS TRUST,1719490,09/08/2022,4014174,756.84,0.00,N/A,N/A
People Services - Children & Young People,Non Delegated Schools Budget,Schools Block,ANTHEM SCHOOLS TRUST,1719490,09/08/2022,4013987,509.72,0.00,N/A,N/A
People Services - Children & Young People,Non Delegated Schools Budget,Schools Block,ARCHWAY LEARNING TRUST,1683495,09/08/2022,4014374,679.76,0.00,N/A,N/A
People Services - Children & Young People,Non Delegated Schools Budget,Schools Block,ARCHWAY LEARNING TRUST DE24 0AN (INTERFACE),1683496,09/08/2022,4014319,"1,020.48",0.00,N/A,N/A
People Services - Children & Young People,Non Delegated Schools Budget,Schools Block,ARCHWAY LEARNING TRUST DE24 0AN (INTERFACE),1683496,09/08/2022,4014318,844.72,0.00,N/A,N/A
People Services - Children & Young People,Non Delegated Schools Budget,Schools Block,ARCHWAY LEARNING TRUST DE24 0AN (INTERFACE),1683496,09/08/2022,4014085,561.29,0.00,N/A,N/A
People Services - Children & Young People,Non Delegated Schools Budget,Schools Block,ARCHWAY LEARNING TRUST DE24 0AN (INTERFACE),1683496,09/08/2022,4014084,"1,627.36",0.00,N/A,N/A
People Services - Children & Young People,Non Delegated Schools Budget,Schools Block,ARCHWAY LEARNING TRUST DE24 0AN (INTERFACE),1683496,09/08/2022,4014586,726.52,0.00,N/A,N/A
People Services - Children & Young People,Non Delegated Schools Budget,Schools Block,ARCHWAY LEARNING TRUST DE24 0AN (INTERFACE),1683496,09/08/2022,4014169,"1,769.60",0.00,N/A,N/A
People Services - Children & Young People,Non Delegated Schools Budget,Schools Block,ARCHWAY LEARNING TRUST DE24 0AN (INTERFACE),1683496,09/08/2022,4014168,859.56,0.00,N/A,N/A
People Services - Children & Young People,Non Delegated Schools Budget,Schools Block,ARCHWAY LEARNING TRUST DE24 0AN (INTERFACE),1683496,09/08/2022,4014165,678.48,0.00,N/A,N/A
People Services - Children & Young People,Non Delegated Schools Budget,Schools Block,ARCHWAY LEARNING TRUST DE24 0AN (INTERFACE),1683496,09/08/2022,4014075,535.92,0.00,N/A,N/A
People Services - Children & Young People,Non Delegated Schools Budget,Schools Block,ARCHWAY LEARNING TRUST DE24 0AN (INTERFACE),1683496,09/08/2022,4013981,"1,114.68",0.00,N/A,N/A
Communities & Place,"Highways, Gounds Maintenance and Flood Defence",Public Protection and Streetride,ARRIVING LTD,217400,09/08/2022,4013563,"15,720.00",0.00,Highways Maintenance Works,Commercial and Military and Private Vehi
People Services - Children & Young People,Non Delegated Schools Budget,Schools Block,ASHWOOD SPENCER ACADEMY (INTERFACE),942473,09/08/2022,4013814,"13,585.95",0.00,N/A,N/A
People Services - Children & Young People,Non Delegated Schools Budget,Schools Block,ASHWOOD SPENCER ACADEMY (INTERFACE),1683513,09/08/2022,4014152,"1,759.80",0.00,N/A,N/A
People Services - Children & Young People,Non Delegated Schools Budget,Schools Block,ASHWOOD SPENCER ACADEMY (INTERFACE),1683513,09/08/2022,4014481,677.44,0.00,N/A,N/A
People Services - Children & Young People,Non Delegated Schools Budget,Schools Block,ASHWOOD SPENCER ACADEMY (INTERFACE),1683513,09/08/2022,4014572,"1,759.80",0.00,N/A,N/A
People Services - Children & Young People,Non Delegated Schools Budget,Schools Block,ASHWOOD SPENCER ACADEMY (INTERFACE),1683513,09/08/2022,4014391,"3,042.00",0.00,N/A,N/A
People Services - Children & Young People,Commissioning,Non-Schools,BASH TAXI,1836480,09/08/2022,4013618,796.80,0.00,N/A,N/A
Corporate Resources,Communication and Consultation,Coroprate Core,BAUER RADIO LTD,707450,09/08/2022,4008970,800.00,0.00,Corporate Communications,Information Technology Broadcasting and
People Services - Children & Young People,Non Delegated Schools Budget,Schools Block,BELIEVE ACADEMY TRUST,1718476,09/08/2022,4013820,"19,306.35",0.00,N/A,N/A
People Services - Children & Young People,Non Delegated Schools Budget,Schools Block,BELIEVE ACADEMY TRUST,1718476,09/08/2022,4013716,"10,527.30",0.00,N/A,N/A
People Services - Children & Young People,Non Delegated Schools Budget,Schools Block,BELIEVE ACADEMY TRUST,1718477,09/08/2022,4014315,860.72,0.00,N/A,N/A
People Services - Children & Young People,Non Delegated Schools Budget,Schools Block,BELIEVE ACADEMY TRUST,1718477,09/08/2022,4014495,"5,759.86",0.00,N/A,N/A
People Services - Children & Young People,Non Delegated Schools Budget,Schools Block,BELIEVE ACADEMY TRUST,1718477,09/08/2022,4014580,684.00,0.00,N/A,N/A
Communities & Place,"Waste, Street Cleansing & Fleet",Public Protection and Streetride,BIFFA WASTE SERVICES LTD,485,09/08/2022,4017645,"46,075.97",0.00,Waste Disposal,Environmental Services
Communities & Place,"Waste, Street Cleansing & Fleet",Public Protection and Streetride,BIFFA WASTE SERVICES LTD,485,09/08/2022,4017606,"44,879.26",0.00,Waste Disposal,Environmental Services
People Services - Children & Young People,Non Delegated Schools Budget,Schools Block,BISHOP LONSDALE CE AIDED PRIMARY SCHOOL AND NURSERY,932526,09/08/2022,4013897,"5,720.40",0.00,N/A,N/A
People Services - Children & Young People,Non Delegated Schools Budget,Schools Block,BISHOP LONSDALE CE AIDED PRIMARY SCHOOL AND NURSERY,1683481,09/08/2022,4014466,"1,332.28",0.00,N/A,N/A
People Services - Children & Young People,Non Delegated Schools Budget,Schools Block,BISHOP LONSDALE CE AIDED PRIMARY SCHOOL AND NURSERY,1683481,09/08/2022,4014131,771.24,0.00,N/A,N/A
People Services - Children & Young People,Non Delegated Schools Budget,Schools Block,BIZZY KIDZ,933490,09/08/2022,4013788,"46,478.25",0.00,N/A,N/A
People Services - Children & Young People,Non Delegated Schools Budget,Schools Block,BIZZY KIDZ,933490,09/08/2022,4013724,"10,527.30",0.00,N/A,N/A
Communities & Place,"Culture, Business Development & Tourism","Leisure, Culture and Tourism",BOLINDA UK LTD,200365,09/08/2022,4016088,"2,021.25",0.00,City Book Fund,Published Products
Communities & Place,"Culture, Business Development & Tourism","Leisure, Culture and Tourism",BOLINDA UK LTD,200365,09/08/2022,4016088,"1,801.27",0.00,City Book Fund,Published Products
People Services - Children & Young People,Non Delegated Schools Budget,Schools Block,BOULTON LANE PRE-SCHOOL PLAYGROUP,932483,09/08/2022,4013838,"3,575.25",0.00,N/A,N/A
People Services - Children & Young People,Non Delegated Schools Budget,Schools Block,BRAMBLEBROOK PRE SCHOOL PLAYGROUP,932518,09/08/2022,4013884,"7,150.50",0.00,N/A,N/A
People Services - Children & Young People,Non Delegated Schools Budget,Schools Block,BRAMBLEBROOK PRE SCHOOL PLAYGROUP,932518,09/08/2022,4013701,"3,509.10",0.00,N/A,N/A
People Services - Children & Young People,Non Delegated Schools Budget,Schools Block,BREADSALL HILLTOP PRIMARY SCHOOL,937484,09/08/2022,4013816,"26,456.85",0.00,N/A,N/A
People Services - Children & Young People,Non Delegated Schools Budget,Schools Block,BREADSALL HILLTOP PRIMARY SCHOOL,937484,09/08/2022,4013736,"12,281.85",0.00,N/A,N/A
People Services - Children & Young People,Non Delegated Schools Budget,Schools Block,BREADSALL HILLTOP PRIMARY SCHOOL,1684497,09/08/2022,4013945,"1,286.40",0.00,N/A,N/A
Communities & Place,Parks & Healthy Living,"Leisure, Culture and Tourism",BROXAP LTD,411,09/08/2022,4000927,530.95,0.00,Markeaton Park & Mundy Play Centre,Structures and Building and Construction
Neighbourhoods,Neighbourhoods,Neighbourhoods,BSG ECOLOGY,1359519,09/08/2022,4017261,"2,696.25",0.00,N/A,N/A
Neighbourhoods,Neighbourhoods,Neighbourhoods,BSG ECOLOGY,1359519,09/08/2022,4017265,"1,808.62",0.00,N/A,N/A
Communities & Place,Highways Assest and Engineering,Planning & Transportation,BSI,151330,09/08/2022,4013564,"2,387.00",0.00,N/A,N/A
Communities & Place,Traffic & Transportation,Planning & Transportation,BT PLC,1025473,09/08/2022,3987499,"2,880.34",0.00,N/A,N/A
Corporate Resources,Facilities Management,Property,BUNZL CLEANING AND HYGIENE SUPPLIES,961498,09/08/2022,4013552,833.86,0.00,Cleaning Operating Account,Chemicals including Bio Chemicals and Ga
People Services - Children & Young People,Non Delegated Schools Budget,Schools Block,BUSY BEES DAY NURSERY AT DERBY OAKWOOD,1881503,09/08/2022,4013818,"29,710.08",0.00,N/A,N/A
People Services - Children & Young People,Non Delegated Schools Budget,Schools Block,BUSY BEES DAY NURSERY AT DERBY OAKWOOD,1881503,09/08/2022,4013713,"3,509.10",0.00,N/A,N/A
People Services - Children & Young People,Non Delegated Schools Budget,Schools Block,BUSY BEES PLAYGROUP,932529,09/08/2022,4013864,"22,309.56",0.00,N/A,N/A
People Services - Children & Young People,Non Delegated Schools Budget,Schools Block,BUSY BEES PLAYGROUP,932529,09/08/2022,4013685,"1,696.07",0.00,N/A,N/A
People Services - Adults and Health,Physical Support,Community Support,BWA HEALTH AND CARE SERVICE LTD,1089474,09/08/2022,4016756,"1,082.40",0.00,N/A,N/A
People Services - Adults and Health,Physical Support,Community Support,BWA HEALTH AND CARE SERVICE LTD,1089474,09/08/2022,4016755,733.04,0.00,N/A,N/A
People Services - Adults and Health,Physical Support,Community Support,BWA HEALTH AND CARE SERVICE LTD,1089474,09/08/2022,4016945,808.08,0.00,N/A,N/A
People Services - Adults and Health,Physical Support,Community Support,BWA HEALTH AND CARE SERVICE LTD,1089474,09/08/2022,4016695,576.46,0.00,N/A,N/A
People Services - Adults and Health,Physical Support,Community Support,BWA HEALTH AND CARE SERVICE LTD,1089474,09/08/2022,4016818,850.56,0.00,N/A,N/A
People Services - Adults and Health,Physical Support,Community Support,BWA HEALTH AND CARE SERVICE LTD,1089474,09/08/2022,4016644,"1,558.20",0.00,N/A,N/A
People Services - Adults and Health,Physical Support,Community Support,BWA HEALTH AND CARE SERVICE LTD,1089474,09/08/2022,4016767,"1,127.04",0.00,N/A,N/A
People Services - Adults and Health,Physical Support,Community Support,BWA HEALTH AND CARE SERVICE LTD,1089474,09/08/2022,4016962,"1,541.08",0.00,N/A,N/A
People Services - Adults and Health,Physical Support,Community Support,BWA HEALTH AND CARE SERVICE LTD,1089474,09/08/2022,4016961,"1,405.32",0.00,N/A,N/A
People Services - Adults and Health,Physical Support,Community Support,BWA HEALTH AND CARE SERVICE LTD,1089474,09/08/2022,4016766,"1,022.96",0.00,N/A,N/A
People Services - Adults and Health,Physical Support,Community Support,BWA HEALTH AND CARE SERVICE LTD,1089474,09/08/2022,4016765,"1,002.84",0.00,N/A,N/A
People Services - Adults and Health,Physical Support,Community Support,BWA HEALTH AND CARE SERVICE LTD,1089474,09/08/2022,4016764,659.84,0.00,N/A,N/A
People Services - Adults and Health,Physical Support,Community Support,BWA HEALTH AND CARE SERVICE LTD,1089474,09/08/2022,4017082,709.64,0.00,N/A,N/A
People Services - Adults and Health,Physical Support,Community Support,BWA HEALTH AND CARE SERVICE LTD,1089474,09/08/2022,4016888,"1,164.64",0.00,N/A,N/A
People Services - Adults and Health,Physical Support,Community Support,BWA HEALTH AND CARE SERVICE LTD,1089474,09/08/2022,4016887,606.24,0.00,N/A,N/A
People Services - Adults and Health,Physical Support,Community Support,BWA HEALTH AND CARE SERVICE LTD,1089474,09/08/2022,4016829,"1,237.80",0.00,N/A,N/A
People Services - Adults and Health,Physical Support,Community Support,BWA HEALTH AND CARE SERVICE LTD,1089474,09/08/2022,4016828,941.12,0.00,N/A,N/A
People Services - Adults and Health,Physical Support,Community Support,BWA HEALTH AND CARE SERVICE LTD,1089474,09/08/2022,4016643,"1,208.64",0.00,N/A,N/A
People Services - Adults and Health,Physical Support,Community Support,BWA HEALTH AND CARE SERVICE LTD,1089474,09/08/2022,4017124,557.28,0.00,N/A,N/A
People Services - Adults and Health,Physical Support,Community Support,BWA HEALTH AND CARE SERVICE LTD,1089474,09/08/2022,4016958,"1,130.24",0.00,N/A,N/A
People Services - Adults and Health,Physical Support,Community Support,BWA HEALTH AND CARE SERVICE LTD,1089474,09/08/2022,4016763,"1,208.64",0.00,N/A,N/A
People Services - Adults and Health,Physical Support,Community Support,BWA HEALTH AND CARE SERVICE LTD,1089474,09/08/2022,4016762,"1,122.20",0.00,N/A,N/A
People Services - Adults and Health,Physical Support,Community Support,BWA HEALTH AND CARE SERVICE LTD,1089474,09/08/2022,4016761,885.56,0.00,N/A,N/A
People Services - Adults and Health,Physical Support,Community Support,BWA HEALTH AND CARE SERVICE LTD,1089474,09/08/2022,4017081,"1,151.68",0.00,N/A,N/A
People Services - Adults and Health,Physical Support,Community Support,BWA HEALTH AND CARE SERVICE LTD,1089474,09/08/2022,4017080,941.12,0.00,N/A,N/A
People Services - Adults and Health,Physical Support,Community Support,BWA HEALTH AND CARE SERVICE LTD,1089474,09/08/2022,4017079,864.16,0.00,N/A,N/A
People Services - Adults and Health,Physical Support,Community Support,BWA HEALTH AND CARE SERVICE LTD,1089474,09/08/2022,4016705,847.84,0.00,N/A,N/A
People Services - Adults and Health,Physical Support,Community Support,BWA HEALTH AND CARE SERVICE LTD,1089474,09/08/2022,4016704,"1,122.96",0.00,N/A,N/A
People Services - Adults and Health,Physical Support,Community Support,BWA HEALTH AND CARE SERVICE LTD,1089474,09/08/2022,4017036,"1,151.68",0.00,N/A,N/A
People Services - Adults and Health,Physical Support,Community Support,BWA HEALTH AND CARE SERVICE LTD,1089474,09/08/2022,4017035,"1,122.96",0.00,N/A,N/A
People Services - Adults and Health,Physical Support,Community Support,BWA HEALTH AND CARE SERVICE LTD,1089474,09/08/2022,4017034,997.68,0.00,N/A,N/A
People Services - Adults and Health,Physical Support,Community Support,BWA HEALTH AND CARE SERVICE LTD,1089474,09/08/2022,4017123,"1,312.96",0.00,N/A,N/A
People Services - Adults and Health,Physical Support,Community Support,BWA HEALTH AND CARE SERVICE LTD,1089474,09/08/2022,4016697,741.74,0.00,N/A,N/A
People Services - Adults and Health,Physical Support,Community Support,BWA HEALTH AND CARE SERVICE LTD,1089474,09/08/2022,4016817,"1,369.18",0.00,N/A,N/A
People Services - Adults and Health,Physical Support,Community Support,BWA HEALTH AND CARE SERVICE LTD,1089474,09/08/2022,4016816,561.84,0.00,N/A,N/A
People Services - Adults and Health,Physical Support,Community Support,BWA HEALTH AND CARE SERVICE LTD,1089474,09/08/2022,4016694,"1,391.84",0.00,N/A,N/A
People Services - Adults and Health,Learning Disability Support,Community Support,BWA HEALTH AND CARE SERVICE LTD,1089474,09/08/2022,4016724,"1,316.08",0.00,N/A,N/A
People Services - Adults and Health,Mental Health Support,Community Support,BWA HEALTH AND CARE SERVICE LTD,1089474,09/08/2022,4016987,"2,146.88",0.00,N/A,N/A
People Services - Adults and Health,Mental Health Support,Community Support,BWA HEALTH AND CARE SERVICE LTD,1089474,09/08/2022,4017097,"4,495.68",0.00,N/A,N/A
People Services - Adults and Health,Mental Health Support,Mental Health,BWA HEALTH AND CARE SERVICE LTD,1089474,09/08/2022,4017098,"1,395.36",0.00,N/A,N/A
People Services - Adults and Health,Mental Health Support,Mental Health,BWA HEALTH AND CARE SERVICE LTD,1089474,09/08/2022,4016911,759.72,0.00,N/A,N/A
Communities & Place,"Waste, Street Cleansing & Fleet",Public Protection and Streetride,CAR ACCIDENT REPAIR SERVICE LTD,106099,09/08/2022,4013485,"4,537.55",0.00,Fleet Hire,Transportation and Storage and Mail Serv
People Services - Adults and Health,Physical Support,Community Support,CARING LINKS LTD,1154493,09/08/2022,4017029,659.84,0.00,N/A,N/A
People Services - Adults and Health,Physical Support,Community Support,CARING LINKS LTD,1154493,09/08/2022,4016759,753.12,0.00,N/A,N/A
People Services - Adults and Health,Physical Support,Community Support,CARING LINKS LTD,1154493,09/08/2022,4016701,659.84,0.00,N/A,N/A
People Services - Adults and Health,Physical Support,Community Support,CARING LINKS LTD,1154493,09/08/2022,4017028,512.96,0.00,N/A,N/A
People Services - Children & Young People,Non Delegated Schools Budget,Schools Block,CARLTON PRIVATE DAY NURSERY,932481,09/08/2022,4013819,"24,311.70",0.00,N/A,N/A
People Services - Children & Young People,Non Delegated Schools Budget,Schools Block,CARLTON PRIVATE DAY NURSERY,932481,09/08/2022,4013759,"4,386.38",0.00,N/A,N/A
Chief Executives,Chief Executives,Chief Executives,CDW LTD,1377474,09/08/2022,3999414,633.73,0.00,N/A,N/A
Corporate Resources,Digital Services & Customer Management,Digital Services & Customer Management,CDW LTD,1377474,09/08/2022,4000866,"12,114.32",0.00,N/A,N/A
People Services - Children & Young People,Non Delegated Schools Budget,Schools Block,CHADDESDEN PARK PRIMARY SCHOOL,937517,09/08/2022,4013852,"20,736.45",0.00,N/A,N/A
People Services - Children & Young People,Non Delegated Schools Budget,Schools Block,CHADDESDEN PARK PRIMARY SCHOOL,1686475,09/08/2022,4013959,775.88,0.00,N/A,N/A
People Services - Children & Young People,Non Delegated Schools Budget,Schools Block,CHADDESDEN PARK PRIMARY SCHOOL,1686475,09/08/2022,4014560,"1,555.80",0.00,N/A,N/A
People Services - Children & Young People,Commissioning,Non-Schools,CHELLASTON CARS UK LTD,1007485,09/08/2022,4013666,"1,360.00",0.00,N/A,N/A
Communities & Place,Traffic & Transportation,Planning & Transportation,CHIPSIDE LTD,926469,09/08/2022,4013573,980.80,0.00,Parking Services,Information Technology Broadcasting and
People Services - Children & Young People,Non Delegated Schools Budget,Schools Block,CHUCKLES PLAYGROUP,932503,09/08/2022,4013865,"2,145.15",0.00,N/A,N/A
People Services - Children & Young People,Non Delegated Schools Budget,Schools Block,CHUCKLES PLAYGROUP,932503,09/08/2022,4013737,"1,754.55",0.00,N/A,N/A
Communities & Place,"Highways, Gounds Maintenance and Flood Defence",Public Protection and Streetride,CLEE HILL PLANT LIMITED,1581477,09/08/2022,4012767,628.00,0.00,N/A,N/A
Communities & Place,"Highways, Gounds Maintenance and Flood Defence",Public Protection and Streetride,CLEE HILL PLANT LIMITED,1581477,09/08/2022,4017536,"1,460.00",0.00,N/A,N/A
Corporate Resources,Communication and Consultation,Coroprate Core,COMMUNICORP UK LIMITED,1625480,09/08/2022,4013201,800.00,0.00,N/A,N/A
People Services - Children & Young People,Non Delegated Schools Budget,Schools Block,COTTAGE PRIVATE  DAY NURSERY,932497,09/08/2022,4013804,"29,531.57",0.00,N/A,N/A
People Services - Children & Young People,Non Delegated Schools Budget,Schools Block,COTTAGE PRIVATE  DAY NURSERY,932497,09/08/2022,4013721,"3,509.10",0.00,N/A,N/A
People Services - Children & Young People,Non Delegated Schools Budget,Schools Block,COTTAGE PRIVATE DAY NURSERY DE3 9AX (INTERFACE),943468,09/08/2022,4013805,"27,481.76",0.00,N/A,N/A
People Services - Children & Young People,Non Delegated Schools Budget,Schools Block,COTTAGE PRIVATE DAY NURSERY DE3 9AX (INTERFACE),943468,09/08/2022,4013731,"1,754.55",0.00,N/A,N/A
People Services - Children & Young People,Commissioning,Non-Schools,CROWN CARS Derby LTD,104523,09/08/2022,4017958,"1,267.50",0.00,N/A,N/A
People Services - Children & Young People,Commissioning,Non-Schools,CROWN CARS Derby LTD,104523,09/08/2022,4017945,"1,218.00",0.00,N/A,N/A
People Services - Children & Young People,Commissioning,Non-Schools,CROWN CARS Derby LTD,104523,09/08/2022,4017943,965.80,0.00,N/A,N/A
Corporate Resources,Digital Services & Customer Management,Digital Services & Customer Management,CROWN HOSTING DATA CENTRES LTD,470548,09/08/2022,4016115,"2,229.77",0.00,IT Infrastructure,Information Technology Broadcasting and
People Services - Adults and Health,Physical Support,Community Support,CRT CARE SERVICES,1666480,09/08/2022,4016982,553.32,0.00,N/A,N/A
People Services - Children & Young People,Non Delegated Schools Budget,Schools Block,DERBY CATHEDRAL SCHOOL,1685480,09/08/2022,4014291,860.16,0.00,N/A,N/A
People Services - Children & Young People,Non Delegated Schools Budget,Schools Block,DERBY CATHEDRAL SCHOOL,1685480,09/08/2022,4013942,896.52,0.00,N/A,N/A
People Services - Children & Young People,Non Delegated Schools Budget,Schools Block,DERBY DIOCESAN ACADEMY TRUST,1683499,09/08/2022,4014226,"1,067.04",0.00,N/A,N/A
People Services - Children & Young People,Non Delegated Schools Budget,Schools Block,DERBY DIOCESAN ACADEMY TRUST 2,996478,09/08/2022,4013861,"46,478.25",0.00,N/A,N/A
People Services - Children & Young People,Non Delegated Schools Budget,Schools Block,DERBY DIOCESAN ACADEMY TRUST 2,996478,09/08/2022,4013747,"28,072.80",0.00,N/A,N/A
People Services - Children & Young People,Non Delegated Schools Budget,Schools Block,DERBY DIOCESAN ACADEMY TRUST 2,1685476,09/08/2022,4014448,"1,059.48",0.00,N/A,N/A
People Services - Children & Young People,Non Delegated Schools Budget,Schools Block,DERBY DIOCESAN ACADEMY TRUST 2,1685476,09/08/2022,4014284,"1,035.40",0.00,N/A,N/A
People Services - Children & Young People,Non Delegated Schools Budget,Schools Block,DERBY DIOCESAN ACADEMY TRUST 2,1685476,09/08/2022,4014283,932.44,0.00,N/A,N/A
People Services - Children & Young People,Non Delegated Schools Budget,Schools Block,DERBY DIOCESAN ACADEMY TRUST 2,1685476,09/08/2022,4014282,546.28,0.00,N/A,N/A
People Services - Children & Young People,Non Delegated Schools Budget,Schools Block,DERBY DIOCESAN ACADEMY TRUST 2,1685476,09/08/2022,4014350,"1,059.48",0.00,N/A,N/A
People Services - Children & Young People,Non Delegated Schools Budget,Schools Block,DERBY DIOCESAN ACADEMY TRUST 2,1685476,09/08/2022,4014349,"1,059.48",0.00,N/A,N/A
People Services - Children & Young People,Non Delegated Schools Budget,Schools Block,DERBY DIOCESAN ACADEMY TRUST 2,1685476,09/08/2022,4013936,"1,096.52",0.00,N/A,N/A
People Services - Children & Young People,Non Delegated Schools Budget,Schools Block,DERBY DIOCESAN ACADEMY TRUST 2,1685476,09/08/2022,4013935,993.44,0.00,N/A,N/A
People Services - Children & Young People,Non Delegated Schools Budget,Schools Block,DERBY DIOCESAN ACADEMY TRUST 2,1685476,09/08/2022,4013933,701.52,0.00,N/A,N/A
People Services - Children & Young People,Non Delegated Schools Budget,Schools Block,DERBY DIOCESAN ACADEMY TRUST 2,1685476,09/08/2022,4013932,572.04,0.00,N/A,N/A
People Services - Children & Young People,Non Delegated Schools Budget,Schools Block,DERBY DIOCESAN ACADEMY TRUST 2,1685476,09/08/2022,4014348,"1,020.48",0.00,N/A,N/A
People Services - Children & Young People,Non Delegated Schools Budget,Schools Block,DERBY DIOCESAN ACADEMY TRUST 2,1685476,09/08/2022,4014347,906.48,0.00,N/A,N/A
People Services - Children & Young People,Non Delegated Schools Budget,Schools Block,DERBY DIOCESAN ACADEMY TRUST 2,1685476,09/08/2022,4014346,585.72,0.00,N/A,N/A
People Services - Children & Young People,Non Delegated Schools Budget,Schools Block,DERBY DIOCESAN ACADEMY TRUST 2,1685476,09/08/2022,4014345,546.28,0.00,N/A,N/A
People Services - Children & Young People,Non Delegated Schools Budget,Schools Block,DERBY DIOCESAN ACADEMY TRUST 2,1685476,09/08/2022,4014112,754.20,0.00,N/A,N/A
People Services - Children & Young People,Non Delegated Schools Budget,Schools Block,DERBY DIOCESAN ACADEMY TRUST 2,1685476,09/08/2022,4014535,"1,059.48",0.00,N/A,N/A
People Services - Children & Young People,Non Delegated Schools Budget,Schools Block,DERBY DIOCESAN ACADEMY TRUST 2,1685476,09/08/2022,4014534,"1,059.48",0.00,N/A,N/A
People Services - Children & Young People,Non Delegated Schools Budget,Schools Block,DERBY DIOCESAN ACADEMY TRUST 2,1685476,09/08/2022,4014533,"1,016.84",0.00,N/A,N/A
People Services - Children & Young People,Non Delegated Schools Budget,Schools Block,DERBY DIOCESAN ACADEMY TRUST 2,1685476,09/08/2022,4014532,800.40,0.00,N/A,N/A
People Services - Children & Young People,Non Delegated Schools Budget,Schools Block,DERBY DIOCESAN ACADEMY TRUST 2,1685476,09/08/2022,4014204,"1,247.24",0.00,N/A,N/A
People Services - Children & Young People,Non Delegated Schools Budget,Schools Block,DERBY DIOCESAN ACADEMY TRUST 2,1685476,09/08/2022,4014203,"1,059.48",0.00,N/A,N/A
People Services - Children & Young People,Non Delegated Schools Budget,Schools Block,DERBY DIOCESAN ACADEMY TRUST 2,1685476,09/08/2022,4014023,"1,059.48",0.00,N/A,N/A
People Services - Children & Young People,Non Delegated Schools Budget,Schools Block,DERBY DIOCESAN ACADEMY TRUST 2,1685476,09/08/2022,4014020,585.72,0.00,N/A,N/A
People Services - Children & Young People,Non Delegated Schools Budget,Schools Block,DERBY DIOCESAN ACADEMY TRUST 2 DE21 7LL (INTERFACE),1685479,09/08/2022,4014439,850.96,0.00,N/A,N/A
People Services - Children & Young People,Non Delegated Schools Budget,Schools Block,DERBY DIOCESAN ACADEMY TRUST 2 DE21 7LL (INTERFACE),1685479,09/08/2022,4014270,738.48,0.00,N/A,N/A
People Services - Children & Young People,Non Delegated Schools Budget,Schools Block,DERBY DIOCESAN ACADEMY TRUST 2 DE21 7LL (INTERFACE),1685479,09/08/2022,4014510,848.24,0.00,N/A,N/A
People Services - Children & Young People,Non Delegated Schools Budget,Schools Block,DERBY DIOCESAN ACADEMY TRUST 2 DE21 7LL (INTERFACE),1685479,09/08/2022,4014607,982.20,0.00,N/A,N/A
People Services - Children & Young People,Non Delegated Schools Budget,Schools Block,DERBY DIOCESAN ACADEMY TRUST 2 DE21 7LL (INTERFACE),1685479,09/08/2022,4014606,963.48,0.00,N/A,N/A
People Services - Children & Young People,Non Delegated Schools Budget,Schools Block,DERBY DIOCESAN ACADEMY TRUST 2 DE21 7LL (INTERFACE),1685479,09/08/2022,4014340,738.48,0.00,N/A,N/A
People Services - Children & Young People,Non Delegated Schools Budget,Schools Block,DERBY DIOCESAN ACADEMY TRUST DE23 8FQ (INTERFACE),1683500,09/08/2022,4014405,"1,234.68",0.00,N/A,N/A
People Services - Children & Young People,Non Delegated Schools Budget,Schools Block,DERBY DIOCESAN ACADEMY TRUST DE23 8FQ (INTERFACE),1683500,09/08/2022,4014504,594.44,0.00,N/A,N/A
People Services - Children & Young People,Non Delegated Schools Budget,Schools Block,DERBY DIOCESAN ACADEMY TRUST DE23 8FQ (INTERFACE),1683500,09/08/2022,4014592,"1,236.88",0.00,N/A,N/A
People Services - Children & Young People,Non Delegated Schools Budget,Schools Block,DERBY DIOCESAN ACADEMY TRUST DE23 8FQ (INTERFACE),1683500,09/08/2022,4014172,528.84,0.00,N/A,N/A
People Services - Children & Young People,Non Delegated Schools Budget,Schools Block,DERBY DIOCESAN ACADEMY TRUST DE23 8FQ (INTERFACE),1683500,09/08/2022,4013986,984.36,0.00,N/A,N/A
People Services - Children & Young People,Non Delegated Schools Budget,Schools Block,DERBY DIOCESAN ACADEMY TRUST DE23 8FQ (INTERFACE),1683500,09/08/2022,4013985,855.68,0.00,N/A,N/A
People Services - Children & Young People,Non Delegated Schools Budget,Schools Block,DERBY DIOCESAN ACADEMY TRUST DE23 8FQ (INTERFACE),1683500,09/08/2022,4013984,611.12,0.00,N/A,N/A
People Services - Children & Young People,Non Delegated Schools Budget,Schools Block,DERBY EDUCATION GROUP,932533,09/08/2022,4013882,"4,290.30",0.00,N/A,N/A
People Services - Children & Young People,Non Delegated Schools Budget,Schools Block,DERBY EDUCATION GROUP,932533,09/08/2022,4013691,"4,386.38",0.00,N/A,N/A
Communities & Place,Strategic Housing,City Development & Growth,DERBY GUESTHOUSE LTD,255426,09/08/2022,4013538,700.00,0.00,Housing Options (Private),Travel and Food and Lodging and Entertai
Communities & Place,Strategic Housing,City Development & Growth,DERBY GUESTHOUSE LTD,255426,09/08/2022,4013501,"1,400.00",0.00,Housing Options (Private),Travel and Food and Lodging and Entertai
Communities & Place,Strategic Housing,City Development & Growth,DERBY GUESTHOUSE LTD,255426,09/08/2022,4013499,"1,400.00",0.00,Housing Options (Private),Travel and Food and Lodging and Entertai
Communities & Place,Strategic Housing,City Development & Growth,DERBY GUESTHOUSE LTD,255426,09/08/2022,4013496,"1,650.00",0.00,Housing Options (Private),Travel and Food and Lodging and Entertai
Communities & Place,Strategic Housing,City Development & Growth,DERBY GUESTHOUSE LTD,255426,09/08/2022,4013493,"2,100.00",0.00,Housing Options (Private),Travel and Food and Lodging and Entertai
Communities & Place,Strategic Housing,City Development & Growth,DERBY GUESTHOUSE LTD,255426,09/08/2022,4013491,"4,200.00",0.00,Housing Options (Private),Travel and Food and Lodging and Entertai
People Services - Children & Young People,Non Delegated Schools Budget,Schools Block,DERBY HIGH SCHOOL,1317470,09/08/2022,4013794,"23,911.27",0.00,N/A,N/A
People Services - Children & Young People,Non Delegated Schools Budget,Schools Block,DERBY MONTESSORI SCHOOL,932513,09/08/2022,4013772,"13,824.30",0.00,N/A,N/A
People Services - Children & Young People,Non Delegated Schools Budget,Schools Block,DERBY MONTESSORI SCHOOL,932513,09/08/2022,4013748,"4,561.83",0.00,N/A,N/A
People Services - Adults and Health,Physical Support,Community Support,DERBYSHIRE CARE SERVICES,388459,09/08/2022,4016668,719.90,0.00,N/A,N/A
People Services - Adults and Health,Physical Support,Community Support,DERBYSHIRE CARE SERVICES,388459,09/08/2022,4016996,657.68,0.00,N/A,N/A
People Services - Adults and Health,Physical Support,Community Support,DERBYSHIRE CARE SERVICES,388459,09/08/2022,4017117,720.00,0.00,N/A,N/A
People Services - Adults and Health,Physical Support,Community Support,DERBYSHIRE CARE SERVICES,388459,09/08/2022,4016723,844.38,0.00,N/A,N/A
People Services - Adults and Health,Physical Support,Community Support,DERBYSHIRE CARE SERVICES,388459,09/08/2022,4017065,"1,333.84",0.00,N/A,N/A
People Services - Adults and Health,Physical Support,Community Support,DERBYSHIRE CARE SERVICES,388459,09/08/2022,4016866,"1,333.84",0.00,N/A,N/A
People Services - Adults and Health,Physical Support,Community Support,DERBYSHIRE CARE SERVICES,388459,09/08/2022,4016683,711.84,0.00,N/A,N/A
People Services - Adults and Health,Physical Support,Community Support,DERBYSHIRE CARE SERVICES,388459,09/08/2022,4016731,532.52,0.00,N/A,N/A
People Services - Adults and Health,Physical Support,Community Support,DERBYSHIRE CARE SERVICES,388459,09/08/2022,4017008,931.04,0.00,N/A,N/A
People Services - Adults and Health,Physical Support,Community Support,DERBYSHIRE CARE SERVICES,388459,09/08/2022,4017007,802.08,0.00,N/A,N/A
People Services - Adults and Health,Physical Support,Community Support,DERBYSHIRE CARE SERVICES,388459,09/08/2022,4017116,931.04,0.00,N/A,N/A
People Services - Adults and Health,Physical Support,Community Support,DERBYSHIRE CARE SERVICES,388459,09/08/2022,4016744,802.08,0.00,N/A,N/A
People Services - Adults and Health,Physical Support,Community Support,DERBYSHIRE CARE SERVICES,388459,09/08/2022,4016730,931.04,0.00,N/A,N/A
People Services - Adults and Health,Physical Support,Community Support,DERBYSHIRE CARE SERVICES,388459,09/08/2022,4016729,802.08,0.00,N/A,N/A
People Services - Adults and Health,Physical Support,Community Support,DERBYSHIRE CARE SERVICES,388459,09/08/2022,4016870,743.52,0.00,N/A,N/A
People Services - Adults and Health,Physical Support,Community Support,DERBYSHIRE CARE SERVICES,388459,09/08/2022,4016666,864.28,0.00,N/A,N/A
People Services - Adults and Health,Physical Support,Community Support,DERBYSHIRE CARE SERVICES,388459,09/08/2022,4017006,797.58,0.00,N/A,N/A
People Services - Adults and Health,Physical Support,Community Support,DERBYSHIRE CARE SERVICES,388459,09/08/2022,4016811,"1,155.79",0.00,N/A,N/A
People Services - Adults and Health,Physical Support,Community Support,DERBYSHIRE CARE SERVICES,388459,09/08/2022,4016810,"1,000.76",0.00,N/A,N/A
People Services - Adults and Health,Physical Support,Community Support,DERBYSHIRE CARE SERVICES,388459,09/08/2022,4016995,851.74,0.00,N/A,N/A
People Services - Adults and Health,Physical Support,Community Support,DERBYSHIRE CARE SERVICES,388459,09/08/2022,4016930,"1,150.31",0.00,N/A,N/A
People Services - Adults and Health,Physical Support,Community Support,DERBYSHIRE CARE SERVICES,388459,09/08/2022,4016929,988.44,0.00,N/A,N/A
People Services - Adults and Health,Physical Support,Community Support,DERBYSHIRE CARE SERVICES,388459,09/08/2022,4016917,"1,104.75",0.00,N/A,N/A
People Services - Adults and Health,Physical Support,Community Support,DERBYSHIRE CARE SERVICES,388459,09/08/2022,4017067,565.32,0.00,N/A,N/A
People Services - Adults and Health,Physical Support,Community Support,DERBYSHIRE CARE SERVICES,388459,09/08/2022,4017059,739.36,0.00,N/A,N/A
People Services - Adults and Health,Physical Support,Community Support,DERBYSHIRE CARE SERVICES,388459,09/08/2022,4017058,823.70,0.00,N/A,N/A
People Services - Adults and Health,Physical Support,Community Support,DERBYSHIRE CARE SERVICES,388459,09/08/2022,4017056,"1,104.75",0.00,N/A,N/A
People Services - Adults and Health,Physical Support,Community Support,DERBYSHIRE CARE SERVICES,388459,09/08/2022,4016869,696.60,0.00,N/A,N/A
People Services - Adults and Health,Physical Support,Community Support,DERBYSHIRE CARE SERVICES,388459,09/08/2022,4017050,907.92,0.00,N/A,N/A
People Services - Adults and Health,Physical Support,Community Support,DERBYSHIRE CARE SERVICES,388459,09/08/2022,4016684,874.56,0.00,N/A,N/A
People Services - Adults and Health,Physical Support,Community Support,DERBYSHIRE CARE SERVICES,388459,09/08/2022,4016856,565.91,0.00,N/A,N/A
People Services - Adults and Health,Physical Support,Community Support,DERBYSHIRE CARE SERVICES,388459,09/08/2022,4017022,680.24,0.00,N/A,N/A
People Services - Adults and Health,Physical Support,Community Support,DERBYSHIRE CARE SERVICES,388459,09/08/2022,4017068,680.24,0.00,N/A,N/A
People Services - Adults and Health,Sensory Support,Community Support,DERBYSHIRE CARE SERVICES,388459,09/08/2022,4016751,516.62,0.00,N/A,N/A
People Services - Adults and Health,Mental Health Support,Mental Health,DERBYSHIRE CARE SERVICES,388459,09/08/2022,4016753,818.88,0.00,N/A,N/A
People Services - Adults and Health,Support with Memory and Cognition,Community Support,DERBYSHIRE CARE SERVICES,388459,09/08/2022,4016785,656.35,0.00,N/A,N/A
People Services - Adults and Health,Support with Memory and Cognition,Community Support,DERBYSHIRE CARE SERVICES,388459,09/08/2022,4016719,577.55,0.00,N/A,N/A
People Services - Adults and Health,Public Health,Public Health,DERBYSHIRE HEALTHCARE NHS FOUNDATION TRUST,107468,09/08/2022,4009398,"878,002.72",0.00,Integrated Substance Misuse Service,Healthcare Services
People Services - Adults and Health,Public Health,Public Health,DERBYSHIRE HEALTHCARE NHS FOUNDATION TRUST,107468,09/08/2022,4009404,"2,419,860.00",0.00,0-19 Integrated Pubblic Health Childrens Services,Healthcare Services
Communities & Place,Planning,Planning & Transportation,DEREK LATHAM AND CO LTD,1835480,09/08/2022,4013553,"2,958.00",0.00,N/A,N/A
People Services - Children & Young People,Non Delegated Schools Budget,Schools Block,DERWENT STEPPING STONES,1247468,09/08/2022,4013887,"12,155.85",0.00,N/A,N/A
People Services - Children & Young People,Non Delegated Schools Budget,Schools Block,DERWENT STEPPING STONES,1247468,09/08/2022,4013886,"25,026.75",0.00,N/A,N/A
People Services - Children & Young People,Non Delegated Schools Budget,Schools Block,DERWENT STEPPING STONES,1247468,09/08/2022,4013727,"28,950.08",0.00,N/A,N/A
People Services - Children & Young People,Non Delegated Schools Budget,Schools Block,DERWENT STEPPING STONES,1247468,09/08/2022,4013692,"7,018.20",0.00,N/A,N/A
People Services - Children & Young People,Non Delegated Schools Budget,Schools Block,DIAMOND DAY NURSERY,933489,09/08/2022,4013867,"26,456.85",0.00,N/A,N/A
People Services - Children & Young People,Non Delegated Schools Budget,Schools Block,DIAMOND DAY NURSERY,933489,09/08/2022,4013749,"8,772.75",0.00,N/A,N/A
People Services - Adults and Health,Learning Disability Support,Community Support,DIMENSIONS UK LTD,388489,09/08/2022,4016984,"3,406.48",0.00,N/A,N/A
People Services - Adults and Health,Learning Disability Support,Community Support,DIMENSIONS UK LTD,388489,09/08/2022,4016906,"2,068.22",0.00,N/A,N/A
People Services - Adults and Health,Learning Disability Support,Community Support,DIMENSIONS UK LTD,388489,09/08/2022,4016905,"1,338.26",0.00,N/A,N/A
People Services - Adults and Health,Learning Disability Support,Community Support,DIMENSIONS UK LTD,388489,09/08/2022,4017047,"3,406.48",0.00,N/A,N/A
People Services - Adults and Health,Learning Disability Support,Community Support,DIMENSIONS UK LTD,388489,09/08/2022,4016852,"3,406.48",0.00,N/A,N/A
People Services - Adults and Health,Learning Disability Support,Community Support,DIMENSIONS UK LTD,388489,09/08/2022,4016851,"3,406.48",0.00,N/A,N/A
People Services - Adults and Health,Physical Support,Community Support,DISABILITY DIRECT,388493,09/08/2022,4016853,769.44,0.00,N/A,N/A
People Services - Children & Young People,Early Help & Children’s Safeguarding,Non-Schools,DODDS SOLICITORS LLP,952477,09/08/2022,4013515,"1,051.66",0.00,Legal Fees,Management and Business Professionals an
People Services - Children & Young People,Early Help & Children’s Safeguarding,Non-Schools,DODDS SOLICITORS LLP,952477,09/08/2022,4016208,"5,542.09",0.00,Legal Fees,Management and Business Professionals an
People Services - Children & Young People,Early Help & Children’s Safeguarding,Non-Schools,DODDS SOLICITORS LLP,952477,09/08/2022,4016208,831.31,0.00,Legal Fees,Management and Business Professionals an
People Services - Children & Young People,Early Help & Children’s Safeguarding,Non-Schools,DODDS SOLICITORS LLP,952477,09/08/2022,4016205,"2,099.10",0.00,Legal Fees,Management and Business Professionals an
People Services - Children & Young People,Non Delegated Schools Budget,Schools Block,DR ABAIGH DEVINE CLINICAL PSYCHOLOGY SERVICES,1575469,09/08/2022,4016096,"1,000.00",0.00,N/A,N/A
People Services - Children & Young People,Non Delegated Schools Budget,Schools Block,EAST MIDLANDS EDUCATION TRUST DE73 5NY (INTERFACE),1589480,09/08/2022,4013775,"31,724.39",0.00,N/A,N/A
People Services - Children & Young People,Non Delegated Schools Budget,Schools Block,EAST MIDLANDS EDUCATION TRUST DE73 5NY (INTERFACE),1686480,09/08/2022,4014242,"1,283.96",0.00,N/A,N/A
People Services - Children & Young People,Non Delegated Schools Budget,Schools Block,EAST MIDLANDS EDUCATION TRUST DE73 5NY (INTERFACE),1686480,09/08/2022,4014400,"1,020.48",0.00,N/A,N/A
People Services - Children & Young People,Non Delegated Schools Budget,Schools Block,EAST MIDLANDS EDUCATION TRUST DE73 5NY (INTERFACE),1686480,09/08/2022,4014399,767.68,0.00,N/A,N/A
People Services - Children & Young People,Non Delegated Schools Budget,Schools Block,EAST MIDLANDS EDUCATION TRUST DE73 5NY (INTERFACE),1686480,09/08/2022,4014500,935.48,0.00,N/A,N/A
People Services - Children & Young People,Non Delegated Schools Budget,Schools Block,EAST MIDLANDS EDUCATION TRUST DE73 5NY (INTERFACE),1686480,09/08/2022,4013978,656.64,0.00,N/A,N/A
People Services - Children & Young People,Non Delegated Schools Budget,Schools Block,EAST MIDLANDS EDUCATION TRUST DE73 6PZ (INTERFACE),1686481,09/08/2022,4014009,926.64,0.00,N/A,N/A
People Services - Children & Young People,Non Delegated Schools Budget,Schools Block,EAST MIDLANDS EDUCATION TRUST DE73 6PZ (INTERFACE),1686481,09/08/2022,4014007,819.00,0.00,N/A,N/A
People Services - Children & Young People,Non Delegated Schools Budget,Schools Block,EAST MIDLANDS EDUCATION TRUST DE73 6PZ (INTERFACE),1686481,09/08/2022,4014006,699.60,0.00,N/A,N/A
People Services - Children & Young People,Non Delegated Schools Budget,Schools Block,EAST MIDLANDS EDUCATION TRUST DE73 6PZ (INTERFACE),1686481,09/08/2022,4014609,"1,046.48",0.00,N/A,N/A
People Services - Children & Young People,Non Delegated Schools Budget,Schools Block,EG TRAINING LTD,47910,09/08/2022,4016095,962.77,0.00,High Needs Contingency,Education and Training Services
Communities & Place,"Waste, Street Cleansing & Fleet",Public Protection and Streetride,ELIS UK LTD,1668484,09/08/2022,3970063,680.29,0.00,N/A,N/A
Communities & Place,"Waste, Street Cleansing & Fleet",Public Protection and Streetride,ELIS UK LTD,1668484,09/08/2022,3970063,825.97,0.00,N/A,N/A
People Services - Children & Young People,Non Delegated Schools Budget,Schools Block,EMMANUEL SCHOOL,932506,09/08/2022,4013795,"16,303.14",0.00,N/A,N/A
Corporate Resources,"Legal, Procurement and Democratic Services","Legal, Procurement and Democratic Services",EMS SECURITY SERVICES LTD,471442,09/08/2022,4013164,865.51,0.00,Conduct Of Elections,Defense and Law Enforcement and Security
Communities & Place,Strategic Housing,City Development & Growth,EMS SECURITY SERVICES LTD,471442,09/08/2022,4016121,"12,116.10",0.00,Housing Development HRA,Defense and Law Enforcement and Security
People Services - Adults and Health,Social Care Activities,Direct Services,EMS SECURITY SERVICES LTD,471442,09/08/2022,4009020,825.00,0.00,Warwick House,Defense and Law Enforcement and Security
Corporate Resources,Strategic Asset Management,Property,EMS SECURITY SERVICES LTD,471442,09/08/2022,3998636,565.00,0.00,N/A,N/A
People Services - Children & Young People,Integrated Services,Non-Schools,EMS SECURITY SERVICES LTD,471442,09/08/2022,4006781,"1,237.40",0.00,Limestone House,Defense and Law Enforcement and Security
People Services - Adults and Health,Physical Support,Community Support,ETIQUETTE RECRUITMENT AND STAFFING LTD,1152476,09/08/2022,4016656,512.96,0.00,N/A,N/A
People Services - Adults and Health,Physical Support,Community Support,ETIQUETTE RECRUITMENT AND STAFFING LTD,1152476,09/08/2022,4016712,845.76,0.00,N/A,N/A
People Services - Adults and Health,Mental Health Support,Mental Health,ETIQUETTE RECRUITMENT AND STAFFING LTD,1152476,09/08/2022,4016899,"1,443.20",0.00,N/A,N/A
Communities & Place,"Culture, Business Development & Tourism","Leisure, Culture and Tourism",EXCLOOSIVE LTD,913482,09/08/2022,4009025,"10,305.00",0.00,Derby Live - Outdoor Events,Cleaning Equipment and Supplies
Communities & Place,Traffic & Transportation,Planning & Transportation,EXPERIAN LTD,92738,09/08/2022,4013579,784.47,0.00,Parking Services,Published Products
Communities & Place,"Highways, Gounds Maintenance and Flood Defence",Public Protection and Streetride,F G ADAMSON AND SON,1346526,09/08/2022,4013520,"3,417.49",0.00,N/A,N/A
Corporate Resources,Property Design & Maintenance,Property,FAITHFUL AND GOULD LIMITED,945490,09/08/2022,4017285,"1,086.74",0.00,N/A,N/A
Corporate Resources,Property Design & Maintenance,Property,FAITHFUL AND GOULD LIMITED,945490,09/08/2022,4017282,"1,020.91",0.00,N/A,N/A
Corporate Resources,Property Design & Maintenance,Property,FAITHFUL AND GOULD LIMITED,945490,09/08/2022,4017281,"1,482.37",0.00,N/A,N/A
Corporate Resources,Property Design & Maintenance,Property,FAITHFUL AND GOULD LIMITED,945490,09/08/2022,4017280,"1,950.00",0.00,N/A,N/A
Corporate Resources,Property Design & Maintenance,Property,FAITHFUL AND GOULD LIMITED,945490,09/08/2022,4017275,591.19,0.00,N/A,N/A
Corporate Resources,Property Design & Maintenance,Property,FAITHFUL AND GOULD LIMITED,945490,09/08/2022,4017273,735.57,0.00,N/A,N/A
Corporate Resources,Property Design & Maintenance,Property,FAITHFUL AND GOULD LIMITED,945490,09/08/2022,4017264,"1,020.77",0.00,N/A,N/A
Corporate Resources,Property Design & Maintenance,Property,FAITHFUL AND GOULD LIMITED,945490,09/08/2022,4017262,"1,101.58",0.00,N/A,N/A
People Services - Children & Young People,Non Delegated Schools Budget,Schools Block,FIELD LANE PLAYGROUP,932489,09/08/2022,4013844,"11,440.80",0.00,N/A,N/A
People Services - Children & Young People,Non Delegated Schools Budget,Schools Block,FIELD LANE PLAYGROUP,932489,09/08/2022,4013686,"7,895.48",0.00,N/A,N/A
Corporate Resources,Financial Services,Financial Services,FINANCIAL DATA MANAGEMENT LTD,1503503,09/08/2022,4017628,"1,227.41",0.00,N/A,N/A
Corporate Resources,Financial Services,Financial Services,FINANCIAL DATA MANAGEMENT LTD,1503503,09/08/2022,4017634,"4,364.00",0.00,N/A,N/A
Corporate Resources,Financial Services,Financial Services,FINANCIAL DATA MANAGEMENT LTD,1503503,09/08/2022,4017627,"2,856.56",0.00,N/A,N/A
Corporate Resources,Financial Services,Financial Services,FINANCIAL DATA MANAGEMENT LTD,1503503,09/08/2022,4017633,"3,390.33",0.00,N/A,N/A
Corporate Resources,Financial Services,Financial Services,FINANCIAL DATA MANAGEMENT LTD,1503503,09/08/2022,4017632,"2,310.51",0.00,N/A,N/A
Corporate Resources,Financial Services,Financial Services,FINANCIAL DATA MANAGEMENT LTD,1503503,09/08/2022,4017626,"1,765.74",0.00,N/A,N/A
Corporate Resources,Financial Services,Financial Services,FINANCIAL DATA MANAGEMENT LTD,1503503,09/08/2022,4017625,"2,910.01",0.00,N/A,N/A
Corporate Resources,Financial Services,Financial Services,FINANCIAL DATA MANAGEMENT LTD,1503503,09/08/2022,4017625,"2,610.01",0.00,N/A,N/A
People Services - Children & Young People,Non Delegated Schools Budget,Schools Block,FIRS PRIMARY SCHOOL,937511,09/08/2022,4013888,"15,731.10",0.00,N/A,N/A
People Services - Children & Young People,Non Delegated Schools Budget,Schools Block,FIRS PRIMARY SCHOOL,1683493,09/08/2022,4014217,"1,293.48",0.00,N/A,N/A
People Services - Children & Young People,Non Delegated Schools Budget,Schools Block,FIRS PRIMARY SCHOOL,1683493,09/08/2022,4014549,"1,293.48",0.00,N/A,N/A
People Services - Children & Young People,Non Delegated Schools Budget,Schools Block,FIRST FRIENDS PRIVATE DAY NURSERY,932504,09/08/2022,4013854,"9,284.53",0.00,N/A,N/A
People Services - Children & Young People,Non Delegated Schools Budget,Schools Block,FIRST FRIENDS PRIVATE DAY NURSERY,932504,09/08/2022,4013702,"14,913.68",0.00,N/A,N/A
Communities & Place,Traffic & Transportation,Planning & Transportation,FLOWBIRD SMART CITY UK LIMITED,981474,09/08/2022,4013566,"5,231.82",0.00,Parking Services,Printing and Photographic and Audio and
People Services - Adults and Health,Physical Support,Community Support,FOSSE HEALTHCARE LTD,1675472,09/08/2022,4017025,769.24,0.00,N/A,N/A
People Services - Adults and Health,Mental Health Support,Mental Health,FOSSE HEALTHCARE LTD,1675472,09/08/2022,4016820,892.93,0.00,N/A,N/A
People Services - Adults and Health,Public Health,Public Health,FRONTIER NX LIMITED,1593482,09/08/2022,4013510,"7,620.00",0.00,N/A,N/A
People Services - Children & Young People,Non Delegated Schools Budget,Schools Block,FUN TIME NURSERY LTD,936504,09/08/2022,4013868,"28,602.00",0.00,N/A,N/A
People Services - Children & Young People,Non Delegated Schools Budget,Schools Block,FUN TIME NURSERY LTD,936504,09/08/2022,4013703,"10,527.30",0.00,N/A,N/A
People Services - Adults and Health,Mental Health Support,Mental Health,GELDARD AND SON LIMITED,1144470,09/08/2022,4017705,"1,218.00",0.00,West/South MH Support Adults (under 65) - DP/Mgd,Healthcare Services
People Services - Adults and Health,Mental Health Support,Mental Health,GELDARD AND SON LIMITED,1144470,09/08/2022,4017704,812.00,0.00,West/South MH Support Adults (under 65) - DP/Mgd,Healthcare Services
People Services - Adults and Health,Mental Health Support,Mental Health,GELDARD AND SON LIMITED,1144470,09/08/2022,4017703,840.00,0.00,West/South MH Support OP (over 65) - R/N,Healthcare Services
Control Accounts,Control Accounts,Control Accounts,GMBATU,1692,09/08/2022,4016285,"1,332.51",0.00,N/A,N/A
Control Accounts,Control Accounts,Control Accounts,GMBATU,1692,09/08/2022,3991907,"1,347.00",0.00,N/A,N/A
Communities & Place,"Waste, Street Cleansing & Fleet",Public Protection and Streetride,GO PLANT FLEET SERVICES LTD,1580477,09/08/2022,4013551,"3,377.42",0.00,N/A,N/A
Corporate Resources,Digital Services & Customer Management,Digital Services & Customer Management,GRANICUS FIRMSTEP LIMITED,1883477,09/08/2022,3966447,"15,500.00",0.00,N/A,N/A
Corporate Resources,Digital Services & Customer Management,Digital Services & Customer Management,GRANICUS FIRMSTEP LIMITED,1883477,09/08/2022,3966447,"13,000.00",0.00,N/A,N/A
Corporate Resources,Digital Services & Customer Management,Digital Services & Customer Management,GRANICUS FIRMSTEP LIMITED,1883477,09/08/2022,3966447,"9,500.00",0.00,N/A,N/A
Corporate Resources,Digital Services & Customer Management,Digital Services & Customer Management,GRANICUS FIRMSTEP LIMITED,1883477,09/08/2022,3966447,"1,000.00",0.00,N/A,N/A
Corporate Resources,Digital Services & Customer Management,Digital Services & Customer Management,GRANICUS FIRMSTEP LIMITED,1883477,09/08/2022,3966447,"7,500.00",0.00,N/A,N/A
Corporate Resources,Digital Services & Customer Management,Digital Services & Customer Management,GRANICUS FIRMSTEP LIMITED,1883477,09/08/2022,3966447,"25,500.00",0.00,N/A,N/A
Children and Young People,Children and Young People,Children and Young People,GREG LONG TREE CARE,1624477,09/08/2022,4007110,950.00,0.00,N/A,N/A
People Services - Children & Young People,Non Delegated Schools Budget,Schools Block,GRIFFE FIELD PRIMARY SCHOOL,946488,09/08/2022,4013902,"34,322.40",0.00,N/A,N/A
People Services - Children & Young People,Non Delegated Schools Budget,Schools Block,GRIFFE FIELD PRIMARY SCHOOL,1685477,09/08/2022,4014201,748.80,0.00,N/A,N/A
People Services - Children & Young People,Non Delegated Schools Budget,Schools Block,GRIFFE FIELD PRIMARY SCHOOL,1685477,09/08/2022,4014017,576.04,0.00,N/A,N/A
People Services - Children & Young People,Non Delegated Schools Budget,Schools Block,GRIFFE FIELD PRIMARY SCHOOL,1685477,09/08/2022,4013930,633.32,0.00,N/A,N/A
People Services - Children & Young People,Non Delegated Schools Budget,Schools Block,GRIFFE FIELD PRIMARY SCHOOL,1685477,09/08/2022,4014529,710.88,0.00,N/A,N/A
Communities & Place,"Waste, Street Cleansing & Fleet",Public Protection and Streetride,H W MARTIN WASTE LIMITED,1282472,09/08/2022,4017644,"57,009.98",0.00,Waste Disposal,Industrial Cleaning Services
People Services - Children & Young People,Non Delegated Schools Budget,Schools Block,HARDWICK PRIMARY SCHOOL,937512,09/08/2022,4013824,"31,462.20",0.00,N/A,N/A
People Services - Children & Young People,Non Delegated Schools Budget,Schools Block,HARDWICK PRIMARY SCHOOL,1683498,09/08/2022,4014371,"1,650.60",0.00,N/A,N/A
People Services - Children & Young People,Non Delegated Schools Budget,Schools Block,HARDWICK PRIMARY SCHOOL,1683498,09/08/2022,4014370,"1,215.24",0.00,N/A,N/A
People Services - Children & Young People,Non Delegated Schools Budget,Schools Block,HARDWICK PRIMARY SCHOOL,1683498,09/08/2022,4014223,"1,222.48",0.00,N/A,N/A
People Services - Children & Young People,Non Delegated Schools Budget,Schools Block,HARDWICK PRIMARY SCHOOL,1683498,09/08/2022,4014041,"1,249.20",0.00,N/A,N/A
People Services - Children & Young People,Non Delegated Schools Budget,Schools Block,HARDWICK PRIMARY SCHOOL,1683498,09/08/2022,4014040,"1,244.08",0.00,N/A,N/A
People Services - Children & Young People,Non Delegated Schools Budget,Schools Block,HARDWICK PRIMARY SCHOOL,1683498,09/08/2022,4014039,"1,094.08",0.00,N/A,N/A
People Services - Children & Young People,Non Delegated Schools Budget,Schools Block,HARDWICK PRIMARY SCHOOL,1683498,09/08/2022,4014036,939.60,0.00,N/A,N/A
People Services - Children & Young People,Non Delegated Schools Budget,Schools Block,HARDWICK PRIMARY SCHOOL,1683498,09/08/2022,4014035,812.56,0.00,N/A,N/A
People Services - Children & Young People,Non Delegated Schools Budget,Schools Block,HARDWICK PRIMARY SCHOOL,1683498,09/08/2022,4014555,"1,153.92",0.00,N/A,N/A
People Services - Children & Young People,Non Delegated Schools Budget,Schools Block,HARDWICK PRIMARY SCHOOL,1683498,09/08/2022,4014465,"1,034.72",0.00,N/A,N/A
People Services - Children & Young People,Non Delegated Schools Budget,Schools Block,HARDWICK PRIMARY SCHOOL,1683498,09/08/2022,4014461,627.20,0.00,N/A,N/A
People Services - Children & Young People,Non Delegated Schools Budget,Schools Block,HARDWICK PRIMARY SCHOOL,1683498,09/08/2022,4014460,605.96,0.00,N/A,N/A
People Services - Children & Young People,Non Delegated Schools Budget,Schools Block,HARDWICK PRIMARY SCHOOL,1683498,09/08/2022,4014365,"1,034.72",0.00,N/A,N/A
People Services - Children & Young People,Non Delegated Schools Budget,Schools Block,HARDWICK PRIMARY SCHOOL,1683498,09/08/2022,4014301,"1,010.16",0.00,N/A,N/A
People Services - Children & Young People,Non Delegated Schools Budget,Schools Block,HARDWICK PRIMARY SCHOOL,1683498,09/08/2022,4014297,679.28,0.00,N/A,N/A
People Services - Children & Young People,Non Delegated Schools Budget,Schools Block,HARDWICK PRIMARY SCHOOL,1683498,09/08/2022,4014032,516.96,0.00,N/A,N/A
Communities & Place,"Waste, Street Cleansing & Fleet",Public Protection and Streetride,HARTSHORNE MOTOR SERVICES LTD,126441,09/08/2022,4013519,"2,191.76",0.00,Vehicle Maintenance,Commercial and Military and Private Vehi
Corporate Resources,Property Design & Maintenance,Property,HAYS SPECIALIST RECRUITMENT LTD,188508,09/08/2022,4017283,"7,552.50",0.00,N/A,N/A
Corporate Resources,Property Design & Maintenance,Property,HAYS SPECIALIST RECRUITMENT LTD,188508,09/08/2022,4017277,"4,160.50",0.00,N/A,N/A
Corporate Resources,Property Design & Maintenance,Property,HAYS SPECIALIST RECRUITMENT LTD,188508,09/08/2022,4017266,"7,950.00",0.00,N/A,N/A
People Services - Children & Young People,Non Delegated Schools Budget,Schools Block,HEATHERTON PRE SCHOOL,933476,09/08/2022,4013796,"7,586.34",0.00,N/A,N/A
People Services - Children & Young People,Non Delegated Schools Budget,Schools Block,HEATHERTON PRE SCHOOL,933476,09/08/2022,4013739,"3,509.10",0.00,N/A,N/A
People Services - Children & Young People,Early Help & Children’s Safeguarding,Non-Schools,HILBROKE HOUSE LTD,1002472,09/08/2022,4015991,910.00,0.00,Unsupported Foreign Nationals,Travel and Food and Lodging and Entertai
People Services - Children & Young People,Commissioning,Non-Schools,HODGSON TRAVEL,1351476,09/08/2022,4017777,"2,400.00",0.00,N/A,N/A
People Services - Adults and Health,Physical Support,Community Support,I CARE GB LTD,471255,09/08/2022,4016748,"1,005.60",0.00,N/A,N/A
People Services - Adults and Health,Physical Support,Community Support,I CARE GB LTD,1666481,09/08/2022,4017021,779.12,0.00,N/A,N/A
People Services - Adults and Health,Physical Support,Community Support,I CARE GB LTD,1666481,09/08/2022,4017018,736.03,0.00,N/A,N/A
People Services - Adults and Health,Physical Support,Community Support,I CARE GB LTD,471255,09/08/2022,4017016,805.48,0.00,N/A,N/A
People Services - Adults and Health,Physical Support,Community Support,I CARE GB LTD,1666481,09/08/2022,4016750,944.72,0.00,N/A,N/A
People Services - Adults and Health,Physical Support,Community Support,I CARE GB LTD,471255,09/08/2022,4016941,805.48,0.00,N/A,N/A
People Services - Adults and Health,Physical Support,Community Support,I CARE GB LTD,1666481,09/08/2022,4016878,944.72,0.00,N/A,N/A
People Services - Adults and Health,Physical Support,Community Support,I CARE GB LTD,471255,09/08/2022,4017015,781.12,0.00,N/A,N/A
People Services - Adults and Health,Physical Support,Community Support,I CARE GB LTD,471255,09/08/2022,4016809,781.12,0.00,N/A,N/A
People Services - Adults and Health,Physical Support,Community Support,I CARE GB LTD,471255,09/08/2022,4016808,781.12,0.00,N/A,N/A
People Services - Adults and Health,Physical Support,Community Support,I CARE GB LTD,1666481,09/08/2022,4016877,562.88,0.00,N/A,N/A
People Services - Adults and Health,Physical Support,Community Support,I CARE GB LTD,471255,09/08/2022,4016876,781.12,0.00,N/A,N/A
People Services - Adults and Health,Learning Disability Support,Community Support,I CARE GB LTD,1666481,09/08/2022,4016953,611.00,0.00,N/A,N/A
